Body Name,Body,Date,Department,Beneficiary,Summary of Purpose (SeRCOP),Amount,Merchant Code,Transaction Number
Sandwell Metropolitan Borough Council,http://www.sandwell.gov.uk/info/200202/performance_and_spending/3233/government_procurement_cards,05-Jan-21,Regeneration & Growth,AMZ Amazon.co.uk,Regeneration And The Economy,-14.99,Equipment & Furniture,2020-21Jan_PC00001
Sandwell Metropolitan Borough Council,http://www.sandwell.gov.uk/info/200202/performance_and_spending/3233/government_procurement_cards,05-Jan-21,Individual School Budgets With Inclusion,WWW.THEWORKS.CO.UK,Individual School Budgets With Inclusion,24.16,Learning Resources,2020-21Jan_PC00002
Sandwell Metropolitan Borough Council,http://www.sandwell.gov.uk/info/200202/performance_and_spending/3233/government_procurement_cards,05-Jan-21,Childrens Services,Amazon.co.uk MJ5BH4BJ4,Childrens Services,88.74,Printing Stationery&Gen Office,2020-21Jan_PC00003
Sandwell Metropolitan Borough Council,http://www.sandwell.gov.uk/info/200202/performance_and_spending/3233/government_procurement_cards,05-Jan-21,Housing & Communities,The Plastic Box Compan,Neighbourhoods,37.65,Equipment & Furniture,2020-21Jan_PC00004
Sandwell Metropolitan Borough Council,http://www.sandwell.gov.uk/info/200202/performance_and_spending/3233/government_procurement_cards,05-Jan-21,Total Housing Revenue Account,AMZNMktplace,Total Housing Revenue Account,109.98,Employee Expenses,2020-21Jan_PC00005
Sandwell Metropolitan Borough Council,http://www.sandwell.gov.uk/info/200202/performance_and_spending/3233/government_procurement_cards,05-Jan-21,Housing & Communities,CILIP,Neighbourhoods,20,Conference Expenses,2020-21Jan_PC00006
Sandwell Metropolitan Borough Council,http://www.sandwell.gov.uk/info/200202/performance_and_spending/3233/government_procurement_cards,05-Jan-21,Housing & Communities,PAYPAL  EVENTSINDUS,Neighbourhoods,25,Subscriptions,2020-21Jan_PC00007
Sandwell Metropolitan Borough Council,http://www.sandwell.gov.uk/info/200202/performance_and_spending/3233/government_procurement_cards,05-Jan-21,Total Housing Revenue Account,ARGOS LTD,Total Housing Revenue Account,749.75,Telephones,2020-21Jan_PC00008
Sandwell Metropolitan Borough Council,http://www.sandwell.gov.uk/info/200202/performance_and_spending/3233/government_procurement_cards,06-Jan-21,Adult Social Care Health and Wellbeing - Total,OFFICE DEPOT UK,Total Adult Social Care,45.07,Printing Stationery&Gen Office,2020-21Jan_PC00009
Sandwell Metropolitan Borough Council,http://www.sandwell.gov.uk/info/200202/performance_and_spending/3233/government_procurement_cards,06-Jan-21,Total Housing Revenue Account,AMZNMktplace,Total Housing Revenue Account,13.32,ICT,2020-21Jan_PC00010
Sandwell Metropolitan Borough Council,http://www.sandwell.gov.uk/info/200202/performance_and_spending/3233/government_procurement_cards,06-Jan-21,Childrens Services,AMZNMktplace,Childrens Services,14.49,ICT,2020-21Jan_PC00011
Sandwell Metropolitan Borough Council,http://www.sandwell.gov.uk/info/200202/performance_and_spending/3233/government_procurement_cards,06-Jan-21,Adult Social Care Health and Wellbeing - Total,Amazon.co.uk MJ41I2QB4,Assistant Chief Executive (Excl SIU),21.66,Printing Stationery&Gen Office,2020-21Jan_PC00012
Sandwell Metropolitan Borough Council,http://www.sandwell.gov.uk/info/200202/performance_and_spending/3233/government_procurement_cards,06-Jan-21,Adult Social Care Health and Wellbeing - Total,WWW.KUDAUK.LTD.UK,Assistant Chief Executive (Excl SIU),105.6,Materials & Consumables,2020-21Jan_PC00013
Sandwell Metropolitan Borough Council,http://www.sandwell.gov.uk/info/200202/performance_and_spending/3233/government_procurement_cards,06-Jan-21,Housing & Communities,ALDI 67 772,Neighbourhoods,11.65,Materials & Consumables,2020-21Jan_PC00014
Sandwell Metropolitan Borough Council,http://www.sandwell.gov.uk/info/200202/performance_and_spending/3233/government_procurement_cards,06-Jan-21,Resources (Inc SIU),AMZNMktplace,Assistant Chief Executive (Excl SIU),6.23,ICT,2020-21Jan_PC00015
Sandwell Metropolitan Borough Council,http://www.sandwell.gov.uk/info/200202/performance_and_spending/3233/government_procurement_cards,06-Jan-21,Resources (Inc SIU),AMZNMktplace,Assistant Chief Executive (Excl SIU),7.9,ICT,2020-21Jan_PC00016
Sandwell Metropolitan Borough Council,http://www.sandwell.gov.uk/info/200202/performance_and_spending/3233/government_procurement_cards,06-Jan-21,Housing & Communities,AMZNMktplace,Neighbourhoods,8.39,Materials & Consumables,2020-21Jan_PC00017
Sandwell Metropolitan Borough Council,http://www.sandwell.gov.uk/info/200202/performance_and_spending/3233/government_procurement_cards,06-Jan-21,Individual School Budgets With Inclusion,WWW.NATIONALTRUST.,Individual School Budgets With Inclusion,126,Learning Resources,2020-21Jan_PC00018
Sandwell Metropolitan Borough Council,http://www.sandwell.gov.uk/info/200202/performance_and_spending/3233/government_procurement_cards,06-Jan-21,Individual School Budgets With Inclusion,WWW.NATIONALTRUST.,Individual School Budgets With Inclusion,36,Learning Resources,2020-21Jan_PC00019
Sandwell Metropolitan Borough Council,http://www.sandwell.gov.uk/info/200202/performance_and_spending/3233/government_procurement_cards,06-Jan-21,Total Housing Revenue Account,Amazon.co.uk MJ1E888P4,Total Housing Revenue Account,167.77,Employee Expenses,2020-21Jan_PC00020
Sandwell Metropolitan Borough Council,http://www.sandwell.gov.uk/info/200202/performance_and_spending/3233/government_procurement_cards,06-Jan-21,Total Housing Revenue Account,Amazon.co.uk MJ9EU08A4,Total Housing Revenue Account,167.77,Employee Expenses,2020-21Jan_PC00021
Sandwell Metropolitan Borough Council,http://www.sandwell.gov.uk/info/200202/performance_and_spending/3233/government_procurement_cards,06-Jan-21,Total Housing Revenue Account,Amazon.co.uk MJ0E09844,Total Housing Revenue Account,167.77,Employee Expenses,2020-21Jan_PC00022
Sandwell Metropolitan Borough Council,http://www.sandwell.gov.uk/info/200202/performance_and_spending/3233/government_procurement_cards,06-Jan-21,Total Housing Revenue Account,Amazon.co.uk MJ3E04864,Total Housing Revenue Account,167.77,Employee Expenses,2020-21Jan_PC00023
Sandwell Metropolitan Borough Council,http://www.sandwell.gov.uk/info/200202/performance_and_spending/3233/government_procurement_cards,06-Jan-21,Childrens Services,BLOOMSBURY.COM UK,Childrens Services,53.98,Equipment & Furniture,2020-21Jan_PC00024
Sandwell Metropolitan Borough Council,http://www.sandwell.gov.uk/info/200202/performance_and_spending/3233/government_procurement_cards,06-Jan-21,Regeneration & Growth,AMZNMKTPLACE AMAZON.CO,Regeneration And The Economy,22.47,Printing Stationery&Gen Office,2020-21Jan_PC00025
Sandwell Metropolitan Borough Council,http://www.sandwell.gov.uk/info/200202/performance_and_spending/3233/government_procurement_cards,06-Jan-21,Housing & Communities,EDGBASTON PALACE,Neighbourhoods,40.83,Rents,2020-21Jan_PC00026
Sandwell Metropolitan Borough Council,http://www.sandwell.gov.uk/info/200202/performance_and_spending/3233/government_procurement_cards,07-Jan-21,Regeneration & Growth,AMZNMKTPLACE AMAZON.CO,Regeneration And The Economy,6.65,Printing Stationery&Gen Office,2020-21Jan_PC00027
Sandwell Metropolitan Borough Council,http://www.sandwell.gov.uk/info/200202/performance_and_spending/3233/government_procurement_cards,07-Jan-21,Total Housing Revenue Account,DVLA DIGITAL TACHO,Total Housing Revenue Account,15.83,Licences&Test Fees,2020-21Jan_PC00028
Sandwell Metropolitan Borough Council,http://www.sandwell.gov.uk/info/200202/performance_and_spending/3233/government_procurement_cards,07-Jan-21,Housing & Communities,AMZNMKTPLACE AMAZON.CO,Neighbourhoods,16.63,Equipment & Furniture,2020-21Jan_PC00029
Sandwell Metropolitan Borough Council,http://www.sandwell.gov.uk/info/200202/performance_and_spending/3233/government_procurement_cards,07-Jan-21,Childrens Services,AMZNMktplace,Childrens Services,150.16,Materials & Consumables,2020-21Jan_PC00030
Sandwell Metropolitan Borough Council,http://www.sandwell.gov.uk/info/200202/performance_and_spending/3233/government_procurement_cards,07-Jan-21,Adult Social Care Health and Wellbeing - Total,AMZNMktplace,Public Health,9.16,Printing Stationery&Gen Office,2020-21Jan_PC00031
Sandwell Metropolitan Borough Council,http://www.sandwell.gov.uk/info/200202/performance_and_spending/3233/government_procurement_cards,07-Jan-21,Adult Social Care Health and Wellbeing - Total,PAYPAL  SCREWFIX,Total Adult Social Care,16.66,Fixtures & Fittings,2020-21Jan_PC00032
Sandwell Metropolitan Borough Council,http://www.sandwell.gov.uk/info/200202/performance_and_spending/3233/government_procurement_cards,07-Jan-21,Resources (Inc SIU),WWW.PCWB.COM,Assistant Chief Executive (Excl SIU),124.95,ICT,2020-21Jan_PC00033
Sandwell Metropolitan Borough Council,http://www.sandwell.gov.uk/info/200202/performance_and_spending/3233/government_procurement_cards,07-Jan-21,Housing & Communities,WWW.FTA.CO.UK,Neighbourhoods,74.95,ICT,2020-21Jan_PC00034
Sandwell Metropolitan Borough Council,http://www.sandwell.gov.uk/info/200202/performance_and_spending/3233/government_procurement_cards,07-Jan-21,Adult Social Care Health and Wellbeing - Total,PAYPAL  ZHENYOUXINX EB,Total Adult Social Care,39.67,Equipment & Furniture,2020-21Jan_PC00035
Sandwell Metropolitan Borough Council,http://www.sandwell.gov.uk/info/200202/performance_and_spending/3233/government_procurement_cards,07-Jan-21,Adult Social Care Health and Wellbeing - Total,AMZNMktplace,Total Adult Social Care,132.92,Materials & Consumables,2020-21Jan_PC00036
Sandwell Metropolitan Borough Council,http://www.sandwell.gov.uk/info/200202/performance_and_spending/3233/government_procurement_cards,07-Jan-21,Regeneration & Growth,Amazon.co.uk MJ1PQ66B4,Regeneration And The Economy,116.66,Telephones,2020-21Jan_PC00037
Sandwell Metropolitan Borough Council,http://www.sandwell.gov.uk/info/200202/performance_and_spending/3233/government_procurement_cards,07-Jan-21,Housing & Communities,KINGFISHERDIRECT,Neighbourhoods,69.98,Materials & Consumables,2020-21Jan_PC00038
Sandwell Metropolitan Borough Council,http://www.sandwell.gov.uk/info/200202/performance_and_spending/3233/government_procurement_cards,07-Jan-21,Adult Social Care Health and Wellbeing - Total,CURRYS ONLINE,Total Adult Social Care,108.29,ICT,2020-21Jan_PC00039
Sandwell Metropolitan Borough Council,http://www.sandwell.gov.uk/info/200202/performance_and_spending/3233/government_procurement_cards,07-Jan-21,Adult Social Care Health and Wellbeing - Total,WWW.RYMAN.CO.UK,Total Adult Social Care,160.79,Equipment & Furniture,2020-21Jan_PC00040
Sandwell Metropolitan Borough Council,http://www.sandwell.gov.uk/info/200202/performance_and_spending/3233/government_procurement_cards,07-Jan-21,Adult Social Care Health and Wellbeing - Total,SCREWFIX DIRECT,Total Adult Social Care,49.99,Equipment & Furniture,2020-21Jan_PC00041
Sandwell Metropolitan Borough Council,http://www.sandwell.gov.uk/info/200202/performance_and_spending/3233/government_procurement_cards,07-Jan-21,Resources (Inc SIU),AMZNMktplace,Assistant Chief Executive (Excl SIU),168.74,Printing Stationery&Gen Office,2020-21Jan_PC00042
Sandwell Metropolitan Borough Council,http://www.sandwell.gov.uk/info/200202/performance_and_spending/3233/government_procurement_cards,07-Jan-21,Adult Social Care Health and Wellbeing - Total,AAAA AARDVARK,Total Adult Social Care,195,Professional Services External,2020-21Jan_PC00043
Sandwell Metropolitan Borough Council,http://www.sandwell.gov.uk/info/200202/performance_and_spending/3233/government_procurement_cards,07-Jan-21,Childrens Services,AMZNMktplace,Childrens Services,10.9,Printing Stationery&Gen Office,2020-21Jan_PC00044
Sandwell Metropolitan Borough Council,http://www.sandwell.gov.uk/info/200202/performance_and_spending/3233/government_procurement_cards,07-Jan-21,Adult Social Care Health and Wellbeing - Total,AMZNMktplace,Total Adult Social Care,56.33,Ind. Emp Exp-Emp. Welfare,2020-21Jan_PC00045
Sandwell Metropolitan Borough Council,http://www.sandwell.gov.uk/info/200202/performance_and_spending/3233/government_procurement_cards,07-Jan-21,Resources (Inc SIU),OFFICE DEPOT UK,Assistant Chief Executive (Excl SIU),44.85,Printing Stationery&Gen Office,2020-21Jan_PC00046
Sandwell Metropolitan Borough Council,http://www.sandwell.gov.uk/info/200202/performance_and_spending/3233/government_procurement_cards,07-Jan-21,Total Housing Revenue Account,AMZNMKTPLACE AMAZON.CO,Total Housing Revenue Account,13.48,Employee Expenses,2020-21Jan_PC00047
Sandwell Metropolitan Borough Council,http://www.sandwell.gov.uk/info/200202/performance_and_spending/3233/government_procurement_cards,07-Jan-21,Childrens Services,WWW.CGPBOOKS.CO.UK,Childrens Services,43.95,Materials & Consumables,2020-21Jan_PC00048
Sandwell Metropolitan Borough Council,http://www.sandwell.gov.uk/info/200202/performance_and_spending/3233/government_procurement_cards,07-Jan-21,Housing & Communities,DVSA,Neighbourhoods,1025,Licences&Test Fees,2020-21Jan_PC00049
Sandwell Metropolitan Borough Council,http://www.sandwell.gov.uk/info/200202/performance_and_spending/3233/government_procurement_cards,07-Jan-21,Childrens Services,POST OFFICE COUNTER,Childrens Services,96,Printing Stationery&Gen Office,2020-21Jan_PC00050
Sandwell Metropolitan Borough Council,http://www.sandwell.gov.uk/info/200202/performance_and_spending/3233/government_procurement_cards,07-Jan-21,Housing & Communities,AMZNMktplace,Neighbourhoods,9.71,Materials & Consumables,2020-21Jan_PC00051
Sandwell Metropolitan Borough Council,http://www.sandwell.gov.uk/info/200202/performance_and_spending/3233/government_procurement_cards,07-Jan-21,Housing & Communities,AMZNMktplace,Neighbourhoods,4.68,Materials & Consumables,2020-21Jan_PC00052
Sandwell Metropolitan Borough Council,http://www.sandwell.gov.uk/info/200202/performance_and_spending/3233/government_procurement_cards,07-Jan-21,Childrens Services,Amazon.co.uk MJ0RK2644,Childrens Services,35.47,ICT,2020-21Jan_PC00053
Sandwell Metropolitan Borough Council,http://www.sandwell.gov.uk/info/200202/performance_and_spending/3233/government_procurement_cards,07-Jan-21,Resources (Inc SIU),WWW.HARBROSUPPLIES.COM,Assistant Chief Executive (Excl SIU),204.24,Materials & Consumables,2020-21Jan_PC00054
Sandwell Metropolitan Borough Council,http://www.sandwell.gov.uk/info/200202/performance_and_spending/3233/government_procurement_cards,07-Jan-21,Housing & Communities,BLACK COUNTRY CHAMBER,Neighbourhoods,117,Subscriptions,2020-21Jan_PC00055
Sandwell Metropolitan Borough Council,http://www.sandwell.gov.uk/info/200202/performance_and_spending/3233/government_procurement_cards,07-Jan-21,Housing & Communities,EDGBASTON PALACE,Neighbourhoods,40.83,Rents,2020-21Jan_PC00056
Sandwell Metropolitan Borough Council,http://www.sandwell.gov.uk/info/200202/performance_and_spending/3233/government_procurement_cards,07-Jan-21,Regeneration & Growth,Flextronics,Regeneration And The Economy,161.19,Equipment & Furniture,2020-21Jan_PC00057
Sandwell Metropolitan Borough Council,http://www.sandwell.gov.uk/info/200202/performance_and_spending/3233/government_procurement_cards,07-Jan-21,Regeneration & Growth,AMZNMktplace,Regeneration And The Economy,27.45,Printing Stationery&Gen Office,2020-21Jan_PC00058
Sandwell Metropolitan Borough Council,http://www.sandwell.gov.uk/info/200202/performance_and_spending/3233/government_procurement_cards,07-Jan-21,Total Housing Revenue Account,Amazon.co.uk MJ7PJ3614,Total Housing Revenue Account,120.4,Telephones,2020-21Jan_PC00059
Sandwell Metropolitan Borough Council,http://www.sandwell.gov.uk/info/200202/performance_and_spending/3233/government_procurement_cards,08-Jan-21,Resources (Inc SIU),AMZNMKTPLACE AMAZON.CO,Assistant Chief Executive (Excl SIU),15.81,ICT,2020-21Jan_PC00060
Sandwell Metropolitan Borough Council,http://www.sandwell.gov.uk/info/200202/performance_and_spending/3233/government_procurement_cards,08-Jan-21,Total Housing Revenue Account,AMZNMKTPLACE AMAZON.CO,Total Housing Revenue Account,62.15,Equipment & Furniture,2020-21Jan_PC00061
Sandwell Metropolitan Borough Council,http://www.sandwell.gov.uk/info/200202/performance_and_spending/3233/government_procurement_cards,08-Jan-21,Resources (Inc SIU),AMZNMKTPLACE AMAZON.CO,Assistant Chief Executive (Excl SIU),15.82,Printing Stationery&Gen Office,2020-21Jan_PC00062
Sandwell Metropolitan Borough Council,http://www.sandwell.gov.uk/info/200202/performance_and_spending/3233/government_procurement_cards,08-Jan-21,Housing & Communities,AMZNMktplace,Neighbourhoods,13.36,ICT,2020-21Jan_PC00063
Sandwell Metropolitan Borough Council,http://www.sandwell.gov.uk/info/200202/performance_and_spending/3233/government_procurement_cards,08-Jan-21,Adult Social Care Health and Wellbeing - Total,Amazon.co.uk MJ9SF32M4,Total Adult Social Care,62.97,ICT,2020-21Jan_PC00064
Sandwell Metropolitan Borough Council,http://www.sandwell.gov.uk/info/200202/performance_and_spending/3233/government_procurement_cards,08-Jan-21,Adult Social Care Health and Wellbeing - Total,ARGOS LTD,Total Adult Social Care,122.96,Telephones,2020-21Jan_PC00065
Sandwell Metropolitan Borough Council,http://www.sandwell.gov.uk/info/200202/performance_and_spending/3233/government_procurement_cards,08-Jan-21,Housing & Communities,SCREWFIX DIRECT,Neighbourhoods,24.4,Equipment & Furniture,2020-21Jan_PC00066
Sandwell Metropolitan Borough Council,http://www.sandwell.gov.uk/info/200202/performance_and_spending/3233/government_procurement_cards,08-Jan-21,Regeneration & Growth,ASAP STAMPS LTD,Regeneration And The Economy,41.89,Printing Stationery&Gen Office,2020-21Jan_PC00067
Sandwell Metropolitan Borough Council,http://www.sandwell.gov.uk/info/200202/performance_and_spending/3233/government_procurement_cards,08-Jan-21,Adult Social Care Health and Wellbeing - Total,Amazon.co.uk MJ1854D84,Total Adult Social Care,25.75,Materials & Consumables,2020-21Jan_PC00068
Sandwell Metropolitan Borough Council,http://www.sandwell.gov.uk/info/200202/performance_and_spending/3233/government_procurement_cards,08-Jan-21,Resources (Inc SIU),POST OFFICE COUNTER,Assistant Chief Executive (Excl SIU),14.67,"Postages, Carriage & Courier Services",2020-21Jan_PC00069
Sandwell Metropolitan Borough Council,http://www.sandwell.gov.uk/info/200202/performance_and_spending/3233/government_procurement_cards,08-Jan-21,Housing & Communities,The Plastic Box Compan,Neighbourhoods,45.75,Printing Stationery&Gen Office,2020-21Jan_PC00070
Sandwell Metropolitan Borough Council,http://www.sandwell.gov.uk/info/200202/performance_and_spending/3233/government_procurement_cards,08-Jan-21,Regeneration & Growth,AMZNMktplace,Regeneration And The Economy,7.91,Protective Clothing&Uniforms,2020-21Jan_PC00071
Sandwell Metropolitan Borough Council,http://www.sandwell.gov.uk/info/200202/performance_and_spending/3233/government_procurement_cards,08-Jan-21,Regeneration & Growth,AMZNMKTPLACE AMAZON.CO,Regeneration And The Economy,7.91,Protective Clothing&Uniforms,2020-21Jan_PC00072
Sandwell Metropolitan Borough Council,http://www.sandwell.gov.uk/info/200202/performance_and_spending/3233/government_procurement_cards,08-Jan-21,Regeneration & Growth,AMZNMktplace,Regeneration And The Economy,7.91,Protective Clothing&Uniforms,2020-21Jan_PC00073
Sandwell Metropolitan Borough Council,http://www.sandwell.gov.uk/info/200202/performance_and_spending/3233/government_procurement_cards,08-Jan-21,Regeneration & Growth,AMZNMktplace,Regeneration And The Economy,7.91,Protective Clothing&Uniforms,2020-21Jan_PC00074
Sandwell Metropolitan Borough Council,http://www.sandwell.gov.uk/info/200202/performance_and_spending/3233/government_procurement_cards,08-Jan-21,Regeneration & Growth,AMZN Mktp UK MJ7EL2DJ4,Regeneration And The Economy,27.87,Telephones,2020-21Jan_PC00075
Sandwell Metropolitan Borough Council,http://www.sandwell.gov.uk/info/200202/performance_and_spending/3233/government_procurement_cards,08-Jan-21,Regeneration & Growth,AMZNMKTPLACE AMAZON.CO,Regeneration And The Economy,24.99,Telephones,2020-21Jan_PC00076
Sandwell Metropolitan Borough Council,http://www.sandwell.gov.uk/info/200202/performance_and_spending/3233/government_procurement_cards,08-Jan-21,Resources (Inc SIU),AMZNMktplace,Assistant Chief Executive (Excl SIU),48.66,ICT,2020-21Jan_PC00077
Sandwell Metropolitan Borough Council,http://www.sandwell.gov.uk/info/200202/performance_and_spending/3233/government_procurement_cards,08-Jan-21,Regeneration & Growth,RICS COM GBP CYBS,Regeneration And The Economy,420,Subscriptions,2020-21Jan_PC00078
Sandwell Metropolitan Borough Council,http://www.sandwell.gov.uk/info/200202/performance_and_spending/3233/government_procurement_cards,11-Jan-21,Adult Social Care Health and Wellbeing - Total,OFFICE DEPOT UK,Total Adult Social Care,36.75,Printing Stationery&Gen Office,2020-21Jan_PC00079
Sandwell Metropolitan Borough Council,http://www.sandwell.gov.uk/info/200202/performance_and_spending/3233/government_procurement_cards,11-Jan-21,Adult Social Care Health and Wellbeing - Total,OFFICE DEPOT UK,Total Adult Social Care,11.22,Printing Stationery&Gen Office,2020-21Jan_PC00080
Sandwell Metropolitan Borough Council,http://www.sandwell.gov.uk/info/200202/performance_and_spending/3233/government_procurement_cards,11-Jan-21,Childrens Services,VALUE PRODUCTS LTD,Childrens Services,55,R& M - Building Maint&Imp.,2020-21Jan_PC00081
Sandwell Metropolitan Borough Council,http://www.sandwell.gov.uk/info/200202/performance_and_spending/3233/government_procurement_cards,11-Jan-21,Childrens Services,WWW.UKPOS.COM,Childrens Services,75.45,R& M - Building Maint&Imp.,2020-21Jan_PC00082
Sandwell Metropolitan Borough Council,http://www.sandwell.gov.uk/info/200202/performance_and_spending/3233/government_procurement_cards,11-Jan-21,Housing & Communities,SCREWFIX DIRECT,Neighbourhoods,7.48,R& M - Building Maint&Imp.,2020-21Jan_PC00083
Sandwell Metropolitan Borough Council,http://www.sandwell.gov.uk/info/200202/performance_and_spending/3233/government_procurement_cards,11-Jan-21,Adult Social Care Health and Wellbeing - Total,AMZNMktplace,Total Adult Social Care,29.12,Catering Equipment,2020-21Jan_PC00084
Sandwell Metropolitan Borough Council,http://www.sandwell.gov.uk/info/200202/performance_and_spending/3233/government_procurement_cards,11-Jan-21,Adult Social Care Health and Wellbeing - Total,WWW.KUDAUK.LTD.UK,Assistant Chief Executive (Excl SIU),105.6,Materials & Consumables,2020-21Jan_PC00085
Sandwell Metropolitan Borough Council,http://www.sandwell.gov.uk/info/200202/performance_and_spending/3233/government_procurement_cards,11-Jan-21,Housing & Communities,AMZNMktplace,Neighbourhoods,17.74,Equipment & Furniture,2020-21Jan_PC00086
Sandwell Metropolitan Borough Council,http://www.sandwell.gov.uk/info/200202/performance_and_spending/3233/government_procurement_cards,11-Jan-21,Housing & Communities,Amazon.co.uk MJ8ZB37T4,Neighbourhoods,40.79,Materials & Consumables,2020-21Jan_PC00087
Sandwell Metropolitan Borough Council,http://www.sandwell.gov.uk/info/200202/performance_and_spending/3233/government_procurement_cards,11-Jan-21,Adult Social Care Health and Wellbeing - Total,AMZNMKTPLACE AMAZON.CO,Total Adult Social Care,135.38,Catering Equipment,2020-21Jan_PC00088
Sandwell Metropolitan Borough Council,http://www.sandwell.gov.uk/info/200202/performance_and_spending/3233/government_procurement_cards,11-Jan-21,Adult Social Care Health and Wellbeing - Total,AMZNMktplace,Assistant Chief Executive (Excl SIU),66.57,Equipment & Furniture,2020-21Jan_PC00089
Sandwell Metropolitan Borough Council,http://www.sandwell.gov.uk/info/200202/performance_and_spending/3233/government_procurement_cards,11-Jan-21,Resources (Inc SIU),AMZNMktplace,Assistant Chief Executive (Excl SIU),23.32,Printing Stationery&Gen Office,2020-21Jan_PC00090
Sandwell Metropolitan Borough Council,http://www.sandwell.gov.uk/info/200202/performance_and_spending/3233/government_procurement_cards,11-Jan-21,Adult Social Care Health and Wellbeing - Total,AMZNMktplace,Total Adult Social Care,37.07,Printing Stationery&Gen Office,2020-21Jan_PC00091
Sandwell Metropolitan Borough Council,http://www.sandwell.gov.uk/info/200202/performance_and_spending/3233/government_procurement_cards,11-Jan-21,Total Housing Revenue Account,AMZNMKTPLACE AMAZON.CO,Total Housing Revenue Account,15.14,Equipment & Furniture,2020-21Jan_PC00092
Sandwell Metropolitan Borough Council,http://www.sandwell.gov.uk/info/200202/performance_and_spending/3233/government_procurement_cards,12-Jan-21,Childrens Services,OFFICE DEPOT UK,Childrens Services,135,Protective Clothing&Uniforms,2020-21Jan_PC00093
Sandwell Metropolitan Borough Council,http://www.sandwell.gov.uk/info/200202/performance_and_spending/3233/government_procurement_cards,12-Jan-21,Childrens Services,Kindle Svcs MJ6GB8IK4,Childrens Services,28.99,Materials & Consumables,2020-21Jan_PC00094
Sandwell Metropolitan Borough Council,http://www.sandwell.gov.uk/info/200202/performance_and_spending/3233/government_procurement_cards,12-Jan-21,Housing & Communities,WWW.BUNZLCLEANINGSUPPL,Neighbourhoods,179.52,Materials & Consumables,2020-21Jan_PC00095
Sandwell Metropolitan Borough Council,http://www.sandwell.gov.uk/info/200202/performance_and_spending/3233/government_procurement_cards,12-Jan-21,Resources (Inc SIU),Amazon.co.uk MJ32J5I54,Assistant Chief Executive (Excl SIU),87.49,Printing Stationery&Gen Office,2020-21Jan_PC00096
Sandwell Metropolitan Borough Council,http://www.sandwell.gov.uk/info/200202/performance_and_spending/3233/government_procurement_cards,12-Jan-21,Housing & Communities,SCREWFIX DIRECT,Neighbourhoods,14.01,Fixtures & Fittings,2020-21Jan_PC00097
Sandwell Metropolitan Borough Council,http://www.sandwell.gov.uk/info/200202/performance_and_spending/3233/government_procurement_cards,12-Jan-21,Regeneration & Growth,TUDOR HARDWARE,Regeneration And The Economy,7.5,R & M - Security,2020-21Jan_PC00098
Sandwell Metropolitan Borough Council,http://www.sandwell.gov.uk/info/200202/performance_and_spending/3233/government_procurement_cards,12-Jan-21,Adult Social Care Health and Wellbeing - Total,Amazon.co.uk MJ2NF4RH4,Assistant Chief Executive (Excl SIU),21.38,Equipment & Furniture,2020-21Jan_PC00099
Sandwell Metropolitan Borough Council,http://www.sandwell.gov.uk/info/200202/performance_and_spending/3233/government_procurement_cards,12-Jan-21,Regeneration & Growth,SAINSBURYS SACAT0558,Regeneration And The Economy,2.5,Printing Stationery&Gen Office,2020-21Jan_PC00100
Sandwell Metropolitan Borough Council,http://www.sandwell.gov.uk/info/200202/performance_and_spending/3233/government_procurement_cards,12-Jan-21,Regeneration & Growth,TIMPSON LTD,Regeneration And The Economy,12.5,R & M - Security,2020-21Jan_PC00101
Sandwell Metropolitan Borough Council,http://www.sandwell.gov.uk/info/200202/performance_and_spending/3233/government_procurement_cards,12-Jan-21,Total Housing Revenue Account,SPEEDY STREET SOLUTION,Total Housing Revenue Account,144.76,Materials & Consumables,2020-21Jan_PC00102
Sandwell Metropolitan Borough Council,http://www.sandwell.gov.uk/info/200202/performance_and_spending/3233/government_procurement_cards,12-Jan-21,Adult Social Care Health and Wellbeing - Total,Amazon.co.uk MJ9C56WF4,Assistant Chief Executive (Excl SIU),49.98,Equipment & Furniture,2020-21Jan_PC00103
Sandwell Metropolitan Borough Council,http://www.sandwell.gov.uk/info/200202/performance_and_spending/3233/government_procurement_cards,12-Jan-21,Adult Social Care Health and Wellbeing - Total,OFFICE DEPOT UK,Total Adult Social Care,67.66,Printing Stationery&Gen Office,2020-21Jan_PC00104
Sandwell Metropolitan Borough Council,http://www.sandwell.gov.uk/info/200202/performance_and_spending/3233/government_procurement_cards,12-Jan-21,Housing & Communities,Amazon.co.uk MJ2C07WE4,Neighbourhoods,6.55,Materials & Consumables,2020-21Jan_PC00105
Sandwell Metropolitan Borough Council,http://www.sandwell.gov.uk/info/200202/performance_and_spending/3233/government_procurement_cards,12-Jan-21,Childrens Services,WorldOfBooks.com,Childrens Services,54.98,Materials & Consumables,2020-21Jan_PC00106
Sandwell Metropolitan Borough Council,http://www.sandwell.gov.uk/info/200202/performance_and_spending/3233/government_procurement_cards,12-Jan-21,Regeneration & Growth,IKEA LTD SHOP ONLINE,Regeneration And The Economy,115.83,Equipment & Furniture,2020-21Jan_PC00107
Sandwell Metropolitan Borough Council,http://www.sandwell.gov.uk/info/200202/performance_and_spending/3233/government_procurement_cards,12-Jan-21,Regeneration & Growth,AMZNMktplace,Regeneration And The Economy,44.16,Equipment & Furniture,2020-21Jan_PC00108
Sandwell Metropolitan Borough Council,http://www.sandwell.gov.uk/info/200202/performance_and_spending/3233/government_procurement_cards,13-Jan-21,Adult Social Care Health and Wellbeing - Total,AMZNMKTPLACE AMAZON.CO,Assistant Chief Executive (Excl SIU),112.82,Equipment & Furniture,2020-21Jan_PC00109
Sandwell Metropolitan Borough Council,http://www.sandwell.gov.uk/info/200202/performance_and_spending/3233/government_procurement_cards,13-Jan-21,Adult Social Care Health and Wellbeing - Total,BUYITDIRECT CO UK,Total Adult Social Care,-379.97,Telephones,2020-21Jan_PC00110
Sandwell Metropolitan Borough Council,http://www.sandwell.gov.uk/info/200202/performance_and_spending/3233/government_procurement_cards,13-Jan-21,Adult Social Care Health and Wellbeing - Total,AMZ Amazon.co.uk,Total Adult Social Care,-41.23,Equipment & Furniture,2020-21Jan_PC00111
Sandwell Metropolitan Borough Council,http://www.sandwell.gov.uk/info/200202/performance_and_spending/3233/government_procurement_cards,13-Jan-21,Adult Social Care Health and Wellbeing - Total,BUYITDIRECT CO UK,Total Adult Social Care,316.64,Telephones,2020-21Jan_PC00112
Sandwell Metropolitan Borough Council,http://www.sandwell.gov.uk/info/200202/performance_and_spending/3233/government_procurement_cards,13-Jan-21,Adult Social Care Health and Wellbeing - Total,Adobe.com,Public Health,41.62,Advertising & Publicity,2020-21Jan_PC00113
Sandwell Metropolitan Borough Council,http://www.sandwell.gov.uk/info/200202/performance_and_spending/3233/government_procurement_cards,13-Jan-21,Resources (Inc SIU),AMZNMktplace,Assistant Chief Executive (Excl SIU),14.98,Materials & Consumables,2020-21Jan_PC00114
Sandwell Metropolitan Borough Council,http://www.sandwell.gov.uk/info/200202/performance_and_spending/3233/government_procurement_cards,13-Jan-21,Resources (Inc SIU),AMZNMktplace,Assistant Chief Executive (Excl SIU),30.36,ICT,2020-21Jan_PC00115
Sandwell Metropolitan Borough Council,http://www.sandwell.gov.uk/info/200202/performance_and_spending/3233/government_procurement_cards,13-Jan-21,Adult Social Care Health and Wellbeing - Total,ARGOS LTD,Total Adult Social Care,59.99,Fixtures & Fittings,2020-21Jan_PC00116
Sandwell Metropolitan Borough Council,http://www.sandwell.gov.uk/info/200202/performance_and_spending/3233/government_procurement_cards,13-Jan-21,Childrens Services,AMZNMktplace,Childrens Services,39.91,Materials & Consumables,2020-21Jan_PC00117
Sandwell Metropolitan Borough Council,http://www.sandwell.gov.uk/info/200202/performance_and_spending/3233/government_procurement_cards,13-Jan-21,Housing & Communities,AMZN Mktp UK MV8MB1CB4,Neighbourhoods,4.75,ICT,2020-21Jan_PC00118
Sandwell Metropolitan Borough Council,http://www.sandwell.gov.uk/info/200202/performance_and_spending/3233/government_procurement_cards,13-Jan-21,Regeneration & Growth,AMZNMktplace,Regeneration And The Economy,83.33,Equipment & Furniture,2020-21Jan_PC00119
Sandwell Metropolitan Borough Council,http://www.sandwell.gov.uk/info/200202/performance_and_spending/3233/government_procurement_cards,13-Jan-21,Regeneration & Growth,AMZNMktplace,Regeneration And The Economy,99.99,Equipment & Furniture,2020-21Jan_PC00120
Sandwell Metropolitan Borough Council,http://www.sandwell.gov.uk/info/200202/performance_and_spending/3233/government_procurement_cards,14-Jan-21,Resources (Inc SIU),AMZNMKTPLACE AMAZON.CO,Assistant Chief Executive (Excl SIU),40.32,Printing Stationery&Gen Office,2020-21Jan_PC00121
Sandwell Metropolitan Borough Council,http://www.sandwell.gov.uk/info/200202/performance_and_spending/3233/government_procurement_cards,14-Jan-21,Adult Social Care Health and Wellbeing - Total,OFFICE DEPOT UK,Total Adult Social Care,191.08,Printing Stationery&Gen Office,2020-21Jan_PC00122
Sandwell Metropolitan Borough Council,http://www.sandwell.gov.uk/info/200202/performance_and_spending/3233/government_procurement_cards,14-Jan-21,Adult Social Care Health and Wellbeing - Total,OFFICE DEPOT UK,Public Health,72.57,Printing Stationery&Gen Office,2020-21Jan_PC00123
Sandwell Metropolitan Borough Council,http://www.sandwell.gov.uk/info/200202/performance_and_spending/3233/government_procurement_cards,14-Jan-21,Adult Social Care Health and Wellbeing - Total,OFFICE DEPOT UK,Public Health,9.59,Printing Stationery&Gen Office,2020-21Jan_PC00124
Sandwell Metropolitan Borough Council,http://www.sandwell.gov.uk/info/200202/performance_and_spending/3233/government_procurement_cards,14-Jan-21,Adult Social Care Health and Wellbeing - Total,AMZNMktplace,Total Adult Social Care,29.15,Materials & Consumables,2020-21Jan_PC00125
Sandwell Metropolitan Borough Council,http://www.sandwell.gov.uk/info/200202/performance_and_spending/3233/government_procurement_cards,14-Jan-21,Housing & Communities,SECURITY INDUSTRY,Neighbourhoods,158.33,Subscriptions,2020-21Jan_PC00126
Sandwell Metropolitan Borough Council,http://www.sandwell.gov.uk/info/200202/performance_and_spending/3233/government_procurement_cards,14-Jan-21,Resources (Inc SIU),ARGOS LTD,Assistant Chief Executive (Excl SIU),41.67,Printing Stationery&Gen Office,2020-21Jan_PC00127
Sandwell Metropolitan Borough Council,http://www.sandwell.gov.uk/info/200202/performance_and_spending/3233/government_procurement_cards,14-Jan-21,Housing & Communities,AMZNMktplace,Neighbourhoods,107.5,Equipment & Furniture,2020-21Jan_PC00128
Sandwell Metropolitan Borough Council,http://www.sandwell.gov.uk/info/200202/performance_and_spending/3233/government_procurement_cards,14-Jan-21,Total Housing Revenue Account,CURRYS ONLINE,Total Housing Revenue Account,108.29,ICT,2020-21Jan_PC00129
Sandwell Metropolitan Borough Council,http://www.sandwell.gov.uk/info/200202/performance_and_spending/3233/government_procurement_cards,14-Jan-21,Total Housing Revenue Account,CURRYS ONLINE,Total Housing Revenue Account,21.66,ICT,2020-21Jan_PC00130
Sandwell Metropolitan Borough Council,http://www.sandwell.gov.uk/info/200202/performance_and_spending/3233/government_procurement_cards,14-Jan-21,Regeneration & Growth,AMZNMktplace,Regeneration And The Economy,26.66,ICT,2020-21Jan_PC00131
Sandwell Metropolitan Borough Council,http://www.sandwell.gov.uk/info/200202/performance_and_spending/3233/government_procurement_cards,14-Jan-21,Childrens Services,TOOLSTATION UK,Childrens Services,13.28,R& M - Building Maint&Imp.,2020-21Jan_PC00132
Sandwell Metropolitan Borough Council,http://www.sandwell.gov.uk/info/200202/performance_and_spending/3233/government_procurement_cards,14-Jan-21,Adult Social Care Health and Wellbeing - Total,NATIONAL PEN PROMOTION,Total Adult Social Care,171.95,Equipment & Furniture,2020-21Jan_PC00133
Sandwell Metropolitan Borough Council,http://www.sandwell.gov.uk/info/200202/performance_and_spending/3233/government_procurement_cards,14-Jan-21,Housing & Communities,OFFICE DEPOT UK,Neighbourhoods,12.74,Printing Stationery&Gen Office,2020-21Jan_PC00134
Sandwell Metropolitan Borough Council,http://www.sandwell.gov.uk/info/200202/performance_and_spending/3233/government_procurement_cards,14-Jan-21,Total Housing Revenue Account,POST OFFICE COUNTER,Total Housing Revenue Account,241.4,"Postages, Carriage & Courier Services",2020-21Jan_PC00135
Sandwell Metropolitan Borough Council,http://www.sandwell.gov.uk/info/200202/performance_and_spending/3233/government_procurement_cards,14-Jan-21,Housing & Communities,B M LTD,Neighbourhoods,75.83,R & M - Security,2020-21Jan_PC00136
Sandwell Metropolitan Borough Council,http://www.sandwell.gov.uk/info/200202/performance_and_spending/3233/government_procurement_cards,14-Jan-21,Resources (Inc SIU),OFFICE DEPOT UK,Assistant Chief Executive (Excl SIU),154.24,Materials & Consumables,2020-21Jan_PC00137
Sandwell Metropolitan Borough Council,http://www.sandwell.gov.uk/info/200202/performance_and_spending/3233/government_procurement_cards,15-Jan-21,Individual School Budgets With Inclusion,Amazon.co.uk MV5ZA04Y4,Individual School Budgets With Inclusion,79.92,Materials & Consumables,2020-21Jan_PC00138
Sandwell Metropolitan Borough Council,http://www.sandwell.gov.uk/info/200202/performance_and_spending/3233/government_procurement_cards,15-Jan-21,Childrens Services,NATIONAL ED GROUP LTD,Childrens Services,50,Ind. Emp Exp-Staff Dev&Training,2020-21Jan_PC00139
Sandwell Metropolitan Borough Council,http://www.sandwell.gov.uk/info/200202/performance_and_spending/3233/government_procurement_cards,15-Jan-21,Adult Social Care Health and Wellbeing - Total,Amazon.co.uk MV6GG5FG4,Public Health,133.32,ICT,2020-21Jan_PC00140
Sandwell Metropolitan Borough Council,http://www.sandwell.gov.uk/info/200202/performance_and_spending/3233/government_procurement_cards,15-Jan-21,Adult Social Care Health and Wellbeing - Total,NATIONAL PEN PROMOTION,Total Adult Social Care,171.95,Equipment & Furniture,2020-21Jan_PC00141
Sandwell Metropolitan Borough Council,http://www.sandwell.gov.uk/info/200202/performance_and_spending/3233/government_procurement_cards,15-Jan-21,Housing & Communities,WWW.DEFIBSTORE.CO.UK,Neighbourhoods,170,Equipment & Furniture,2020-21Jan_PC00142
Sandwell Metropolitan Borough Council,http://www.sandwell.gov.uk/info/200202/performance_and_spending/3233/government_procurement_cards,15-Jan-21,Housing & Communities,RELIANCE MEDICAL LTD,Neighbourhoods,24.32,Materials & Consumables,2020-21Jan_PC00143
Sandwell Metropolitan Borough Council,http://www.sandwell.gov.uk/info/200202/performance_and_spending/3233/government_procurement_cards,15-Jan-21,Childrens Services,VODAFONE LTD,Childrens Services,19.59,ICT,2020-21Jan_PC00144
Sandwell Metropolitan Borough Council,http://www.sandwell.gov.uk/info/200202/performance_and_spending/3233/government_procurement_cards,15-Jan-21,Adult Social Care Health and Wellbeing - Total,SAINSBURYS SACAT0558,Total Adult Social Care,4.17,Materials & Consumables,2020-21Jan_PC00145
Sandwell Metropolitan Borough Council,http://www.sandwell.gov.uk/info/200202/performance_and_spending/3233/government_procurement_cards,15-Jan-21,Housing & Communities,AMZNMktplace,Neighbourhoods,16.63,Equipment & Furniture,2020-21Jan_PC00146
Sandwell Metropolitan Borough Council,http://www.sandwell.gov.uk/info/200202/performance_and_spending/3233/government_procurement_cards,15-Jan-21,Resources (Inc SIU),TUDOR HARDWARE,Assistant Chief Executive (Excl SIU),85,Materials & Consumables,2020-21Jan_PC00147
Sandwell Metropolitan Borough Council,http://www.sandwell.gov.uk/info/200202/performance_and_spending/3233/government_procurement_cards,15-Jan-21,Housing & Communities,WWW.BRITISHNEWSPAPERAC,Neighbourhoods,10.79,Subscriptions,2020-21Jan_PC00148
Sandwell Metropolitan Borough Council,http://www.sandwell.gov.uk/info/200202/performance_and_spending/3233/government_procurement_cards,15-Jan-21,Childrens Services,AMZNMKTPLACE AMAZON.CO,Childrens Services,8.29,R& M - Building Maint&Imp.,2020-21Jan_PC00149
Sandwell Metropolitan Borough Council,http://www.sandwell.gov.uk/info/200202/performance_and_spending/3233/government_procurement_cards,15-Jan-21,Adult Social Care Health and Wellbeing - Total,AMZNMktplace,Total Adult Social Care,20.81,Equipment & Furniture,2020-21Jan_PC00150
Sandwell Metropolitan Borough Council,http://www.sandwell.gov.uk/info/200202/performance_and_spending/3233/government_procurement_cards,15-Jan-21,Regeneration & Growth,THE SMART CARD STORE,Regeneration And The Economy,83.32,Materials & Consumables,2020-21Jan_PC00151
Sandwell Metropolitan Borough Council,http://www.sandwell.gov.uk/info/200202/performance_and_spending/3233/government_procurement_cards,15-Jan-21,Housing & Communities,AMZNMktplace,Neighbourhoods,18.32,Materials & Consumables,2020-21Jan_PC00152
Sandwell Metropolitan Borough Council,http://www.sandwell.gov.uk/info/200202/performance_and_spending/3233/government_procurement_cards,15-Jan-21,Regeneration & Growth,CLEMAS & COMPANY LTD,Regeneration And The Economy,58.05,Equipment & Furniture,2020-21Jan_PC00153
Sandwell Metropolitan Borough Council,http://www.sandwell.gov.uk/info/200202/performance_and_spending/3233/government_procurement_cards,15-Jan-21,Resources (Inc SIU),AMZNMktplace,Assistant Chief Executive (Excl SIU),9.96,Ind. Emp Exp-Emp. Welfare,2020-21Jan_PC00154
Sandwell Metropolitan Borough Council,http://www.sandwell.gov.uk/info/200202/performance_and_spending/3233/government_procurement_cards,15-Jan-21,Resources (Inc SIU),AMZNMktplace,Assistant Chief Executive (Excl SIU),9.96,Ind. Emp Exp-Emp. Welfare,2020-21Jan_PC00155
Sandwell Metropolitan Borough Council,http://www.sandwell.gov.uk/info/200202/performance_and_spending/3233/government_procurement_cards,15-Jan-21,Resources (Inc SIU),AMZNMktplace,Assistant Chief Executive (Excl SIU),9.96,Ind. Emp Exp-Emp. Welfare,2020-21Jan_PC00156
Sandwell Metropolitan Borough Council,http://www.sandwell.gov.uk/info/200202/performance_and_spending/3233/government_procurement_cards,15-Jan-21,Childrens Services,NW MINE REPORTS,Childrens Services,156.61,Licences,2020-21Jan_PC00157
Sandwell Metropolitan Borough Council,http://www.sandwell.gov.uk/info/200202/performance_and_spending/3233/government_procurement_cards,15-Jan-21,Childrens Services,AMZNMKTPLACE AMAZON.CO,Childrens Services,137.73,Materials & Consumables,2020-21Jan_PC00158
Sandwell Metropolitan Borough Council,http://www.sandwell.gov.uk/info/200202/performance_and_spending/3233/government_procurement_cards,15-Jan-21,Resources (Inc SIU),Amazon.co.uk MV2DM3414,Assistant Chief Executive (Excl SIU),62.56,Printing Stationery&Gen Office,2020-21Jan_PC00159
Sandwell Metropolitan Borough Council,http://www.sandwell.gov.uk/info/200202/performance_and_spending/3233/government_procurement_cards,15-Jan-21,Resources (Inc SIU),Amazon.co.uk MV0UI04U4,Assistant Chief Executive (Excl SIU),34.25,Equipment & Furniture,2020-21Jan_PC00160
Sandwell Metropolitan Borough Council,http://www.sandwell.gov.uk/info/200202/performance_and_spending/3233/government_procurement_cards,15-Jan-21,Resources (Inc SIU),WWW.PCWB.COM,Assistant Chief Executive (Excl SIU),24.98,Printing Stationery&Gen Office,2020-21Jan_PC00161
Sandwell Metropolitan Borough Council,http://www.sandwell.gov.uk/info/200202/performance_and_spending/3233/government_procurement_cards,18-Jan-21,Resources (Inc SIU),AMZNMKTPLACE AMAZON.CO,Assistant Chief Executive (Excl SIU),6.66,Materials & Consumables,2020-21Jan_PC00162
Sandwell Metropolitan Borough Council,http://www.sandwell.gov.uk/info/200202/performance_and_spending/3233/government_procurement_cards,18-Jan-21,Resources (Inc SIU),AMZNMKTPLACE AMAZON.CO,Assistant Chief Executive (Excl SIU),14.98,Materials & Consumables,2020-21Jan_PC00163
Sandwell Metropolitan Borough Council,http://www.sandwell.gov.uk/info/200202/performance_and_spending/3233/government_procurement_cards,18-Jan-21,Resources (Inc SIU),AMZNMktplace,Assistant Chief Executive (Excl SIU),16.66,Materials & Consumables,2020-21Jan_PC00164
Sandwell Metropolitan Borough Council,http://www.sandwell.gov.uk/info/200202/performance_and_spending/3233/government_procurement_cards,18-Jan-21,Housing & Communities,ARGOS LTD,Neighbourhoods,16.67,Equipment & Furniture,2020-21Jan_PC00165
Sandwell Metropolitan Borough Council,http://www.sandwell.gov.uk/info/200202/performance_and_spending/3233/government_procurement_cards,18-Jan-21,Childrens Services,AMZ Amazon.co.uk,Childrens Services,-35.47,Printing Stationery&Gen Office,2020-21Jan_PC00166
Sandwell Metropolitan Borough Council,http://www.sandwell.gov.uk/info/200202/performance_and_spending/3233/government_procurement_cards,18-Jan-21,Resources (Inc SIU),WWW.ARCO.CO.UK,Assistant Chief Executive (Excl SIU),67.56,Protective Clothing&Uniforms,2020-21Jan_PC00167
Sandwell Metropolitan Borough Council,http://www.sandwell.gov.uk/info/200202/performance_and_spending/3233/government_procurement_cards,18-Jan-21,Housing & Communities,Amazon.co.uk MV2951L84,Neighbourhoods,39.81,Equipment & Furniture,2020-21Jan_PC00168
Sandwell Metropolitan Borough Council,http://www.sandwell.gov.uk/info/200202/performance_and_spending/3233/government_procurement_cards,18-Jan-21,Adult Social Care Health and Wellbeing - Total,AMZNMKTPLACE AMAZON.CO,Total Adult Social Care,7.47,Printing Stationery&Gen Office,2020-21Jan_PC00169
Sandwell Metropolitan Borough Council,http://www.sandwell.gov.uk/info/200202/performance_and_spending/3233/government_procurement_cards,18-Jan-21,Adult Social Care Health and Wellbeing - Total,Amazon.co.uk MV42H7ZF4,Total Adult Social Care,72.48,ICT,2020-21Jan_PC00170
Sandwell Metropolitan Borough Council,http://www.sandwell.gov.uk/info/200202/performance_and_spending/3233/government_procurement_cards,18-Jan-21,Housing & Communities,Amazon.co.uk MV8K24LF4,Neighbourhoods,17.16,Equipment & Furniture,2020-21Jan_PC00171
Sandwell Metropolitan Borough Council,http://www.sandwell.gov.uk/info/200202/performance_and_spending/3233/government_procurement_cards,18-Jan-21,Adult Social Care Health and Wellbeing - Total,AMZNMktplace,Assistant Chief Executive (Excl SIU),98.9,Equipment & Furniture,2020-21Jan_PC00172
Sandwell Metropolitan Borough Council,http://www.sandwell.gov.uk/info/200202/performance_and_spending/3233/government_procurement_cards,18-Jan-21,Total Housing Revenue Account,Amazon.co.uk MV98D1Z84,Total Housing Revenue Account,94.85,Materials & Consumables,2020-21Jan_PC00173
Sandwell Metropolitan Borough Council,http://www.sandwell.gov.uk/info/200202/performance_and_spending/3233/government_procurement_cards,18-Jan-21,Individual School Budgets With Inclusion,AMZNMktplace,Individual School Budgets With Inclusion,11.99,R& M - Building Maint&Imp.,2020-21Jan_PC00174
Sandwell Metropolitan Borough Council,http://www.sandwell.gov.uk/info/200202/performance_and_spending/3233/government_procurement_cards,18-Jan-21,Housing & Communities,AMZNMKTPLACE AMAZON.CO,Neighbourhoods,68.2,Equipment & Furniture,2020-21Jan_PC00175
Sandwell Metropolitan Borough Council,http://www.sandwell.gov.uk/info/200202/performance_and_spending/3233/government_procurement_cards,18-Jan-21,Resources (Inc SIU),AMZNMktplace,Assistant Chief Executive (Excl SIU),39.83,Ind. Emp Exp-Emp. Welfare,2020-21Jan_PC00176
Sandwell Metropolitan Borough Council,http://www.sandwell.gov.uk/info/200202/performance_and_spending/3233/government_procurement_cards,18-Jan-21,Adult Social Care Health and Wellbeing - Total,ADOBE CREATIVE CLOUD,Total Adult Social Care,41.62,Advertising & Publicity,2020-21Jan_PC00177
Sandwell Metropolitan Borough Council,http://www.sandwell.gov.uk/info/200202/performance_and_spending/3233/government_procurement_cards,18-Jan-21,Adult Social Care Health and Wellbeing - Total,AMZNMktplace,Total Adult Social Care,17.06,Printing Stationery&Gen Office,2020-21Jan_PC00178
Sandwell Metropolitan Borough Council,http://www.sandwell.gov.uk/info/200202/performance_and_spending/3233/government_procurement_cards,18-Jan-21,Adult Social Care Health and Wellbeing - Total,AMZNMktplace,Total Adult Social Care,10.99,Printing Stationery&Gen Office,2020-21Jan_PC00179
Sandwell Metropolitan Borough Council,http://www.sandwell.gov.uk/info/200202/performance_and_spending/3233/government_procurement_cards,18-Jan-21,Adult Social Care Health and Wellbeing - Total,ADOBE CREATIVE CLOUD,Public Health,41.62,Advertising & Publicity,2020-21Jan_PC00180
Sandwell Metropolitan Borough Council,http://www.sandwell.gov.uk/info/200202/performance_and_spending/3233/government_procurement_cards,18-Jan-21,Childrens Services,Amazon.co.uk MV6714314,Childrens Services,28.62,Printing Stationery&Gen Office,2020-21Jan_PC00181
Sandwell Metropolitan Borough Council,http://www.sandwell.gov.uk/info/200202/performance_and_spending/3233/government_procurement_cards,18-Jan-21,Housing & Communities,WALSALL COUNCIL,Neighbourhoods,14.17,Tenants Expenses,2020-21Jan_PC00182
Sandwell Metropolitan Borough Council,http://www.sandwell.gov.uk/info/200202/performance_and_spending/3233/government_procurement_cards,18-Jan-21,Housing & Communities,EDGBASTON PALACE,Neighbourhoods,66.67,Rents,2020-21Jan_PC00183
Sandwell Metropolitan Borough Council,http://www.sandwell.gov.uk/info/200202/performance_and_spending/3233/government_procurement_cards,19-Jan-21,Housing & Communities,OFFICE DEPOT UK,Neighbourhoods,30.49,Printing Stationery&Gen Office,2020-21Jan_PC00184
Sandwell Metropolitan Borough Council,http://www.sandwell.gov.uk/info/200202/performance_and_spending/3233/government_procurement_cards,19-Jan-21,Adult Social Care Health and Wellbeing - Total,OFFICE DEPOT UK,Total Adult Social Care,10.98,Printing Stationery&Gen Office,2020-21Jan_PC00185
Sandwell Metropolitan Borough Council,http://www.sandwell.gov.uk/info/200202/performance_and_spending/3233/government_procurement_cards,19-Jan-21,Adult Social Care Health and Wellbeing - Total,OFFICE DEPOT UK,Total Adult Social Care,160.86,Printing Stationery&Gen Office,2020-21Jan_PC00186
Sandwell Metropolitan Borough Council,http://www.sandwell.gov.uk/info/200202/performance_and_spending/3233/government_procurement_cards,19-Jan-21,Adult Social Care Health and Wellbeing - Total,OFFICE DEPOT UK,Total Adult Social Care,51.94,Printing Stationery&Gen Office,2020-21Jan_PC00187
Sandwell Metropolitan Borough Council,http://www.sandwell.gov.uk/info/200202/performance_and_spending/3233/government_procurement_cards,19-Jan-21,Housing & Communities,Amazon.co.uk MV0ZT8J44,Neighbourhoods,19.16,Printing Stationery&Gen Office,2020-21Jan_PC00188
Sandwell Metropolitan Borough Council,http://www.sandwell.gov.uk/info/200202/performance_and_spending/3233/government_procurement_cards,19-Jan-21,Childrens Services,AELP.ORG.UK,Childrens Services,49,Ind. Emp Exp-Staff Dev&Training,2020-21Jan_PC00189
Sandwell Metropolitan Borough Council,http://www.sandwell.gov.uk/info/200202/performance_and_spending/3233/government_procurement_cards,19-Jan-21,Resources (Inc SIU),AMZNMktplace,Assistant Chief Executive (Excl SIU),19.23,Materials & Consumables,2020-21Jan_PC00190
Sandwell Metropolitan Borough Council,http://www.sandwell.gov.uk/info/200202/performance_and_spending/3233/government_procurement_cards,19-Jan-21,Housing & Communities,SCREWFIX DIRECT,Neighbourhoods,8.33,Ind. Emp Exp-Emp. Welfare,2020-21Jan_PC00191
Sandwell Metropolitan Borough Council,http://www.sandwell.gov.uk/info/200202/performance_and_spending/3233/government_procurement_cards,19-Jan-21,Childrens Services,POST OFFICE COUNTER,Childrens Services,13.85,"Postages, Carriage & Courier Services",2020-21Jan_PC00192
Sandwell Metropolitan Borough Council,http://www.sandwell.gov.uk/info/200202/performance_and_spending/3233/government_procurement_cards,19-Jan-21,Adult Social Care Health and Wellbeing - Total,ADOBE CREATIVE CLOUD,Total Adult Social Care,41.62,Advertising & Publicity,2020-21Jan_PC00193
Sandwell Metropolitan Borough Council,http://www.sandwell.gov.uk/info/200202/performance_and_spending/3233/government_procurement_cards,19-Jan-21,Adult Social Care Health and Wellbeing - Total,WWW.JUSTGLOVES.CO.UK,Assistant Chief Executive (Excl SIU),119.5,Materials & Consumables,2020-21Jan_PC00194
Sandwell Metropolitan Borough Council,http://www.sandwell.gov.uk/info/200202/performance_and_spending/3233/government_procurement_cards,19-Jan-21,Housing & Communities,SECURITY INDUSTRY,Neighbourhoods,158.33,Subscriptions,2020-21Jan_PC00195
Sandwell Metropolitan Borough Council,http://www.sandwell.gov.uk/info/200202/performance_and_spending/3233/government_procurement_cards,19-Jan-21,Housing & Communities,SECURITY INDUSTRY,Neighbourhoods,158.33,Subscriptions,2020-21Jan_PC00196
Sandwell Metropolitan Borough Council,http://www.sandwell.gov.uk/info/200202/performance_and_spending/3233/government_procurement_cards,19-Jan-21,Resources (Inc SIU),Amazon.co.uk MV6FS1TV4,Assistant Chief Executive (Excl SIU),20.82,ICT,2020-21Jan_PC00197
Sandwell Metropolitan Borough Council,http://www.sandwell.gov.uk/info/200202/performance_and_spending/3233/government_procurement_cards,19-Jan-21,Resources (Inc SIU),AMZNMktplace,Assistant Chief Executive (Excl SIU),10.83,Printing Stationery&Gen Office,2020-21Jan_PC00198
Sandwell Metropolitan Borough Council,http://www.sandwell.gov.uk/info/200202/performance_and_spending/3233/government_procurement_cards,19-Jan-21,Housing & Communities,AMZNMktplace,Neighbourhoods,49.12,Fixtures & Fittings,2020-21Jan_PC00199
Sandwell Metropolitan Borough Council,http://www.sandwell.gov.uk/info/200202/performance_and_spending/3233/government_procurement_cards,19-Jan-21,Resources (Inc SIU),Amazon Prime MV6BM1J54,Assistant Chief Executive (Excl SIU),7.99,Printing Stationery&Gen Office,2020-21Jan_PC00200
Sandwell Metropolitan Borough Council,http://www.sandwell.gov.uk/info/200202/performance_and_spending/3233/government_procurement_cards,19-Jan-21,Childrens Services,INTHEEYESOFAPIXIE,Childrens Services,75,Professional Services External,2020-21Jan_PC00201
Sandwell Metropolitan Borough Council,http://www.sandwell.gov.uk/info/200202/performance_and_spending/3233/government_procurement_cards,19-Jan-21,Resources (Inc SIU),AMZNMktplace,Assistant Chief Executive (Excl SIU),13.32,Materials & Consumables,2020-21Jan_PC00202
Sandwell Metropolitan Borough Council,http://www.sandwell.gov.uk/info/200202/performance_and_spending/3233/government_procurement_cards,19-Jan-21,Regeneration & Growth,AMZNMKTPLACE AMAZON.CO,Regeneration And The Economy,13.32,Equipment & Furniture,2020-21Jan_PC00203
Sandwell Metropolitan Borough Council,http://www.sandwell.gov.uk/info/200202/performance_and_spending/3233/government_procurement_cards,20-Jan-21,Childrens Services,WWW.MYPOSTSHOP.COM,Childrens Services,98.91,Printing Stationery&Gen Office,2020-21Jan_PC00204
Sandwell Metropolitan Borough Council,http://www.sandwell.gov.uk/info/200202/performance_and_spending/3233/government_procurement_cards,20-Jan-21,Resources (Inc SIU),Book Network Intl Limi,Assistant Chief Executive (Excl SIU),99.95,Materials & Consumables,2020-21Jan_PC00205
Sandwell Metropolitan Borough Council,http://www.sandwell.gov.uk/info/200202/performance_and_spending/3233/government_procurement_cards,20-Jan-21,Housing & Communities,Amazon.co.uk MV5O90A94,Neighbourhoods,99.93,Civic Events,2020-21Jan_PC00206
Sandwell Metropolitan Borough Council,http://www.sandwell.gov.uk/info/200202/performance_and_spending/3233/government_procurement_cards,20-Jan-21,Housing & Communities,AMZNMKTPLACE AMAZON.CO,Neighbourhoods,41.72,Materials & Consumables,2020-21Jan_PC00207
Sandwell Metropolitan Borough Council,http://www.sandwell.gov.uk/info/200202/performance_and_spending/3233/government_procurement_cards,20-Jan-21,Resources (Inc SIU),AGE CO IADVISORS,Assistant Chief Executive (Excl SIU),5.49,Equipment & Furniture,2020-21Jan_PC00208
Sandwell Metropolitan Borough Council,http://www.sandwell.gov.uk/info/200202/performance_and_spending/3233/government_procurement_cards,20-Jan-21,Total Housing Revenue Account,Barriers Direct,Total Housing Revenue Account,139.48,Materials & Consumables,2020-21Jan_PC00209
Sandwell Metropolitan Borough Council,http://www.sandwell.gov.uk/info/200202/performance_and_spending/3233/government_procurement_cards,20-Jan-21,Regeneration & Growth,CURRYS ONLINE,Regeneration And The Economy,27.07,ICT,2020-21Jan_PC00210
Sandwell Metropolitan Borough Council,http://www.sandwell.gov.uk/info/200202/performance_and_spending/3233/government_procurement_cards,20-Jan-21,Adult Social Care Health and Wellbeing - Total,AMZNMktplace,Total Adult Social Care,19.57,Telephones,2020-21Jan_PC00211
Sandwell Metropolitan Borough Council,http://www.sandwell.gov.uk/info/200202/performance_and_spending/3233/government_procurement_cards,20-Jan-21,Resources (Inc SIU),AMZNMktplace,Assistant Chief Executive (Excl SIU),62.49,Printing Stationery&Gen Office,2020-21Jan_PC00212
Sandwell Metropolitan Borough Council,http://www.sandwell.gov.uk/info/200202/performance_and_spending/3233/government_procurement_cards,20-Jan-21,Housing & Communities,AMZNMKTPLACE AMAZON.CO,Neighbourhoods,24.91,Materials & Consumables,2020-21Jan_PC00213
Sandwell Metropolitan Borough Council,http://www.sandwell.gov.uk/info/200202/performance_and_spending/3233/government_procurement_cards,20-Jan-21,Adult Social Care Health and Wellbeing - Total,AMZNMktplace,Total Adult Social Care,10.15,Printing Stationery&Gen Office,2020-21Jan_PC00214
Sandwell Metropolitan Borough Council,http://www.sandwell.gov.uk/info/200202/performance_and_spending/3233/government_procurement_cards,20-Jan-21,Housing & Communities,CURRYS ONLINE,Neighbourhoods,249.99,Fixtures & Fittings,2020-21Jan_PC00215
Sandwell Metropolitan Borough Council,http://www.sandwell.gov.uk/info/200202/performance_and_spending/3233/government_procurement_cards,20-Jan-21,Housing & Communities,Amazon.co.uk MV50Q4AA4,Neighbourhoods,28.43,Materials & Consumables,2020-21Jan_PC00216
Sandwell Metropolitan Borough Council,http://www.sandwell.gov.uk/info/200202/performance_and_spending/3233/government_procurement_cards,20-Jan-21,Total Housing Revenue Account,C.B.S. (MIDLANDS) LTD,Total Housing Revenue Account,94.8,Materials & Consumables,2020-21Jan_PC00217
Sandwell Metropolitan Borough Council,http://www.sandwell.gov.uk/info/200202/performance_and_spending/3233/government_procurement_cards,20-Jan-21,Total Housing Revenue Account,C.B.S. (MIDLANDS) LTD,Total Housing Revenue Account,18.96,Materials & Consumables,2020-21Jan_PC00218
Sandwell Metropolitan Borough Council,http://www.sandwell.gov.uk/info/200202/performance_and_spending/3233/government_procurement_cards,20-Jan-21,Resources (Inc SIU),AMZNMktplace,Assistant Chief Executive (Excl SIU),72.49,"Postages, Carriage & Courier Services",2020-21Jan_PC00219
Sandwell Metropolitan Borough Council,http://www.sandwell.gov.uk/info/200202/performance_and_spending/3233/government_procurement_cards,20-Jan-21,Housing & Communities,AO RETAIL LIMITED,Neighbourhoods,199,Equipment & Furniture,2020-21Jan_PC00220
Sandwell Metropolitan Borough Council,http://www.sandwell.gov.uk/info/200202/performance_and_spending/3233/government_procurement_cards,20-Jan-21,Housing & Communities,WF  WAYFAIR 3505161334,Neighbourhoods,173.99,Equipment & Furniture,2020-21Jan_PC00221
Sandwell Metropolitan Borough Council,http://www.sandwell.gov.uk/info/200202/performance_and_spending/3233/government_procurement_cards,20-Jan-21,Housing & Communities,WWW.BEDS.CO.UK,Neighbourhoods,89.1,Equipment & Furniture,2020-21Jan_PC00222
Sandwell Metropolitan Borough Council,http://www.sandwell.gov.uk/info/200202/performance_and_spending/3233/government_procurement_cards,20-Jan-21,Housing & Communities,WWW.GOMPELS.CO.UK,Neighbourhoods,93.09,Materials & Consumables,2020-21Jan_PC00223
Sandwell Metropolitan Borough Council,http://www.sandwell.gov.uk/info/200202/performance_and_spending/3233/government_procurement_cards,21-Jan-21,Total Housing Revenue Account,DRI LENOVO,Total Housing Revenue Account,16.3,Materials & Consumables,2020-21Jan_PC00224
Sandwell Metropolitan Borough Council,http://www.sandwell.gov.uk/info/200202/performance_and_spending/3233/government_procurement_cards,21-Jan-21,Total Housing Revenue Account,AMZNMKTPLACE AMAZON.CO,Total Housing Revenue Account,19.99,ICT,2020-21Jan_PC00225
Sandwell Metropolitan Borough Council,http://www.sandwell.gov.uk/info/200202/performance_and_spending/3233/government_procurement_cards,21-Jan-21,Childrens Services,AMZNMKTPLACE AMAZON.CO,Childrens Services,40.3,"Postages, Carriage & Courier Services",2020-21Jan_PC00226
Sandwell Metropolitan Borough Council,http://www.sandwell.gov.uk/info/200202/performance_and_spending/3233/government_procurement_cards,21-Jan-21,Resources (Inc SIU),AXELOS,Assistant Chief Executive (Excl SIU),89.75,Ind. Emp Exp-Staff Dev&Training,2020-21Jan_PC00227
Sandwell Metropolitan Borough Council,http://www.sandwell.gov.uk/info/200202/performance_and_spending/3233/government_procurement_cards,21-Jan-21,Resources (Inc SIU),WESTMINSTER INSIGHT,Assistant Chief Executive (Excl SIU),225,Conference Expenses,2020-21Jan_PC00228
Sandwell Metropolitan Borough Council,http://www.sandwell.gov.uk/info/200202/performance_and_spending/3233/government_procurement_cards,21-Jan-21,Total Housing Revenue Account,SCREWFIX DIRECT,Total Housing Revenue Account,41.66,Materials & Consumables,2020-21Jan_PC00229
Sandwell Metropolitan Borough Council,http://www.sandwell.gov.uk/info/200202/performance_and_spending/3233/government_procurement_cards,21-Jan-21,Adult Social Care Health and Wellbeing - Total,AMZNMktplace,Total Adult Social Care,9.12,Equipment & Furniture,2020-21Jan_PC00230
Sandwell Metropolitan Borough Council,http://www.sandwell.gov.uk/info/200202/performance_and_spending/3233/government_procurement_cards,21-Jan-21,Adult Social Care Health and Wellbeing - Total,AMZNMktplace,Total Adult Social Care,4.15,ICT,2020-21Jan_PC00231
Sandwell Metropolitan Borough Council,http://www.sandwell.gov.uk/info/200202/performance_and_spending/3233/government_procurement_cards,21-Jan-21,Childrens Services,AMZNMktplace,Childrens Services,116.66,Equipment & Furniture,2020-21Jan_PC00232
Sandwell Metropolitan Borough Council,http://www.sandwell.gov.uk/info/200202/performance_and_spending/3233/government_procurement_cards,21-Jan-21,Regeneration & Growth,Amazon.co.uk MV4ND5EO4,Regeneration And The Economy,120.49,Telephones,2020-21Jan_PC00233
Sandwell Metropolitan Borough Council,http://www.sandwell.gov.uk/info/200202/performance_and_spending/3233/government_procurement_cards,21-Jan-21,Housing & Communities,B & Q 1276,Neighbourhoods,17.5,R& M - Building Maint&Imp.,2020-21Jan_PC00234
Sandwell Metropolitan Borough Council,http://www.sandwell.gov.uk/info/200202/performance_and_spending/3233/government_procurement_cards,21-Jan-21,Housing & Communities,AMZNMktplace,Neighbourhoods,6.52,Materials & Consumables,2020-21Jan_PC00235
Sandwell Metropolitan Borough Council,http://www.sandwell.gov.uk/info/200202/performance_and_spending/3233/government_procurement_cards,21-Jan-21,Housing & Communities,ARGOS LTD,Neighbourhoods,179.99,Fixtures & Fittings,2020-21Jan_PC00236
Sandwell Metropolitan Borough Council,http://www.sandwell.gov.uk/info/200202/performance_and_spending/3233/government_procurement_cards,21-Jan-21,Housing & Communities,Amazon.co.uk MV6XG60T4,Neighbourhoods,5.41,Materials & Consumables,2020-21Jan_PC00237
Sandwell Metropolitan Borough Council,http://www.sandwell.gov.uk/info/200202/performance_and_spending/3233/government_procurement_cards,21-Jan-21,Housing & Communities,ROYAL MAIL,Neighbourhoods,257.32,"Postages, Carriage & Courier Services",2020-21Jan_PC00238
Sandwell Metropolitan Borough Council,http://www.sandwell.gov.uk/info/200202/performance_and_spending/3233/government_procurement_cards,22-Jan-21,Housing & Communities,AMZNMKTPLACE AMAZON.CO,Neighbourhoods,21.7,Materials & Consumables,2020-21Jan_PC00239
Sandwell Metropolitan Borough Council,http://www.sandwell.gov.uk/info/200202/performance_and_spending/3233/government_procurement_cards,22-Jan-21,Total Housing Revenue Account,AMZ Amazon.co.uk,Total Housing Revenue Account,-94.85,Materials & Consumables,2020-21Jan_PC00240
Sandwell Metropolitan Borough Council,http://www.sandwell.gov.uk/info/200202/performance_and_spending/3233/government_procurement_cards,22-Jan-21,Adult Social Care Health and Wellbeing - Total,AMZNMktplace,Total Adult Social Care,8.48,Equipment & Furniture,2020-21Jan_PC00241
Sandwell Metropolitan Borough Council,http://www.sandwell.gov.uk/info/200202/performance_and_spending/3233/government_procurement_cards,22-Jan-21,Total Housing Revenue Account,AMZNMktplace,Total Housing Revenue Account,42.19,Ind. Emp Exp-Emp. Welfare,2020-21Jan_PC00242
Sandwell Metropolitan Borough Council,http://www.sandwell.gov.uk/info/200202/performance_and_spending/3233/government_procurement_cards,22-Jan-21,Adult Social Care Health and Wellbeing - Total,ADOBE STOCK,Public Health,19.99,Advertising & Publicity,2020-21Jan_PC00243
Sandwell Metropolitan Borough Council,http://www.sandwell.gov.uk/info/200202/performance_and_spending/3233/government_procurement_cards,22-Jan-21,Adult Social Care Health and Wellbeing - Total,BRYSDALES LTD,Total Adult Social Care,91,Printing Stationery&Gen Office,2020-21Jan_PC00244
Sandwell Metropolitan Borough Council,http://www.sandwell.gov.uk/info/200202/performance_and_spending/3233/government_procurement_cards,22-Jan-21,Resources (Inc SIU),POST OFFICE COUNTER,Assistant Chief Executive (Excl SIU),5.71,"Postages, Carriage & Courier Services",2020-21Jan_PC00245
Sandwell Metropolitan Borough Council,http://www.sandwell.gov.uk/info/200202/performance_and_spending/3233/government_procurement_cards,22-Jan-21,Housing & Communities,AMZNMktplace,Neighbourhoods,18.22,Equipment & Furniture,2020-21Jan_PC00246
Sandwell Metropolitan Borough Council,http://www.sandwell.gov.uk/info/200202/performance_and_spending/3233/government_procurement_cards,22-Jan-21,Resources (Inc SIU),AMZNMktplace,Assistant Chief Executive (Excl SIU),124.98,Printing Stationery&Gen Office,2020-21Jan_PC00247
Sandwell Metropolitan Borough Council,http://www.sandwell.gov.uk/info/200202/performance_and_spending/3233/government_procurement_cards,22-Jan-21,Adult Social Care Health and Wellbeing - Total,ARGOS LTD,Total Adult Social Care,33.32,Equipment & Furniture,2020-21Jan_PC00248
Sandwell Metropolitan Borough Council,http://www.sandwell.gov.uk/info/200202/performance_and_spending/3233/government_procurement_cards,22-Jan-21,Housing & Communities,AMZNMKTPLACE AMAZON.CO,Neighbourhoods,4.53,Materials & Consumables,2020-21Jan_PC00249
Sandwell Metropolitan Borough Council,http://www.sandwell.gov.uk/info/200202/performance_and_spending/3233/government_procurement_cards,22-Jan-21,Housing & Communities,AMZNMKTPLACE AMAZON.CO,Neighbourhoods,8.58,Materials & Consumables,2020-21Jan_PC00250
Sandwell Metropolitan Borough Council,http://www.sandwell.gov.uk/info/200202/performance_and_spending/3233/government_procurement_cards,22-Jan-21,Adult Social Care Health and Wellbeing - Total,AMZNMktplace,Total Adult Social Care,74.24,Equipment & Furniture,2020-21Jan_PC00251
Sandwell Metropolitan Borough Council,http://www.sandwell.gov.uk/info/200202/performance_and_spending/3233/government_procurement_cards,22-Jan-21,Adult Social Care Health and Wellbeing - Total,AMZNMktplace,Total Adult Social Care,19.99,Materials & Consumables,2020-21Jan_PC00252
Sandwell Metropolitan Borough Council,http://www.sandwell.gov.uk/info/200202/performance_and_spending/3233/government_procurement_cards,22-Jan-21,Adult Social Care Health and Wellbeing - Total,AMZNMKTPLACE AMAZON.CO,Total Adult Social Care,74.24,Equipment & Furniture,2020-21Jan_PC00253
Sandwell Metropolitan Borough Council,http://www.sandwell.gov.uk/info/200202/performance_and_spending/3233/government_procurement_cards,22-Jan-21,Housing & Communities,Amazon.co.uk MV2SG11I4,Neighbourhoods,12.98,Materials & Consumables,2020-21Jan_PC00254
Sandwell Metropolitan Borough Council,http://www.sandwell.gov.uk/info/200202/performance_and_spending/3233/government_procurement_cards,22-Jan-21,Total Housing Revenue Account,AMZNMktplace,Total Housing Revenue Account,14.49,Protective Clothing&Uniforms,2020-21Jan_PC00255
Sandwell Metropolitan Borough Council,http://www.sandwell.gov.uk/info/200202/performance_and_spending/3233/government_procurement_cards,22-Jan-21,Total Housing Revenue Account,NATIONAL RESIDENTI,Total Housing Revenue Account,155,Grant Payments,2020-21Jan_PC00256
Sandwell Metropolitan Borough Council,http://www.sandwell.gov.uk/info/200202/performance_and_spending/3233/government_procurement_cards,25-Jan-21,Adult Social Care Health and Wellbeing - Total,AMZNMKTPLACE AMAZON.CO,Total Adult Social Care,82.4,Equipment & Furniture,2020-21Jan_PC00257
Sandwell Metropolitan Borough Council,http://www.sandwell.gov.uk/info/200202/performance_and_spending/3233/government_procurement_cards,25-Jan-21,Adult Social Care Health and Wellbeing - Total,AMZNMKTPLACE AMAZON.CO,Total Adult Social Care,19.92,Materials & Consumables,2020-21Jan_PC00258
Sandwell Metropolitan Borough Council,http://www.sandwell.gov.uk/info/200202/performance_and_spending/3233/government_procurement_cards,25-Jan-21,Adult Social Care Health and Wellbeing - Total,ARC CAR WASH,Total Adult Social Care,12.5,Cleaning,2020-21Jan_PC00259
Sandwell Metropolitan Borough Council,http://www.sandwell.gov.uk/info/200202/performance_and_spending/3233/government_procurement_cards,25-Jan-21,Adult Social Care Health and Wellbeing - Total,AMZNMktplace,Total Adult Social Care,5.82,Equipment & Furniture,2020-21Jan_PC00260
Sandwell Metropolitan Borough Council,http://www.sandwell.gov.uk/info/200202/performance_and_spending/3233/government_procurement_cards,25-Jan-21,Childrens Services,BREWERS,Childrens Services,83.9,R& M - Building Maint&Imp.,2020-21Jan_PC00261
Sandwell Metropolitan Borough Council,http://www.sandwell.gov.uk/info/200202/performance_and_spending/3233/government_procurement_cards,25-Jan-21,Childrens Services,THE INSTITUTE FOR OUTD,Childrens Services,240,Employee Expenses,2020-21Jan_PC00262
Sandwell Metropolitan Borough Council,http://www.sandwell.gov.uk/info/200202/performance_and_spending/3233/government_procurement_cards,25-Jan-21,Housing & Communities,ALDI 42 772,Neighbourhoods,10.82,R& M - Building Maint&Imp.,2020-21Jan_PC00263
Sandwell Metropolitan Borough Council,http://www.sandwell.gov.uk/info/200202/performance_and_spending/3233/government_procurement_cards,25-Jan-21,Housing & Communities,AMZNMktplace,Neighbourhoods,26.99,Equipment & Furniture,2020-21Jan_PC00264
Sandwell Metropolitan Borough Council,http://www.sandwell.gov.uk/info/200202/performance_and_spending/3233/government_procurement_cards,25-Jan-21,Adult Social Care Health and Wellbeing - Total,AMZNMKTPLACE AMAZON.CO,Total Adult Social Care,19.24,ICT,2020-21Jan_PC00265
Sandwell Metropolitan Borough Council,http://www.sandwell.gov.uk/info/200202/performance_and_spending/3233/government_procurement_cards,25-Jan-21,Childrens Services,AMZNMktplace,Childrens Services,11.9,"Postages, Carriage & Courier Services",2020-21Jan_PC00266
Sandwell Metropolitan Borough Council,http://www.sandwell.gov.uk/info/200202/performance_and_spending/3233/government_procurement_cards,25-Jan-21,Housing & Communities,ARGOS LTD,Neighbourhoods,29.95,Equipment & Furniture,2020-21Jan_PC00267
Sandwell Metropolitan Borough Council,http://www.sandwell.gov.uk/info/200202/performance_and_spending/3233/government_procurement_cards,25-Jan-21,Housing & Communities,Amazon.co.uk MV7LX7VX4,Neighbourhoods,28.98,Equipment & Furniture,2020-21Jan_PC00268
Sandwell Metropolitan Borough Council,http://www.sandwell.gov.uk/info/200202/performance_and_spending/3233/government_procurement_cards,25-Jan-21,Housing & Communities,ARGOS LTD,Neighbourhoods,199.99,Fixtures & Fittings,2020-21Jan_PC00269
Sandwell Metropolitan Borough Council,http://www.sandwell.gov.uk/info/200202/performance_and_spending/3233/government_procurement_cards,25-Jan-21,Adult Social Care Health and Wellbeing - Total,AMZNMktplace,Total Adult Social Care,8.32,Equipment & Furniture,2020-21Jan_PC00270
Sandwell Metropolitan Borough Council,http://www.sandwell.gov.uk/info/200202/performance_and_spending/3233/government_procurement_cards,25-Jan-21,Adult Social Care Health and Wellbeing - Total,AMZNMKTPLACE AMAZON.CO,Total Adult Social Care,62.39,Printing Stationery&Gen Office,2020-21Jan_PC00271
Sandwell Metropolitan Borough Council,http://www.sandwell.gov.uk/info/200202/performance_and_spending/3233/government_procurement_cards,25-Jan-21,Resources (Inc SIU),Prime Video MV0Y32X44,Assistant Chief Executive (Excl SIU),4.16,Printing Stationery&Gen Office,2020-21Jan_PC00272
Sandwell Metropolitan Borough Council,http://www.sandwell.gov.uk/info/200202/performance_and_spending/3233/government_procurement_cards,25-Jan-21,Resources (Inc SIU),OFFICE DEPOT UK,Assistant Chief Executive (Excl SIU),56.97,Materials & Consumables,2020-21Jan_PC00273
Sandwell Metropolitan Borough Council,http://www.sandwell.gov.uk/info/200202/performance_and_spending/3233/government_procurement_cards,25-Jan-21,Resources (Inc SIU),OFFICE DEPOT UK,Assistant Chief Executive (Excl SIU),64.92,Materials & Consumables,2020-21Jan_PC00274
Sandwell Metropolitan Borough Council,http://www.sandwell.gov.uk/info/200202/performance_and_spending/3233/government_procurement_cards,25-Jan-21,Resources (Inc SIU),Amazon Prime MV0O74XN4,Assistant Chief Executive (Excl SIU),6.66,Materials & Consumables,2020-21Jan_PC00275
Sandwell Metropolitan Borough Council,http://www.sandwell.gov.uk/info/200202/performance_and_spending/3233/government_procurement_cards,26-Jan-21,Adult Social Care Health and Wellbeing - Total,OFFICE DEPOT UK,Total Adult Social Care,32,Printing Stationery&Gen Office,2020-21Jan_PC00276
Sandwell Metropolitan Borough Council,http://www.sandwell.gov.uk/info/200202/performance_and_spending/3233/government_procurement_cards,26-Jan-21,Adult Social Care Health and Wellbeing - Total,OFFICE DEPOT UK,Total Adult Social Care,4.17,Printing Stationery&Gen Office,2020-21Jan_PC00277
Sandwell Metropolitan Borough Council,http://www.sandwell.gov.uk/info/200202/performance_and_spending/3233/government_procurement_cards,26-Jan-21,Housing & Communities,AMZNMKTPLACE AMAZON.CO,Neighbourhoods,15.04,Materials & Consumables,2020-21Jan_PC00278
Sandwell Metropolitan Borough Council,http://www.sandwell.gov.uk/info/200202/performance_and_spending/3233/government_procurement_cards,26-Jan-21,Housing & Communities,Amazon Prime MV6EJ9ME4,Neighbourhoods,6.66,"Postages, Carriage & Courier Services",2020-21Jan_PC00279
Sandwell Metropolitan Borough Council,http://www.sandwell.gov.uk/info/200202/performance_and_spending/3233/government_procurement_cards,26-Jan-21,Housing & Communities,AMZNMktplace,Neighbourhoods,24.15,Equipment & Furniture,2020-21Jan_PC00280
Sandwell Metropolitan Borough Council,http://www.sandwell.gov.uk/info/200202/performance_and_spending/3233/government_procurement_cards,26-Jan-21,Regeneration & Growth,PROCONFERENCES.COM,Regeneration And The Economy,170,Conference Expenses,2020-21Jan_PC00281
Sandwell Metropolitan Borough Council,http://www.sandwell.gov.uk/info/200202/performance_and_spending/3233/government_procurement_cards,26-Jan-21,Regeneration & Growth,PROCONFERENCES.COM,Regeneration And The Economy,170,Conference Expenses,2020-21Jan_PC00282
Sandwell Metropolitan Borough Council,http://www.sandwell.gov.uk/info/200202/performance_and_spending/3233/government_procurement_cards,26-Jan-21,Total Housing Revenue Account,WWW.KANE.CO.UK,Total Housing Revenue Account,756.5,Equipment & Furniture,2020-21Jan_PC00283
Sandwell Metropolitan Borough Council,http://www.sandwell.gov.uk/info/200202/performance_and_spending/3233/government_procurement_cards,26-Jan-21,Housing & Communities,SECURITY INDUSTRY,Neighbourhoods,158.33,Subscriptions,2020-21Jan_PC00284
Sandwell Metropolitan Borough Council,http://www.sandwell.gov.uk/info/200202/performance_and_spending/3233/government_procurement_cards,26-Jan-21,Housing & Communities,Amazon.co.uk MV18F35Y4,Neighbourhoods,11.72,Equipment & Furniture,2020-21Jan_PC00285
Sandwell Metropolitan Borough Council,http://www.sandwell.gov.uk/info/200202/performance_and_spending/3233/government_procurement_cards,26-Jan-21,Housing & Communities,ULTRA SECURE LTD,Neighbourhoods,144.89,R & M - Security,2020-21Jan_PC00286
Sandwell Metropolitan Borough Council,http://www.sandwell.gov.uk/info/200202/performance_and_spending/3233/government_procurement_cards,26-Jan-21,Housing & Communities,B & Q 1276,Neighbourhoods,30,R& M - Building Maint&Imp.,2020-21Jan_PC00287
Sandwell Metropolitan Borough Council,http://www.sandwell.gov.uk/info/200202/performance_and_spending/3233/government_procurement_cards,26-Jan-21,Resources (Inc SIU),AMZ arsuk,Assistant Chief Executive (Excl SIU),-23.67,ICT,2020-21Jan_PC00288
Sandwell Metropolitan Borough Council,http://www.sandwell.gov.uk/info/200202/performance_and_spending/3233/government_procurement_cards,26-Jan-21,Housing & Communities,AMZNMktplace,Neighbourhoods,22.99,Equipment & Furniture,2020-21Jan_PC00289
Sandwell Metropolitan Borough Council,http://www.sandwell.gov.uk/info/200202/performance_and_spending/3233/government_procurement_cards,26-Jan-21,Housing & Communities,AMZNMKTPLACE AMAZON.CO,Neighbourhoods,19.6,Equipment & Furniture,2020-21Jan_PC00290
Sandwell Metropolitan Borough Council,http://www.sandwell.gov.uk/info/200202/performance_and_spending/3233/government_procurement_cards,26-Jan-21,Housing & Communities,AMZNMktplace,Neighbourhoods,86.98,Equipment & Furniture,2020-21Jan_PC00291
Sandwell Metropolitan Borough Council,http://www.sandwell.gov.uk/info/200202/performance_and_spending/3233/government_procurement_cards,26-Jan-21,Resources (Inc SIU),VIKING UK,Assistant Chief Executive (Excl SIU),149,Equipment & Furniture,2020-21Jan_PC00292
Sandwell Metropolitan Borough Council,http://www.sandwell.gov.uk/info/200202/performance_and_spending/3233/government_procurement_cards,26-Jan-21,Childrens Services,AMZNMktplace,Childrens Services,84.11,Equipment & Furniture,2020-21Jan_PC00293
Sandwell Metropolitan Borough Council,http://www.sandwell.gov.uk/info/200202/performance_and_spending/3233/government_procurement_cards,26-Jan-21,Resources (Inc SIU),Amazon.co.uk MV3PJ05Q4,Assistant Chief Executive (Excl SIU),208.25,ICT,2020-21Jan_PC00294
Sandwell Metropolitan Borough Council,http://www.sandwell.gov.uk/info/200202/performance_and_spending/3233/government_procurement_cards,26-Jan-21,Resources (Inc SIU),AMZNMKTPLACE AMAZON.CO,Assistant Chief Executive (Excl SIU),12.58,Printing Stationery&Gen Office,2020-21Jan_PC00295
Sandwell Metropolitan Borough Council,http://www.sandwell.gov.uk/info/200202/performance_and_spending/3233/government_procurement_cards,26-Jan-21,Resources (Inc SIU),AMZNMktplace,Assistant Chief Executive (Excl SIU),12.58,Printing Stationery&Gen Office,2020-21Jan_PC00296
Sandwell Metropolitan Borough Council,http://www.sandwell.gov.uk/info/200202/performance_and_spending/3233/government_procurement_cards,26-Jan-21,Resources (Inc SIU),AMZNMktplace,Assistant Chief Executive (Excl SIU),12.58,Printing Stationery&Gen Office,2020-21Jan_PC00297
Sandwell Metropolitan Borough Council,http://www.sandwell.gov.uk/info/200202/performance_and_spending/3233/government_procurement_cards,26-Jan-21,Housing & Communities,AMZNMktplace,Neighbourhoods,3.74,Equipment & Furniture,2020-21Jan_PC00298
Sandwell Metropolitan Borough Council,http://www.sandwell.gov.uk/info/200202/performance_and_spending/3233/government_procurement_cards,27-Jan-21,Adult Social Care Health and Wellbeing - Total,AMZNMKTPLACE AMAZON.CO,Total Adult Social Care,10.53,Catering Equipment,2020-21Jan_PC00299
Sandwell Metropolitan Borough Council,http://www.sandwell.gov.uk/info/200202/performance_and_spending/3233/government_procurement_cards,27-Jan-21,Housing & Communities,Amazon.co.uk MV7MC38R4,Neighbourhoods,20.82,Printing Stationery&Gen Office,2020-21Jan_PC00300
Sandwell Metropolitan Borough Council,http://www.sandwell.gov.uk/info/200202/performance_and_spending/3233/government_procurement_cards,27-Jan-21,Housing & Communities,AMZNMktplace,Neighbourhoods,24.12,Equipment & Furniture,2020-21Jan_PC00301
Sandwell Metropolitan Borough Council,http://www.sandwell.gov.uk/info/200202/performance_and_spending/3233/government_procurement_cards,27-Jan-21,Total Housing Revenue Account,CURRYS ONLINE,Total Housing Revenue Account,21.66,ICT,2020-21Jan_PC00302
Sandwell Metropolitan Borough Council,http://www.sandwell.gov.uk/info/200202/performance_and_spending/3233/government_procurement_cards,27-Jan-21,Resources (Inc SIU),GOVERNMENT EVENTS,Assistant Chief Executive (Excl SIU),289,Ind. Emp Exp-Staff Dev&Training,2020-21Jan_PC00303
Sandwell Metropolitan Borough Council,http://www.sandwell.gov.uk/info/200202/performance_and_spending/3233/government_procurement_cards,27-Jan-21,Adult Social Care Health and Wellbeing - Total,ALDI 103 772,Total Adult Social Care,9.5,Materials & Consumables,2020-21Jan_PC00304
Sandwell Metropolitan Borough Council,http://www.sandwell.gov.uk/info/200202/performance_and_spending/3233/government_procurement_cards,27-Jan-21,Housing & Communities,AMZNMKTPLACE AMAZON.CO,Neighbourhoods,17.77,Materials & Consumables,2020-21Jan_PC00305
Sandwell Metropolitan Borough Council,http://www.sandwell.gov.uk/info/200202/performance_and_spending/3233/government_procurement_cards,27-Jan-21,Resources (Inc SIU),AMZNMktplace,Assistant Chief Executive (Excl SIU),24.99,ICT,2020-21Jan_PC00306
Sandwell Metropolitan Borough Council,http://www.sandwell.gov.uk/info/200202/performance_and_spending/3233/government_procurement_cards,27-Jan-21,Housing & Communities,Amazon Prime MV89R0BN4,Neighbourhoods,7.99,Subscriptions,2020-21Jan_PC00307
Sandwell Metropolitan Borough Council,http://www.sandwell.gov.uk/info/200202/performance_and_spending/3233/government_procurement_cards,27-Jan-21,Housing & Communities,AMZNMktplace,Neighbourhoods,9.08,Materials & Consumables,2020-21Jan_PC00308
Sandwell Metropolitan Borough Council,http://www.sandwell.gov.uk/info/200202/performance_and_spending/3233/government_procurement_cards,28-Jan-21,Resources (Inc SIU),AMZNMKTPLACE AMAZON.CO,Assistant Chief Executive (Excl SIU),22.49,Printing Stationery&Gen Office,2020-21Jan_PC00309
Sandwell Metropolitan Borough Council,http://www.sandwell.gov.uk/info/200202/performance_and_spending/3233/government_procurement_cards,28-Jan-21,Childrens Services,AMZNMKTPLACE AMAZON.CO,Childrens Services,108.9,Equipment & Furniture,2020-21Jan_PC00310
Sandwell Metropolitan Borough Council,http://www.sandwell.gov.uk/info/200202/performance_and_spending/3233/government_procurement_cards,28-Jan-21,Total Housing Revenue Account,AMZ Herculese,Total Housing Revenue Account,-18.06,Equipment & Furniture,2020-21Jan_PC00311
Sandwell Metropolitan Borough Council,http://www.sandwell.gov.uk/info/200202/performance_and_spending/3233/government_procurement_cards,28-Jan-21,Housing & Communities,B&M 262 - WILLENHALL,Neighbourhoods,5,Printing Stationery&Gen Office,2020-21Jan_PC00312
Sandwell Metropolitan Borough Council,http://www.sandwell.gov.uk/info/200202/performance_and_spending/3233/government_procurement_cards,28-Jan-21,Housing & Communities,B&M 262 - WILLENHALL,Neighbourhoods,17.44,Equipment & Furniture,2020-21Jan_PC00313
Sandwell Metropolitan Borough Council,http://www.sandwell.gov.uk/info/200202/performance_and_spending/3233/government_procurement_cards,28-Jan-21,Adult Social Care Health and Wellbeing - Total,AMZNMktplace,Public Health,75.78,ICT,2020-21Jan_PC00314
Sandwell Metropolitan Borough Council,http://www.sandwell.gov.uk/info/200202/performance_and_spending/3233/government_procurement_cards,28-Jan-21,Resources (Inc SIU),POST OFFICE COUNTER,Assistant Chief Executive (Excl SIU),14.67,"Postages, Carriage & Courier Services",2020-21Jan_PC00315
Sandwell Metropolitan Borough Council,http://www.sandwell.gov.uk/info/200202/performance_and_spending/3233/government_procurement_cards,28-Jan-21,Total Housing Revenue Account,ARGOS LTD,Total Housing Revenue Account,20.82,ICT,2020-21Jan_PC00316
Sandwell Metropolitan Borough Council,http://www.sandwell.gov.uk/info/200202/performance_and_spending/3233/government_procurement_cards,28-Jan-21,Adult Social Care Health and Wellbeing - Total,AMZNMktplace,Public Health,26.82,Printing Stationery&Gen Office,2020-21Jan_PC00317
Sandwell Metropolitan Borough Council,http://www.sandwell.gov.uk/info/200202/performance_and_spending/3233/government_procurement_cards,28-Jan-21,Housing & Communities,Amazon.co.uk MV8BO06O4,Neighbourhoods,8.32,Materials & Consumables,2020-21Jan_PC00318
Sandwell Metropolitan Borough Council,http://www.sandwell.gov.uk/info/200202/performance_and_spending/3233/government_procurement_cards,28-Jan-21,Housing & Communities,NOTHING BUT PADLOC,Neighbourhoods,110.82,R & M - Security,2020-21Jan_PC00319
Sandwell Metropolitan Borough Council,http://www.sandwell.gov.uk/info/200202/performance_and_spending/3233/government_procurement_cards,28-Jan-21,Total Housing Revenue Account,POST OFFICE COUNTER,Total Housing Revenue Account,4.85,"Postages, Carriage & Courier Services",2020-21Jan_PC00320
Sandwell Metropolitan Borough Council,http://www.sandwell.gov.uk/info/200202/performance_and_spending/3233/government_procurement_cards,28-Jan-21,Regeneration & Growth,Amazon.co.uk MV5EL98Y4,Regeneration And The Economy,124.99,Equipment & Furniture,2020-21Jan_PC00321
Sandwell Metropolitan Borough Council,http://www.sandwell.gov.uk/info/200202/performance_and_spending/3233/government_procurement_cards,28-Jan-21,Regeneration & Growth,ARCO LTD,Regeneration And The Economy,21.37,Protective Clothing&Uniforms,2020-21Jan_PC00322
Sandwell Metropolitan Borough Council,http://www.sandwell.gov.uk/info/200202/performance_and_spending/3233/government_procurement_cards,28-Jan-21,Total Housing Revenue Account,ARGOS LTD,Total Housing Revenue Account,14.96,Telephones,2020-21Jan_PC00323
Sandwell Metropolitan Borough Council,http://www.sandwell.gov.uk/info/200202/performance_and_spending/3233/government_procurement_cards,28-Jan-21,Housing & Communities,Great Barr Sawmills Lt,Neighbourhoods,41.5,Materials & Consumables,2020-21Jan_PC00324
Sandwell Metropolitan Borough Council,http://www.sandwell.gov.uk/info/200202/performance_and_spending/3233/government_procurement_cards,28-Jan-21,Housing & Communities,Great Barr Sawmills Lt,Neighbourhoods,9.08,Materials & Consumables,2020-21Jan_PC00325
Sandwell Metropolitan Borough Council,http://www.sandwell.gov.uk/info/200202/performance_and_spending/3233/government_procurement_cards,29-Jan-21,Resources (Inc SIU),OFFICE DEPOT UK,Assistant Chief Executive (Excl SIU),41.63,Printing Stationery&Gen Office,2020-21Jan_PC00326
Sandwell Metropolitan Borough Council,http://www.sandwell.gov.uk/info/200202/performance_and_spending/3233/government_procurement_cards,29-Jan-21,Housing & Communities,OFFICE DEPOT UK,Neighbourhoods,80.46,Printing Stationery&Gen Office,2020-21Jan_PC00327
Sandwell Metropolitan Borough Council,http://www.sandwell.gov.uk/info/200202/performance_and_spending/3233/government_procurement_cards,29-Jan-21,Resources (Inc SIU),Amazon.co.uk MV3OZ9DZ4,Assistant Chief Executive (Excl SIU),37.32,Printing Stationery&Gen Office,2020-21Jan_PC00328
Sandwell Metropolitan Borough Council,http://www.sandwell.gov.uk/info/200202/performance_and_spending/3233/government_procurement_cards,29-Jan-21,Adult Social Care Health and Wellbeing - Total,AMZNMktplace,Total Adult Social Care,19.97,Equipment & Furniture,2020-21Jan_PC00329
Sandwell Metropolitan Borough Council,http://www.sandwell.gov.uk/info/200202/performance_and_spending/3233/government_procurement_cards,29-Jan-21,Adult Social Care Health and Wellbeing - Total,AMZNMktplace,Public Health,27.91,ICT,2020-21Jan_PC00330
Sandwell Metropolitan Borough Council,http://www.sandwell.gov.uk/info/200202/performance_and_spending/3233/government_procurement_cards,29-Jan-21,Adult Social Care Health and Wellbeing - Total,AMZNMktplace,Public Health,37.46,ICT,2020-21Jan_PC00331
Sandwell Metropolitan Borough Council,http://www.sandwell.gov.uk/info/200202/performance_and_spending/3233/government_procurement_cards,29-Jan-21,Resources (Inc SIU),AMZNMktplace,Assistant Chief Executive (Excl SIU),20.82,Equipment & Furniture,2020-21Jan_PC00332
Sandwell Metropolitan Borough Council,http://www.sandwell.gov.uk/info/200202/performance_and_spending/3233/government_procurement_cards,29-Jan-21,Resources (Inc SIU),SAINSBURYS SACAT0558,Assistant Chief Executive (Excl SIU),14.6,Catering Provisions,2020-21Jan_PC00333
Sandwell Metropolitan Borough Council,http://www.sandwell.gov.uk/info/200202/performance_and_spending/3233/government_procurement_cards,29-Jan-21,Housing & Communities,ASDA STORES,Neighbourhoods,7.92,"Postages, Carriage & Courier Services",2020-21Jan_PC00334
Sandwell Metropolitan Borough Council,http://www.sandwell.gov.uk/info/200202/performance_and_spending/3233/government_procurement_cards,29-Jan-21,Regeneration & Growth,BSRIA LIMITED,Regeneration And The Economy,101,Printing Stationery&Gen Office,2020-21Jan_PC00335
Sandwell Metropolitan Borough Council,http://www.sandwell.gov.uk/info/200202/performance_and_spending/3233/government_procurement_cards,29-Jan-21,Individual School Budgets With Inclusion,WWW.NATIONALTRUST.,Individual School Budgets With Inclusion,78,Learning Resources,2020-21Jan_PC00336
Sandwell Metropolitan Borough Council,http://www.sandwell.gov.uk/info/200202/performance_and_spending/3233/government_procurement_cards,29-Jan-21,Housing & Communities,DVLA Tachograph Web,Neighbourhoods,190,Subscriptions,2020-21Jan_PC00337
Sandwell Metropolitan Borough Council,http://www.sandwell.gov.uk/info/200202/performance_and_spending/3233/government_procurement_cards,29-Jan-21,Housing & Communities,PAYPAL  S POINTER,Neighbourhoods,90.85,Materials & Consumables,2020-21Jan_PC00338
Sandwell Metropolitan Borough Council,http://www.sandwell.gov.uk/info/200202/performance_and_spending/3233/government_procurement_cards,29-Jan-21,Adult Social Care Health and Wellbeing - Total,AMZNMktplace,Assistant Chief Executive (Excl SIU),13.98,Protective Clothing&Uniforms,2020-21Jan_PC00339
Sandwell Metropolitan Borough Council,http://www.sandwell.gov.uk/info/200202/performance_and_spending/3233/government_procurement_cards,29-Jan-21,Childrens Services,Amazon.co.uk MV5AW5DC4,Childrens Services,124.65,Equipment & Furniture,2020-21Jan_PC00340
Sandwell Metropolitan Borough Council,http://www.sandwell.gov.uk/info/200202/performance_and_spending/3233/government_procurement_cards,29-Jan-21,Childrens Services,Amazon.co.uk MV8A01DW4,Childrens Services,124.65,Equipment & Furniture,2020-21Jan_PC00341
Sandwell Metropolitan Borough Council,http://www.sandwell.gov.uk/info/200202/performance_and_spending/3233/government_procurement_cards,29-Jan-21,Housing & Communities,EXPRESS MATTING SE,Neighbourhoods,159.65,Grounds Maint&Improvements,2020-21Jan_PC00342
Sandwell Metropolitan Borough Council,http://www.sandwell.gov.uk/info/200202/performance_and_spending/3233/government_procurement_cards,01-Feb-21,Resources (Inc SIU),EBUYER (UK) LTD,Assistant Chief Executive (Excl SIU),33.31,Equipment & Furniture,2020-21Jan_PC00343
Sandwell Metropolitan Borough Council,http://www.sandwell.gov.uk/info/200202/performance_and_spending/3233/government_procurement_cards,01-Feb-21,Resources (Inc SIU),Amazon.co.uk MV71S7K24,Assistant Chief Executive (Excl SIU),5.97,ICT,2020-21Jan_PC00344
Sandwell Metropolitan Borough Council,http://www.sandwell.gov.uk/info/200202/performance_and_spending/3233/government_procurement_cards,01-Feb-21,Childrens Services,Amazon.co.uk MV5HH72U4,Childrens Services,20.62,Printing Stationery&Gen Office,2020-21Jan_PC00345
Sandwell Metropolitan Borough Council,http://www.sandwell.gov.uk/info/200202/performance_and_spending/3233/government_procurement_cards,01-Feb-21,Resources (Inc SIU),AMZNMKTPLACE AMAZON.CO,Assistant Chief Executive (Excl SIU),67.17,Printing Stationery&Gen Office,2020-21Jan_PC00346
Sandwell Metropolitan Borough Council,http://www.sandwell.gov.uk/info/200202/performance_and_spending/3233/government_procurement_cards,01-Feb-21,Total Housing Revenue Account,IGPP LTD,Total Housing Revenue Account,396,Ind. Emp Exp-Staff Dev&Training,2020-21Jan_PC00347
Sandwell Metropolitan Borough Council,http://www.sandwell.gov.uk/info/200202/performance_and_spending/3233/government_procurement_cards,01-Feb-21,Adult Social Care Health and Wellbeing - Total,AMZNMktplace,Total Adult Social Care,44.99,Equipment & Furniture,2020-21Jan_PC00348
Sandwell Metropolitan Borough Council,http://www.sandwell.gov.uk/info/200202/performance_and_spending/3233/government_procurement_cards,01-Feb-21,Childrens Services,EB  WEBINAR EFFECTIVE,Childrens Services,79.98,Conference Expenses,2020-21Jan_PC00349
Sandwell Metropolitan Borough Council,http://www.sandwell.gov.uk/info/200202/performance_and_spending/3233/government_procurement_cards,01-Feb-21,Housing & Communities,AMZNMktplace,Neighbourhoods,12.74,Materials & Consumables,2020-21Jan_PC00350
Sandwell Metropolitan Borough Council,http://www.sandwell.gov.uk/info/200202/performance_and_spending/3233/government_procurement_cards,01-Feb-21,Housing & Communities,Amazon.co.uk MV1N23244,Neighbourhoods,18.29,Materials & Consumables,2020-21Jan_PC00351
Sandwell Metropolitan Borough Council,http://www.sandwell.gov.uk/info/200202/performance_and_spending/3233/government_procurement_cards,01-Feb-21,Housing & Communities,AMZNMktplace,Neighbourhoods,83.12,Materials & Consumables,2020-21Jan_PC00352
Sandwell Metropolitan Borough Council,http://www.sandwell.gov.uk/info/200202/performance_and_spending/3233/government_procurement_cards,01-Feb-21,Resources (Inc SIU),Amazon.co.uk MV8UD8IK4,Assistant Chief Executive (Excl SIU),24.84,Materials & Consumables,2020-21Jan_PC00353
Sandwell Metropolitan Borough Council,http://www.sandwell.gov.uk/info/200202/performance_and_spending/3233/government_procurement_cards,01-Feb-21,Resources (Inc SIU),AMZNMktplace,Assistant Chief Executive (Excl SIU),45.62,Ind. Emp Exp-Emp. Welfare,2020-21Jan_PC00354
Sandwell Metropolitan Borough Council,http://www.sandwell.gov.uk/info/200202/performance_and_spending/3233/government_procurement_cards,01-Feb-21,Adult Social Care Health and Wellbeing - Total,Amazon.co.uk MV8378U44,Assistant Chief Executive (Excl SIU),55.56,Refuse Collection,2020-21Jan_PC00355
Sandwell Metropolitan Borough Council,http://www.sandwell.gov.uk/info/200202/performance_and_spending/3233/government_procurement_cards,01-Feb-21,Total Housing Revenue Account,AMZNMktplace,Total Housing Revenue Account,40.34,Employee Expenses,2020-21Jan_PC00356
Sandwell Metropolitan Borough Council,http://www.sandwell.gov.uk/info/200202/performance_and_spending/3233/government_procurement_cards,01-Feb-21,Housing & Communities,SCREWFIX DIRECT,Neighbourhoods,36.55,Materials & Consumables,2020-21Jan_PC00357
Sandwell Metropolitan Borough Council,http://www.sandwell.gov.uk/info/200202/performance_and_spending/3233/government_procurement_cards,01-Feb-21,Resources (Inc SIU),CHARTERED INSTITUTE OF,Assistant Chief Executive (Excl SIU),240,Ind. Emp Exp-Staff Dev&Training,2020-21Jan_PC00358
Sandwell Metropolitan Borough Council,http://www.sandwell.gov.uk/info/200202/performance_and_spending/3233/government_procurement_cards,01-Feb-21,Resources (Inc SIU),WHOOPS A DAISY,Assistant Chief Executive (Excl SIU),25,Professional Services External,2020-21Jan_PC00359
Sandwell Metropolitan Borough Council,http://www.sandwell.gov.uk/info/200202/performance_and_spending/3233/government_procurement_cards,01-Feb-21,Housing & Communities,AMZNMKTPLACE AMAZON.CO,Neighbourhoods,103.96,Equipment & Furniture,2020-21Jan_PC00360
Sandwell Metropolitan Borough Council,http://www.sandwell.gov.uk/info/200202/performance_and_spending/3233/government_procurement_cards,01-Feb-21,Regeneration & Growth,AMZNMktplace,Regeneration And The Economy,9.15,Printing Stationery&Gen Office,2020-21Jan_PC00361
Sandwell Metropolitan Borough Council,http://www.sandwell.gov.uk/info/200202/performance_and_spending/3233/government_procurement_cards,01-Feb-21,Total Housing Revenue Account,DPD WL,Total Housing Revenue Account,55.49,"Postages, Carriage & Courier Services",2020-21Jan_PC00362
Sandwell Metropolitan Borough Council,http://www.sandwell.gov.uk/info/200202/performance_and_spending/3233/government_procurement_cards,01-Feb-21,Total Housing Revenue Account,DPD WL,Total Housing Revenue Account,55.49,"Postages, Carriage & Courier Services",2020-21Jan_PC00363
Sandwell Metropolitan Borough Council,http://www.sandwell.gov.uk/info/200202/performance_and_spending/3233/government_procurement_cards,01-Feb-21,Housing & Communities,AMZNMKTPLACE AMAZON.CO,Neighbourhoods,44.14,Materials & Consumables,2020-21Jan_PC00364
Sandwell Metropolitan Borough Council,http://www.sandwell.gov.uk/info/200202/performance_and_spending/3233/government_procurement_cards,01-Feb-21,Housing & Communities,ARGOS LTD,Neighbourhoods,36.62,Equipment & Furniture,2020-21Jan_PC00365
Sandwell Metropolitan Borough Council,http://www.sandwell.gov.uk/info/200202/performance_and_spending/3233/government_procurement_cards,01-Feb-21,Housing & Communities,AMZNMKTPLACE AMAZON.CO,Neighbourhoods,4.12,R& M - Building Maint&Imp.,2020-21Jan_PC00366
Sandwell Metropolitan Borough Council,http://www.sandwell.gov.uk/info/200202/performance_and_spending/3233/government_procurement_cards,02-Feb-21,Total Housing Revenue Account,CAPITA GAS,Total Housing Revenue Account,50,Professional Services External,2020-21Jan_PC00367
Sandwell Metropolitan Borough Council,http://www.sandwell.gov.uk/info/200202/performance_and_spending/3233/government_procurement_cards,02-Feb-21,Regeneration & Growth,STANFORD MARSH LTD,Regeneration And The Economy,1138,Subscriptions,2020-21Jan_PC00368
Sandwell Metropolitan Borough Council,http://www.sandwell.gov.uk/info/200202/performance_and_spending/3233/government_procurement_cards,02-Feb-21,Total Housing Revenue Account,CAPITA GAS,Total Housing Revenue Account,2.2,Professional Services External,2020-21Jan_PC00369
Sandwell Metropolitan Borough Council,http://www.sandwell.gov.uk/info/200202/performance_and_spending/3233/government_procurement_cards,02-Feb-21,Adult Social Care Health and Wellbeing - Total,Amazon.co.uk MV12I0R14,Total Adult Social Care,19.52,Materials & Consumables,2020-21Jan_PC00370
Sandwell Metropolitan Borough Council,http://www.sandwell.gov.uk/info/200202/performance_and_spending/3233/government_procurement_cards,02-Feb-21,Adult Social Care Health and Wellbeing - Total,AMZNMktplace,Public Health,15.39,ICT,2020-21Jan_PC00371
Sandwell Metropolitan Borough Council,http://www.sandwell.gov.uk/info/200202/performance_and_spending/3233/government_procurement_cards,02-Feb-21,Adult Social Care Health and Wellbeing - Total,WWW.BSIGROUP.COM,Public Health,93,Subscriptions,2020-21Jan_PC00372
Sandwell Metropolitan Borough Council,http://www.sandwell.gov.uk/info/200202/performance_and_spending/3233/government_procurement_cards,02-Feb-21,Resources (Inc SIU),OFFICE DEPOT UK,Assistant Chief Executive (Excl SIU),40.34,Printing Stationery&Gen Office,2020-21Jan_PC00373
Sandwell Metropolitan Borough Council,http://www.sandwell.gov.uk/info/200202/performance_and_spending/3233/government_procurement_cards,02-Feb-21,Total Housing Revenue Account,SCREWFIX DIRECT,Total Housing Revenue Account,6.27,Materials & Consumables,2020-21Jan_PC00374
Sandwell Metropolitan Borough Council,http://www.sandwell.gov.uk/info/200202/performance_and_spending/3233/government_procurement_cards,02-Feb-21,Childrens Services,AMZNMktplace,Childrens Services,183.49,Equipment & Furniture,2020-21Jan_PC00375
Sandwell Metropolitan Borough Council,http://www.sandwell.gov.uk/info/200202/performance_and_spending/3233/government_procurement_cards,02-Feb-21,Resources (Inc SIU),ACCA,Assistant Chief Executive (Excl SIU),173,Ind. Emp Exp-Staff Dev&Training,2020-21Jan_PC00376
Sandwell Metropolitan Borough Council,http://www.sandwell.gov.uk/info/200202/performance_and_spending/3233/government_procurement_cards,02-Feb-21,Resources (Inc SIU),ACCA,Assistant Chief Executive (Excl SIU),173,Ind. Emp Exp-Staff Dev&Training,2020-21Jan_PC00377
Sandwell Metropolitan Borough Council,http://www.sandwell.gov.uk/info/200202/performance_and_spending/3233/government_procurement_cards,02-Feb-21,Housing & Communities,AMZNMktplace,Neighbourhoods,9.99,R& M - Building Maint&Imp.,2020-21Jan_PC00378
Sandwell Metropolitan Borough Council,http://www.sandwell.gov.uk/info/200202/performance_and_spending/3233/government_procurement_cards,02-Feb-21,Housing & Communities,ARGOS LTD,Neighbourhoods,8.32,Equipment & Furniture,2020-21Jan_PC00379
Sandwell Metropolitan Borough Council,http://www.sandwell.gov.uk/info/200202/performance_and_spending/3233/government_procurement_cards,03-Feb-21,Total Housing Revenue Account,OFFICE DEPOT UK,Total Housing Revenue Account,24.57,Printing Stationery&Gen Office,2020-21Jan_PC00380
Sandwell Metropolitan Borough Council,http://www.sandwell.gov.uk/info/200202/performance_and_spending/3233/government_procurement_cards,03-Feb-21,Total Housing Revenue Account,OFFICE DEPOT UK,Total Housing Revenue Account,0.95,Printing Stationery&Gen Office,2020-21Jan_PC00381
Sandwell Metropolitan Borough Council,http://www.sandwell.gov.uk/info/200202/performance_and_spending/3233/government_procurement_cards,03-Feb-21,Housing Revenue Account Capital,THE BATTERY MASTERS,Housing Revenue Account Capital,34.71,Materials & Consumables,2020-21Jan_PC00382
Sandwell Metropolitan Borough Council,http://www.sandwell.gov.uk/info/200202/performance_and_spending/3233/government_procurement_cards,03-Feb-21,Adult Social Care Health and Wellbeing - Total,ALDI 103 772,Total Adult Social Care,6.75,Materials & Consumables,2020-21Jan_PC00383
Sandwell Metropolitan Borough Council,http://www.sandwell.gov.uk/info/200202/performance_and_spending/3233/government_procurement_cards,03-Feb-21,Adult Social Care Health and Wellbeing - Total,ASDA STORES,Total Adult Social Care,1.46,Materials & Consumables,2020-21Jan_PC00384
Sandwell Metropolitan Borough Council,http://www.sandwell.gov.uk/info/200202/performance_and_spending/3233/government_procurement_cards,03-Feb-21,Childrens Services,WWW.GOMPELS.CO.UK,Childrens Services,167.73,Materials & Consumables,2020-21Jan_PC00385
Sandwell Metropolitan Borough Council,http://www.sandwell.gov.uk/info/200202/performance_and_spending/3233/government_procurement_cards,03-Feb-21,Childrens Services,AMZNMktplace,Childrens Services,32.16,Printing Stationery&Gen Office,2020-21Jan_PC00386
Sandwell Metropolitan Borough Council,http://www.sandwell.gov.uk/info/200202/performance_and_spending/3233/government_procurement_cards,03-Feb-21,Adult Social Care Health and Wellbeing - Total,OFFICE DEPOT UK,Total Adult Social Care,57.5,Printing Stationery&Gen Office,2020-21Jan_PC00387
Sandwell Metropolitan Borough Council,http://www.sandwell.gov.uk/info/200202/performance_and_spending/3233/government_procurement_cards,03-Feb-21,Housing & Communities,Apollo Hotel,Neighbourhoods,583.33,Rents,2020-21Jan_PC00388
Sandwell Metropolitan Borough Council,http://www.sandwell.gov.uk/info/200202/performance_and_spending/3233/government_procurement_cards,03-Feb-21,Total Housing Revenue Account,WWW.SANDWELL.GOV.UK,Total Housing Revenue Account,18.33,Tenants Expenses,2020-21Jan_PC00389
Sandwell Metropolitan Borough Council,http://www.sandwell.gov.uk/info/200202/performance_and_spending/3233/government_procurement_cards,04-Feb-21,Resources (Inc SIU),Amazon.co.uk MF5TF8O24,Assistant Chief Executive (Excl SIU),68.33,Printing Stationery&Gen Office,2020-21Feb_PC00001
Sandwell Metropolitan Borough Council,http://www.sandwell.gov.uk/info/200202/performance_and_spending/3233/government_procurement_cards,04-Feb-21,Regeneration & Growth,Amazon.co.uk MF7UR7FK4,Regeneration And The Economy,14.98,ICT,2020-21Feb_PC00002
Sandwell Metropolitan Borough Council,http://www.sandwell.gov.uk/info/200202/performance_and_spending/3233/government_procurement_cards,04-Feb-21,Housing & Communities,THE HYGIENE COMPANY,Neighbourhoods,141.98,Materials & Consumables,2020-21Feb_PC00003
Sandwell Metropolitan Borough Council,http://www.sandwell.gov.uk/info/200202/performance_and_spending/3233/government_procurement_cards,04-Feb-21,Housing & Communities,WILKO.COM,Neighbourhoods,66.67,Materials & Consumables,2020-21Feb_PC00004
Sandwell Metropolitan Borough Council,http://www.sandwell.gov.uk/info/200202/performance_and_spending/3233/government_procurement_cards,04-Feb-21,Housing & Communities,WILKO.COM,Neighbourhoods,66.67,Materials & Consumables,2020-21Feb_PC00005
Sandwell Metropolitan Borough Council,http://www.sandwell.gov.uk/info/200202/performance_and_spending/3233/government_procurement_cards,04-Feb-21,Regeneration & Growth,Amazon.co.uk MF5LI3FV4,Regeneration And The Economy,9.15,Telephones,2020-21Feb_PC00006
Sandwell Metropolitan Borough Council,http://www.sandwell.gov.uk/info/200202/performance_and_spending/3233/government_procurement_cards,04-Feb-21,Total Housing Revenue Account,BIRMINGHAM CITY CO,Total Housing Revenue Account,14.5,Printing Stationery&Gen Office,2020-21Feb_PC00007
Sandwell Metropolitan Borough Council,http://www.sandwell.gov.uk/info/200202/performance_and_spending/3233/government_procurement_cards,04-Feb-21,Total ASCHWB,AMZNMKTPLACE AMAZON.CO,Total Adult Social Care,60.05,ICT,2020-21Feb_PC00008
Sandwell Metropolitan Borough Council,http://www.sandwell.gov.uk/info/200202/performance_and_spending/3233/government_procurement_cards,04-Feb-21,Resources (Inc SIU),ADVANTA MARKETING,Assistant Chief Executive (Excl SIU),226.2,Equipment & Furniture,2020-21Feb_PC00009
Sandwell Metropolitan Borough Council,http://www.sandwell.gov.uk/info/200202/performance_and_spending/3233/government_procurement_cards,04-Feb-21,Housing & Communities,AMZNMktplace,Neighbourhoods,9.82,Materials & Consumables,2020-21Feb_PC00010
Sandwell Metropolitan Borough Council,http://www.sandwell.gov.uk/info/200202/performance_and_spending/3233/government_procurement_cards,04-Feb-21,Housing & Communities,Amazon.co.uk MF0CY84J4,Neighbourhoods,10.99,Materials & Consumables,2020-21Feb_PC00011
Sandwell Metropolitan Borough Council,http://www.sandwell.gov.uk/info/200202/performance_and_spending/3233/government_procurement_cards,04-Feb-21,Regeneration & Growth,AMZNMktplace,Regeneration And The Economy,27.49,Protective Clothing&Uniforms,2020-21Feb_PC00012
Sandwell Metropolitan Borough Council,http://www.sandwell.gov.uk/info/200202/performance_and_spending/3233/government_procurement_cards,04-Feb-21,Total Housing Revenue Account,WALSALL COUNCIL,Total Housing Revenue Account,-5,Tenants Expenses,2020-21Feb_PC00013
Sandwell Metropolitan Borough Council,http://www.sandwell.gov.uk/info/200202/performance_and_spending/3233/government_procurement_cards,04-Feb-21,Housing & Communities,SCREWFIX DIRECT,Neighbourhoods,16.67,Ind. Emp Exp-Emp. Welfare,2020-21Feb_PC00014
Sandwell Metropolitan Borough Council,http://www.sandwell.gov.uk/info/200202/performance_and_spending/3233/government_procurement_cards,05-Feb-21,Resources (Inc SIU),OFFICE DEPOT UK,Assistant Chief Executive (Excl SIU),248.44,Equipment & Furniture,2020-21Feb_PC00015
Sandwell Metropolitan Borough Council,http://www.sandwell.gov.uk/info/200202/performance_and_spending/3233/government_procurement_cards,05-Feb-21,Resources (Inc SIU),OFFICE DEPOT UK,Assistant Chief Executive (Excl SIU),12.86,Equipment & Furniture,2020-21Feb_PC00016
Sandwell Metropolitan Borough Council,http://www.sandwell.gov.uk/info/200202/performance_and_spending/3233/government_procurement_cards,05-Feb-21,Resources (Inc SIU),OFFICE DEPOT UK,Assistant Chief Executive (Excl SIU),6.93,Equipment & Furniture,2020-21Feb_PC00017
Sandwell Metropolitan Borough Council,http://www.sandwell.gov.uk/info/200202/performance_and_spending/3233/government_procurement_cards,05-Feb-21,Childrens Services,HARMONY MED,Childrens Services,110.35,Materials & Consumables,2020-21Feb_PC00018
Sandwell Metropolitan Borough Council,http://www.sandwell.gov.uk/info/200202/performance_and_spending/3233/government_procurement_cards,05-Feb-21,Total ASCHWB,AMZNMktplace,Total Adult Social Care,56.6,Catering Equipment,2020-21Feb_PC00019
Sandwell Metropolitan Borough Council,http://www.sandwell.gov.uk/info/200202/performance_and_spending/3233/government_procurement_cards,05-Feb-21,Total ASCHWB,WWW.JUSTGLOVES.CO.UK,Total Adult Social Care,129.5,Materials & Consumables,2020-21Feb_PC00020
Sandwell Metropolitan Borough Council,http://www.sandwell.gov.uk/info/200202/performance_and_spending/3233/government_procurement_cards,05-Feb-21,Total ASCHWB,WWW.JUSTGLOVES.CO.UK,Total Adult Social Care,119.5,Materials & Consumables,2020-21Feb_PC00021
Sandwell Metropolitan Borough Council,http://www.sandwell.gov.uk/info/200202/performance_and_spending/3233/government_procurement_cards,05-Feb-21,Childrens Services,AMZNMktplace,Childrens Services,27.47,Materials & Consumables,2020-21Feb_PC00022
Sandwell Metropolitan Borough Council,http://www.sandwell.gov.uk/info/200202/performance_and_spending/3233/government_procurement_cards,05-Feb-21,Total ASCHWB,SP SERVICES UK LTD,Total Adult Social Care,69.9,Materials & Consumables,2020-21Feb_PC00023
Sandwell Metropolitan Borough Council,http://www.sandwell.gov.uk/info/200202/performance_and_spending/3233/government_procurement_cards,05-Feb-21,Childrens Services,Amazon.co.uk MF7EH94C4,Childrens Services,27.49,Materials & Consumables,2020-21Feb_PC00024
Sandwell Metropolitan Borough Council,http://www.sandwell.gov.uk/info/200202/performance_and_spending/3233/government_procurement_cards,05-Feb-21,Housing & Communities,KINGFISHERDIRECT,Neighbourhoods,93.7,Materials & Consumables,2020-21Feb_PC00025
Sandwell Metropolitan Borough Council,http://www.sandwell.gov.uk/info/200202/performance_and_spending/3233/government_procurement_cards,05-Feb-21,Housing & Communities,AMZNMktplace,Neighbourhoods,28.99,Equipment & Furniture,2020-21Feb_PC00026
Sandwell Metropolitan Borough Council,http://www.sandwell.gov.uk/info/200202/performance_and_spending/3233/government_procurement_cards,05-Feb-21,Resources (Inc SIU),OFFICE DEPOT UK,Assistant Chief Executive (Excl SIU),99.49,Equipment & Furniture,2020-21Feb_PC00027
Sandwell Metropolitan Borough Council,http://www.sandwell.gov.uk/info/200202/performance_and_spending/3233/government_procurement_cards,05-Feb-21,Childrens Services,POST OFFICE COUNTER,Childrens Services,64.5,Printing Stationery&Gen Office,2020-21Feb_PC00028
Sandwell Metropolitan Borough Council,http://www.sandwell.gov.uk/info/200202/performance_and_spending/3233/government_procurement_cards,05-Feb-21,Total ASCHWB,AMZNMKTPLACE AMAZON.CO,Total Adult Social Care,148.95,Telephones,2020-21Feb_PC00029
Sandwell Metropolitan Borough Council,http://www.sandwell.gov.uk/info/200202/performance_and_spending/3233/government_procurement_cards,05-Feb-21,Housing & Communities,AMZNMKTPLACE AMAZON.CO,Neighbourhoods,2.33,Materials & Consumables,2020-21Feb_PC00030
Sandwell Metropolitan Borough Council,http://www.sandwell.gov.uk/info/200202/performance_and_spending/3233/government_procurement_cards,05-Feb-21,Regeneration & Growth,AMZNMKTPLACE AMAZON.CO,Regeneration And The Economy,40.03,Printing Stationery&Gen Office,2020-21Feb_PC00031
Sandwell Metropolitan Borough Council,http://www.sandwell.gov.uk/info/200202/performance_and_spending/3233/government_procurement_cards,05-Feb-21,Total Housing Revenue Account,AMZNMktplace,Total Housing Revenue Account,146.87,Equipment & Furniture,2020-21Feb_PC00032
Sandwell Metropolitan Borough Council,http://www.sandwell.gov.uk/info/200202/performance_and_spending/3233/government_procurement_cards,05-Feb-21,Total Housing Revenue Account,ARGOS LTD,Total Housing Revenue Account,12.49,Telephones,2020-21Feb_PC00033
Sandwell Metropolitan Borough Council,http://www.sandwell.gov.uk/info/200202/performance_and_spending/3233/government_procurement_cards,08-Feb-21,Housing & Communities,Dunelm,Neighbourhoods,72,Professional Services External,2020-21Feb_PC00034
Sandwell Metropolitan Borough Council,http://www.sandwell.gov.uk/info/200202/performance_and_spending/3233/government_procurement_cards,08-Feb-21,Total ASCHWB,MUST HAVE IDEAS LTD,Total Adult Social Care,16.65,Equipment & Furniture,2020-21Feb_PC00035
Sandwell Metropolitan Borough Council,http://www.sandwell.gov.uk/info/200202/performance_and_spending/3233/government_procurement_cards,08-Feb-21,Total ASCHWB,Amazon.co.uk MF4J67ZZ4,Total Adult Social Care,112.46,Telephones,2020-21Feb_PC00036
Sandwell Metropolitan Borough Council,http://www.sandwell.gov.uk/info/200202/performance_and_spending/3233/government_procurement_cards,08-Feb-21,Total Housing Revenue Account,SERENATAFLOWERS,Total Housing Revenue Account,35.82,Printing Stationery&Gen Office,2020-21Feb_PC00037
Sandwell Metropolitan Borough Council,http://www.sandwell.gov.uk/info/200202/performance_and_spending/3233/government_procurement_cards,08-Feb-21,Individual School Budgets With Inclusion,AMZNMktplace,Individual School Budgets With Inclusion,153.17,Learning Resources,2020-21Feb_PC00038
Sandwell Metropolitan Borough Council,http://www.sandwell.gov.uk/info/200202/performance_and_spending/3233/government_procurement_cards,08-Feb-21,Total ASCHWB,AMZNMKTPLACE AMAZON.CO,Total Adult Social Care,23.32,ICT,2020-21Feb_PC00039
Sandwell Metropolitan Borough Council,http://www.sandwell.gov.uk/info/200202/performance_and_spending/3233/government_procurement_cards,08-Feb-21,Total ASCHWB,ARC CAR WASH,Total Adult Social Care,15,Materials & Consumables,2020-21Feb_PC00040
Sandwell Metropolitan Borough Council,http://www.sandwell.gov.uk/info/200202/performance_and_spending/3233/government_procurement_cards,08-Feb-21,Housing & Communities,AMZNMktplace,Neighbourhoods,25.98,Equipment & Furniture,2020-21Feb_PC00041
Sandwell Metropolitan Borough Council,http://www.sandwell.gov.uk/info/200202/performance_and_spending/3233/government_procurement_cards,08-Feb-21,Resources (Inc SIU),STATIONERY OFFICE BOOK,Assistant Chief Executive (Excl SIU),32.44,Equipment & Furniture,2020-21Feb_PC00042
Sandwell Metropolitan Borough Council,http://www.sandwell.gov.uk/info/200202/performance_and_spending/3233/government_procurement_cards,08-Feb-21,Childrens Services,POUNDLAND LTD 1093,Childrens Services,16.87,Materials & Consumables,2020-21Feb_PC00043
Sandwell Metropolitan Borough Council,http://www.sandwell.gov.uk/info/200202/performance_and_spending/3233/government_procurement_cards,08-Feb-21,Resources (Inc SIU),IGPP LTD,Assistant Chief Executive (Excl SIU),412,Ind. Emp Exp-Staff Dev&Training,2020-21Feb_PC00044
Sandwell Metropolitan Borough Council,http://www.sandwell.gov.uk/info/200202/performance_and_spending/3233/government_procurement_cards,08-Feb-21,Resources (Inc SIU),CARTRIDGEPEOPLE.COM,Assistant Chief Executive (Excl SIU),193,Printing Stationery&Gen Office,2020-21Feb_PC00045
Sandwell Metropolitan Borough Council,http://www.sandwell.gov.uk/info/200202/performance_and_spending/3233/government_procurement_cards,08-Feb-21,Total ASCHWB,AMZNMktplace,Total Adult Social Care,22.22,ICT,2020-21Feb_PC00046
Sandwell Metropolitan Borough Council,http://www.sandwell.gov.uk/info/200202/performance_and_spending/3233/government_procurement_cards,08-Feb-21,Total ASCHWB,AMZNMktplace,Total Adult Social Care,17.68,ICT,2020-21Feb_PC00047
Sandwell Metropolitan Borough Council,http://www.sandwell.gov.uk/info/200202/performance_and_spending/3233/government_procurement_cards,08-Feb-21,Total ASCHWB,SAFETY GLOVES,Total Adult Social Care,22.83,Protective Clothing&Uniforms,2020-21Feb_PC00048
Sandwell Metropolitan Borough Council,http://www.sandwell.gov.uk/info/200202/performance_and_spending/3233/government_procurement_cards,08-Feb-21,Total ASCHWB,AMZNMKTPLACE AMAZON.CO,Total Adult Social Care,17.68,ICT,2020-21Feb_PC00049
Sandwell Metropolitan Borough Council,http://www.sandwell.gov.uk/info/200202/performance_and_spending/3233/government_procurement_cards,08-Feb-21,Total ASCHWB,AMZNMKTPLACE AMAZON.CO,Total Adult Social Care,17.68,ICT,2020-21Feb_PC00050
Sandwell Metropolitan Borough Council,http://www.sandwell.gov.uk/info/200202/performance_and_spending/3233/government_procurement_cards,08-Feb-21,Total ASCHWB,AMZNMktplace,Total Adult Social Care,61.9,Materials & Consumables,2020-21Feb_PC00051
Sandwell Metropolitan Borough Council,http://www.sandwell.gov.uk/info/200202/performance_and_spending/3233/government_procurement_cards,08-Feb-21,Housing & Communities,ASDA SUPERSTORE,Neighbourhoods,3.13,Materials & Consumables,2020-21Feb_PC00052
Sandwell Metropolitan Borough Council,http://www.sandwell.gov.uk/info/200202/performance_and_spending/3233/government_procurement_cards,09-Feb-21,Resources (Inc SIU),OFFICE DEPOT UK,Assistant Chief Executive (Excl SIU),-137.94,Equipment & Furniture,2020-21Feb_PC00053
Sandwell Metropolitan Borough Council,http://www.sandwell.gov.uk/info/200202/performance_and_spending/3233/government_procurement_cards,09-Feb-21,Childrens Services,ARGOS LTD,Childrens Services,36.58,Equipment & Furniture,2020-21Feb_PC00054
Sandwell Metropolitan Borough Council,http://www.sandwell.gov.uk/info/200202/performance_and_spending/3233/government_procurement_cards,09-Feb-21,Total ASCHWB,AMZ liGo,Total Adult Social Care,-19.57,Telephones,2020-21Feb_PC00055
Sandwell Metropolitan Borough Council,http://www.sandwell.gov.uk/info/200202/performance_and_spending/3233/government_procurement_cards,09-Feb-21,Corporate Management,WESTMINSTER INSIGHT,Corporate Management,202.5,Ind. Emp Exp-Staff Dev&Training,2020-21Feb_PC00056
Sandwell Metropolitan Borough Council,http://www.sandwell.gov.uk/info/200202/performance_and_spending/3233/government_procurement_cards,09-Feb-21,Housing & Communities,D4DRIVERS,Neighbourhoods,45.83,Professional Services External,2020-21Feb_PC00057
Sandwell Metropolitan Borough Council,http://www.sandwell.gov.uk/info/200202/performance_and_spending/3233/government_procurement_cards,09-Feb-21,Housing & Communities,BLACKCOUNTRYMETAL,Neighbourhoods,89.99,R& M - Building Maint&Imp.,2020-21Feb_PC00058
Sandwell Metropolitan Borough Council,http://www.sandwell.gov.uk/info/200202/performance_and_spending/3233/government_procurement_cards,09-Feb-21,Housing & Communities,SCREWFIX DIRECT,Neighbourhoods,35.23,Materials & Consumables,2020-21Feb_PC00059
Sandwell Metropolitan Borough Council,http://www.sandwell.gov.uk/info/200202/performance_and_spending/3233/government_procurement_cards,09-Feb-21,Total ASCHWB,PAYPAL  WUQIANMIN EBAY,Total Adult Social Care,6.08,Materials & Consumables,2020-21Feb_PC00060
Sandwell Metropolitan Borough Council,http://www.sandwell.gov.uk/info/200202/performance_and_spending/3233/government_procurement_cards,09-Feb-21,Housing & Communities,SCREWFIX DIRECT,Neighbourhoods,49.37,Materials & Consumables,2020-21Feb_PC00061
Sandwell Metropolitan Borough Council,http://www.sandwell.gov.uk/info/200202/performance_and_spending/3233/government_procurement_cards,09-Feb-21,Childrens Services,CARTRIDGEPEOPLE.COM,Childrens Services,37.49,Printing Stationery&Gen Office,2020-21Feb_PC00062
Sandwell Metropolitan Borough Council,http://www.sandwell.gov.uk/info/200202/performance_and_spending/3233/government_procurement_cards,09-Feb-21,Total ASCHWB,PAPERSTONE LIMITED,Total Adult Social Care,39.25,Printing Stationery&Gen Office,2020-21Feb_PC00063
Sandwell Metropolitan Borough Council,http://www.sandwell.gov.uk/info/200202/performance_and_spending/3233/government_procurement_cards,09-Feb-21,Total ASCHWB,AMZNMktplace,Public Health,27.91,Printing Stationery&Gen Office,2020-21Feb_PC00064
Sandwell Metropolitan Borough Council,http://www.sandwell.gov.uk/info/200202/performance_and_spending/3233/government_procurement_cards,09-Feb-21,Individual School Budgets With Inclusion,EB  SUPPORTING AUTISTI,Individual School Budgets With Inclusion,27.44,Ind. Emp Exp-Staff Dev&Training,2020-21Feb_PC00065
Sandwell Metropolitan Borough Council,http://www.sandwell.gov.uk/info/200202/performance_and_spending/3233/government_procurement_cards,09-Feb-21,Housing & Communities,B & Q 1276,Neighbourhoods,103.33,R & M - Security,2020-21Feb_PC00066
Sandwell Metropolitan Borough Council,http://www.sandwell.gov.uk/info/200202/performance_and_spending/3233/government_procurement_cards,09-Feb-21,Housing & Communities,B & Q 1276,Neighbourhoods,-62,R & M - Security,2020-21Feb_PC00067
Sandwell Metropolitan Borough Council,http://www.sandwell.gov.uk/info/200202/performance_and_spending/3233/government_procurement_cards,09-Feb-21,Housing & Communities,AMZ UHD WHOLESALE,Neighbourhoods,-59.99,Professional Services External,2020-21Feb_PC00068
Sandwell Metropolitan Borough Council,http://www.sandwell.gov.uk/info/200202/performance_and_spending/3233/government_procurement_cards,09-Feb-21,Housing & Communities,OFFICE DEPOT UK,Neighbourhoods,32.69,Printing Stationery&Gen Office,2020-21Feb_PC00069
Sandwell Metropolitan Borough Council,http://www.sandwell.gov.uk/info/200202/performance_and_spending/3233/government_procurement_cards,09-Feb-21,Total Housing Revenue Account,POST OFFICE COUNTER,Total Housing Revenue Account,216,"Postages, Carriage & Courier Services",2020-21Feb_PC00070
Sandwell Metropolitan Borough Council,http://www.sandwell.gov.uk/info/200202/performance_and_spending/3233/government_procurement_cards,09-Feb-21,Housing & Communities,AMZNMktplace,Neighbourhoods,27.99,Printing Stationery&Gen Office,2020-21Feb_PC00071
Sandwell Metropolitan Borough Council,http://www.sandwell.gov.uk/info/200202/performance_and_spending/3233/government_procurement_cards,09-Feb-21,Housing & Communities,ARGOS LTD,Neighbourhoods,126.95,Equipment & Furniture,2020-21Feb_PC00072
Sandwell Metropolitan Borough Council,http://www.sandwell.gov.uk/info/200202/performance_and_spending/3233/government_procurement_cards,09-Feb-21,Regeneration & Growth,AMZNMktplace,Regeneration And The Economy,27.45,Equipment & Furniture,2020-21Feb_PC00073
Sandwell Metropolitan Borough Council,http://www.sandwell.gov.uk/info/200202/performance_and_spending/3233/government_procurement_cards,09-Feb-21,Total Housing Revenue Account,OFFICE DEPOT UK,Total Housing Revenue Account,27.74,Printing Stationery&Gen Office,2020-21Feb_PC00074
Sandwell Metropolitan Borough Council,http://www.sandwell.gov.uk/info/200202/performance_and_spending/3233/government_procurement_cards,09-Feb-21,Housing & Communities,PROARK UK HOTELS LTD O,Neighbourhoods,641.67,Rents,2020-21Feb_PC00075
Sandwell Metropolitan Borough Council,http://www.sandwell.gov.uk/info/200202/performance_and_spending/3233/government_procurement_cards,09-Feb-21,Housing & Communities,BLACK COUNTRY CHAMBER,Neighbourhoods,117,Subscriptions,2020-21Feb_PC00076
Sandwell Metropolitan Borough Council,http://www.sandwell.gov.uk/info/200202/performance_and_spending/3233/government_procurement_cards,10-Feb-21,Total ASCHWB,OFFICE DEPOT UK,Total Adult Social Care,88.2,Printing Stationery&Gen Office,2020-21Feb_PC00077
Sandwell Metropolitan Borough Council,http://www.sandwell.gov.uk/info/200202/performance_and_spending/3233/government_procurement_cards,10-Feb-21,Housing & Communities,AMZNMktplace,Neighbourhoods,23.3,Printing Stationery&Gen Office,2020-21Feb_PC00078
Sandwell Metropolitan Borough Council,http://www.sandwell.gov.uk/info/200202/performance_and_spending/3233/government_procurement_cards,10-Feb-21,Total Housing Revenue Account,AMZNMktplace,Total Housing Revenue Account,14.15,Equipment & Furniture,2020-21Feb_PC00079
Sandwell Metropolitan Borough Council,http://www.sandwell.gov.uk/info/200202/performance_and_spending/3233/government_procurement_cards,10-Feb-21,Resources (Inc SIU),EB  HEALTH AND CARE EX,Assistant Chief Executive (Excl SIU),95,Conference Expenses,2020-21Feb_PC00080
Sandwell Metropolitan Borough Council,http://www.sandwell.gov.uk/info/200202/performance_and_spending/3233/government_procurement_cards,10-Feb-21,Total ASCHWB,ASDA STORES,Total Adult Social Care,5.93,Materials & Consumables,2020-21Feb_PC00081
Sandwell Metropolitan Borough Council,http://www.sandwell.gov.uk/info/200202/performance_and_spending/3233/government_procurement_cards,10-Feb-21,Total ASCHWB,ALDI 103 772,Total Adult Social Care,6.79,Materials & Consumables,2020-21Feb_PC00082
Sandwell Metropolitan Borough Council,http://www.sandwell.gov.uk/info/200202/performance_and_spending/3233/government_procurement_cards,10-Feb-21,Regeneration & Growth,AMZNMktplace,Regeneration And The Economy,32.91,Printing Stationery&Gen Office,2020-21Feb_PC00083
Sandwell Metropolitan Borough Council,http://www.sandwell.gov.uk/info/200202/performance_and_spending/3233/government_procurement_cards,10-Feb-21,Housing & Communities,AMZ Monoprice GmbH,Neighbourhoods,-22.99,Professional Services External,2020-21Feb_PC00084
Sandwell Metropolitan Borough Council,http://www.sandwell.gov.uk/info/200202/performance_and_spending/3233/government_procurement_cards,10-Feb-21,Housing & Communities,Flextronics,Neighbourhoods,161.68,Printing Stationery&Gen Office,2020-21Feb_PC00085
Sandwell Metropolitan Borough Council,http://www.sandwell.gov.uk/info/200202/performance_and_spending/3233/government_procurement_cards,10-Feb-21,Housing & Communities,MUSEUMSASSC,Neighbourhoods,196.42,Residential-Other Establishmen,2020-21Feb_PC00086
Sandwell Metropolitan Borough Council,http://www.sandwell.gov.uk/info/200202/performance_and_spending/3233/government_procurement_cards,10-Feb-21,Housing & Communities,POST OFFICE COUNTER,Neighbourhoods,10.2,Printing Stationery&Gen Office,2020-21Feb_PC00087
Sandwell Metropolitan Borough Council,http://www.sandwell.gov.uk/info/200202/performance_and_spending/3233/government_procurement_cards,10-Feb-21,Childrens Services,GOVERNMENT EVENTS,Childrens Services,346.8,Ind. Emp Exp-Staff Dev&Training,2020-21Feb_PC00088
Sandwell Metropolitan Borough Council,http://www.sandwell.gov.uk/info/200202/performance_and_spending/3233/government_procurement_cards,10-Feb-21,Regeneration & Growth,123 REG LTD,Regeneration And The Economy,35.88,ICT,2020-21Feb_PC00089
Sandwell Metropolitan Borough Council,http://www.sandwell.gov.uk/info/200202/performance_and_spending/3233/government_procurement_cards,10-Feb-21,Housing & Communities,AMZNMKTPLACE AMAZON.CO,Neighbourhoods,15.82,Materials & Consumables,2020-21Feb_PC00090
Sandwell Metropolitan Borough Council,http://www.sandwell.gov.uk/info/200202/performance_and_spending/3233/government_procurement_cards,10-Feb-21,Housing & Communities,Amazon.co.uk MF37A4064,Neighbourhoods,36.71,Materials & Consumables,2020-21Feb_PC00091
Sandwell Metropolitan Borough Council,http://www.sandwell.gov.uk/info/200202/performance_and_spending/3233/government_procurement_cards,11-Feb-21,Total ASCHWB,AMZNMKTPLACE AMAZON.CO,Total Adult Social Care,8.32,Materials & Consumables,2020-21Feb_PC00092
Sandwell Metropolitan Borough Council,http://www.sandwell.gov.uk/info/200202/performance_and_spending/3233/government_procurement_cards,11-Feb-21,Total ASCHWB,OFFICE DEPOT UK,Total Adult Social Care,25.31,Printing Stationery&Gen Office,2020-21Feb_PC00093
Sandwell Metropolitan Borough Council,http://www.sandwell.gov.uk/info/200202/performance_and_spending/3233/government_procurement_cards,11-Feb-21,Total ASCHWB,AMZNMktplace,Total Adult Social Care,15.81,Materials & Consumables,2020-21Feb_PC00094
Sandwell Metropolitan Borough Council,http://www.sandwell.gov.uk/info/200202/performance_and_spending/3233/government_procurement_cards,11-Feb-21,Resources (Inc SIU),AMZNMktplace,Assistant Chief Executive (Excl SIU),99.99,Equipment & Furniture,2020-21Feb_PC00095
Sandwell Metropolitan Borough Council,http://www.sandwell.gov.uk/info/200202/performance_and_spending/3233/government_procurement_cards,11-Feb-21,Resources (Inc SIU),AMZNMKTPLACE AMAZON.CO,Assistant Chief Executive (Excl SIU),99.99,Equipment & Furniture,2020-21Feb_PC00096
Sandwell Metropolitan Borough Council,http://www.sandwell.gov.uk/info/200202/performance_and_spending/3233/government_procurement_cards,11-Feb-21,Total ASCHWB,AMZNMktplace,Public Health,71.61,Printing Stationery&Gen Office,2020-21Feb_PC00097
Sandwell Metropolitan Borough Council,http://www.sandwell.gov.uk/info/200202/performance_and_spending/3233/government_procurement_cards,11-Feb-21,Housing Revenue Account Capital,GOVERNMENT EVENTS,Housing Revenue Account Capital,289,Ind. Emp Exp-Staff Dev&Training,2020-21Feb_PC00098
Sandwell Metropolitan Borough Council,http://www.sandwell.gov.uk/info/200202/performance_and_spending/3233/government_procurement_cards,11-Feb-21,Regeneration & Growth,AMZNMKTPLACE AMAZON.CO,Regeneration And The Economy,74.99,Printing Stationery&Gen Office,2020-21Feb_PC00099
Sandwell Metropolitan Borough Council,http://www.sandwell.gov.uk/info/200202/performance_and_spending/3233/government_procurement_cards,11-Feb-21,Total ASCHWB,AMZNMktplace,Total Adult Social Care,4.99,Materials & Consumables,2020-21Feb_PC00100
Sandwell Metropolitan Borough Council,http://www.sandwell.gov.uk/info/200202/performance_and_spending/3233/government_procurement_cards,11-Feb-21,Total ASCHWB,ARC CAR WASH,Total Adult Social Care,18.75,Repairs & Maintenance,2020-21Feb_PC00101
Sandwell Metropolitan Borough Council,http://www.sandwell.gov.uk/info/200202/performance_and_spending/3233/government_procurement_cards,11-Feb-21,Total Housing Revenue Account,POST OFFICE COUNTER,Total Housing Revenue Account,249.9,"Postages, Carriage & Courier Services",2020-21Feb_PC00102
Sandwell Metropolitan Borough Council,http://www.sandwell.gov.uk/info/200202/performance_and_spending/3233/government_procurement_cards,11-Feb-21,Childrens Services,TESCO STORES 6197,Childrens Services,26.9,Catering Provisions,2020-21Feb_PC00103
Sandwell Metropolitan Borough Council,http://www.sandwell.gov.uk/info/200202/performance_and_spending/3233/government_procurement_cards,11-Feb-21,Housing & Communities,B&Q DIRECT,Neighbourhoods,28.37,Materials & Consumables,2020-21Feb_PC00104
Sandwell Metropolitan Borough Council,http://www.sandwell.gov.uk/info/200202/performance_and_spending/3233/government_procurement_cards,11-Feb-21,Housing & Communities,TRAVELODGE,Neighbourhoods,27.18,Rents,2020-21Feb_PC00105
Sandwell Metropolitan Borough Council,http://www.sandwell.gov.uk/info/200202/performance_and_spending/3233/government_procurement_cards,12-Feb-21,Regeneration & Growth,AMZNMKTPLACE AMAZON.CO,Regeneration And The Economy,14.99,ICT,2020-21Feb_PC00106
Sandwell Metropolitan Borough Council,http://www.sandwell.gov.uk/info/200202/performance_and_spending/3233/government_procurement_cards,12-Feb-21,Total Housing Revenue Account,DVLA DIGITAL TACHO,Total Housing Revenue Account,15.83,Licences&Test Fees,2020-21Feb_PC00107
Sandwell Metropolitan Borough Council,http://www.sandwell.gov.uk/info/200202/performance_and_spending/3233/government_procurement_cards,12-Feb-21,Childrens Services,UK,Childrens Services,208.33,Ind. Emp Exp-Staff Dev&Training,2020-21Feb_PC00108
Sandwell Metropolitan Borough Council,http://www.sandwell.gov.uk/info/200202/performance_and_spending/3233/government_procurement_cards,12-Feb-21,Resources (Inc SIU),Flextronics,Assistant Chief Executive (Excl SIU),132.57,ICT,2020-21Feb_PC00109
Sandwell Metropolitan Borough Council,http://www.sandwell.gov.uk/info/200202/performance_and_spending/3233/government_procurement_cards,12-Feb-21,Resources (Inc SIU),AMZNMktplace,Assistant Chief Executive (Excl SIU),37.49,ICT,2020-21Feb_PC00110
Sandwell Metropolitan Borough Council,http://www.sandwell.gov.uk/info/200202/performance_and_spending/3233/government_procurement_cards,12-Feb-21,Total ASCHWB,Amazon.co.uk MF7Q81XB4,Total Adult Social Care,26.75,Printing Stationery&Gen Office,2020-21Feb_PC00111
Sandwell Metropolitan Borough Council,http://www.sandwell.gov.uk/info/200202/performance_and_spending/3233/government_procurement_cards,12-Feb-21,Total Housing Revenue Account,WWW.KANE.CO.UK,Total Housing Revenue Account,717.4,Equipment & Furniture,2020-21Feb_PC00112
Sandwell Metropolitan Borough Council,http://www.sandwell.gov.uk/info/200202/performance_and_spending/3233/government_procurement_cards,12-Feb-21,Total ASCHWB,Amazon.co.uk MF27S1XI4,Total Adult Social Care,28.33,Equipment & Furniture,2020-21Feb_PC00113
Sandwell Metropolitan Borough Council,http://www.sandwell.gov.uk/info/200202/performance_and_spending/3233/government_procurement_cards,12-Feb-21,Total ASCHWB,AMZNMktplace,Total Adult Social Care,29.12,Repairs & Maintenance,2020-21Feb_PC00114
Sandwell Metropolitan Borough Council,http://www.sandwell.gov.uk/info/200202/performance_and_spending/3233/government_procurement_cards,12-Feb-21,Regeneration & Growth,CENTRE FOR ASSESSMENT,Regeneration And The Economy,1925,Professional Services External,2020-21Feb_PC00115
Sandwell Metropolitan Borough Council,http://www.sandwell.gov.uk/info/200202/performance_and_spending/3233/government_procurement_cards,12-Feb-21,Childrens Services,HIGH SPEED TRAINING LT,Childrens Services,180,Ind. Emp Exp-Staff Dev&Training,2020-21Feb_PC00116
Sandwell Metropolitan Borough Council,http://www.sandwell.gov.uk/info/200202/performance_and_spending/3233/government_procurement_cards,12-Feb-21,Regeneration & Growth,cadent gas,Regeneration And The Economy,1211,Energy Costs-Gas,2020-21Feb_PC00117
Sandwell Metropolitan Borough Council,http://www.sandwell.gov.uk/info/200202/performance_and_spending/3233/government_procurement_cards,12-Feb-21,Resources (Inc SIU),AMZNMktplace,Assistant Chief Executive (Excl SIU),90.17,ICT,2020-21Feb_PC00118
Sandwell Metropolitan Borough Council,http://www.sandwell.gov.uk/info/200202/performance_and_spending/3233/government_procurement_cards,12-Feb-21,Housing & Communities,AMZNMKTPLACE AMAZON.CO,Neighbourhoods,188.73,Materials & Consumables,2020-21Feb_PC00119
Sandwell Metropolitan Borough Council,http://www.sandwell.gov.uk/info/200202/performance_and_spending/3233/government_procurement_cards,12-Feb-21,Housing & Communities,AMZNMktplace,Neighbourhoods,62.99,Printing Stationery&Gen Office,2020-21Feb_PC00120
Sandwell Metropolitan Borough Council,http://www.sandwell.gov.uk/info/200202/performance_and_spending/3233/government_procurement_cards,12-Feb-21,Childrens Services,WM MORRISONS STORE,Childrens Services,4.74,Catering Provisions,2020-21Feb_PC00121
Sandwell Metropolitan Borough Council,http://www.sandwell.gov.uk/info/200202/performance_and_spending/3233/government_procurement_cards,12-Feb-21,Total ASCHWB,CHARTERED INSTITUTE OF,Total Adult Social Care,45,Ind. Emp Exp-Staff Dev&Training,2020-21Feb_PC00122
Sandwell Metropolitan Borough Council,http://www.sandwell.gov.uk/info/200202/performance_and_spending/3233/government_procurement_cards,12-Feb-21,Housing & Communities,Amazon.co.uk MF0UU6VS4,Neighbourhoods,18.08,Materials & Consumables,2020-21Feb_PC00123
Sandwell Metropolitan Borough Council,http://www.sandwell.gov.uk/info/200202/performance_and_spending/3233/government_procurement_cards,12-Feb-21,Resources (Inc SIU),OFFICE DEPOT UK,Assistant Chief Executive (Excl SIU),25.35,Materials & Consumables,2020-21Feb_PC00124
Sandwell Metropolitan Borough Council,http://www.sandwell.gov.uk/info/200202/performance_and_spending/3233/government_procurement_cards,12-Feb-21,Childrens Services,EB  OEAP NATIONAL PANE,Childrens Services,60,Ind. Emp Exp-Staff Dev&Training,2020-21Feb_PC00125
Sandwell Metropolitan Borough Council,http://www.sandwell.gov.uk/info/200202/performance_and_spending/3233/government_procurement_cards,12-Feb-21,Total Housing Revenue Account,OFFICE DEPOT UK,Total Housing Revenue Account,26.24,Printing Stationery&Gen Office,2020-21Feb_PC00126
Sandwell Metropolitan Borough Council,http://www.sandwell.gov.uk/info/200202/performance_and_spending/3233/government_procurement_cards,12-Feb-21,Total Housing Revenue Account,PAYPAL  VANGUARDCON,Total Housing Revenue Account,435,ICT,2020-21Feb_PC00127
Sandwell Metropolitan Borough Council,http://www.sandwell.gov.uk/info/200202/performance_and_spending/3233/government_procurement_cards,12-Feb-21,Housing & Communities,Amazon.co.uk MF7NG4X04,Neighbourhoods,20.77,Equipment & Furniture,2020-21Feb_PC00128
Sandwell Metropolitan Borough Council,http://www.sandwell.gov.uk/info/200202/performance_and_spending/3233/government_procurement_cards,12-Feb-21,Housing & Communities,AMZNMktplace,Neighbourhoods,56.63,Equipment & Furniture,2020-21Feb_PC00129
Sandwell Metropolitan Borough Council,http://www.sandwell.gov.uk/info/200202/performance_and_spending/3233/government_procurement_cards,12-Feb-21,Housing & Communities,ARGOS LTD,Neighbourhoods,99.95,Equipment & Furniture,2020-21Feb_PC00130
Sandwell Metropolitan Borough Council,http://www.sandwell.gov.uk/info/200202/performance_and_spending/3233/government_procurement_cards,12-Feb-21,Housing & Communities,ASDA SUPERSTORE,Neighbourhoods,5.83,Materials & Consumables,2020-21Feb_PC00131
Sandwell Metropolitan Borough Council,http://www.sandwell.gov.uk/info/200202/performance_and_spending/3233/government_procurement_cards,12-Feb-21,Housing & Communities,AMZNMktplace,Neighbourhoods,64.47,Equipment & Furniture,2020-21Feb_PC00132
Sandwell Metropolitan Borough Council,http://www.sandwell.gov.uk/info/200202/performance_and_spending/3233/government_procurement_cards,12-Feb-21,Housing & Communities,SMARTY CO UK,Neighbourhoods,13.33,Equipment & Furniture,2020-21Feb_PC00133
Sandwell Metropolitan Borough Council,http://www.sandwell.gov.uk/info/200202/performance_and_spending/3233/government_procurement_cards,15-Feb-21,Resources (Inc SIU),OFFICE DEPOT UK,Assistant Chief Executive (Excl SIU),-134,Equipment & Furniture,2020-21Feb_PC00134
Sandwell Metropolitan Borough Council,http://www.sandwell.gov.uk/info/200202/performance_and_spending/3233/government_procurement_cards,15-Feb-21,Total ASCHWB,OFFICE DEPOT UK,Total Adult Social Care,34.96,Printing Stationery&Gen Office,2020-21Feb_PC00135
Sandwell Metropolitan Borough Council,http://www.sandwell.gov.uk/info/200202/performance_and_spending/3233/government_procurement_cards,15-Feb-21,Housing & Communities,AMZNMKTPLACE AMAZON.CO,Neighbourhoods,479.7,Equipment & Furniture,2020-21Feb_PC00136
Sandwell Metropolitan Borough Council,http://www.sandwell.gov.uk/info/200202/performance_and_spending/3233/government_procurement_cards,15-Feb-21,Total ASCHWB,OFFICE DEPOT UK,Total Adult Social Care,63.3,Printing Stationery&Gen Office,2020-21Feb_PC00137
Sandwell Metropolitan Borough Council,http://www.sandwell.gov.uk/info/200202/performance_and_spending/3233/government_procurement_cards,15-Feb-21,Resources (Inc SIU),AMZNMKTPLACE AMAZON.CO,Assistant Chief Executive (Excl SIU),-12.58,Printing Stationery&Gen Office,2020-21Feb_PC00138
Sandwell Metropolitan Borough Council,http://www.sandwell.gov.uk/info/200202/performance_and_spending/3233/government_procurement_cards,15-Feb-21,Resources (Inc SIU),AMZ BestDeal Warehouse,Assistant Chief Executive (Excl SIU),-12.58,Printing Stationery&Gen Office,2020-21Feb_PC00139
Sandwell Metropolitan Borough Council,http://www.sandwell.gov.uk/info/200202/performance_and_spending/3233/government_procurement_cards,15-Feb-21,Total ASCHWB,Adobe.com,Public Health,41.62,Advertising & Publicity,2020-21Feb_PC00140
Sandwell Metropolitan Borough Council,http://www.sandwell.gov.uk/info/200202/performance_and_spending/3233/government_procurement_cards,15-Feb-21,Resources (Inc SIU),AMZNMktplace,Assistant Chief Executive (Excl SIU),133.25,ICT,2020-21Feb_PC00141
Sandwell Metropolitan Borough Council,http://www.sandwell.gov.uk/info/200202/performance_and_spending/3233/government_procurement_cards,15-Feb-21,Total Housing Revenue Account,CAPITA GAS,Total Housing Revenue Account,1513.94,Professional Services External,2020-21Feb_PC00142
Sandwell Metropolitan Borough Council,http://www.sandwell.gov.uk/info/200202/performance_and_spending/3233/government_procurement_cards,15-Feb-21,Total ASCHWB,AMZNMktplace,Total Adult Social Care,49.39,Printing Stationery&Gen Office,2020-21Feb_PC00143
Sandwell Metropolitan Borough Council,http://www.sandwell.gov.uk/info/200202/performance_and_spending/3233/government_procurement_cards,15-Feb-21,Total Housing Revenue Account,WWW.WORM.CO.UK,Total Housing Revenue Account,167.92,Equipment & Furniture,2020-21Feb_PC00144
Sandwell Metropolitan Borough Council,http://www.sandwell.gov.uk/info/200202/performance_and_spending/3233/government_procurement_cards,15-Feb-21,Housing & Communities,AMZNMktplace,Neighbourhoods,5.41,Equipment & Furniture,2020-21Feb_PC00145
Sandwell Metropolitan Borough Council,http://www.sandwell.gov.uk/info/200202/performance_and_spending/3233/government_procurement_cards,15-Feb-21,Resources (Inc SIU),AMZ BestDeal Warehouse,Assistant Chief Executive (Excl SIU),-12.58,Printing Stationery&Gen Office,2020-21Feb_PC00146
Sandwell Metropolitan Borough Council,http://www.sandwell.gov.uk/info/200202/performance_and_spending/3233/government_procurement_cards,15-Feb-21,Childrens Services,THE INSTITUTE FOR OUTD,Childrens Services,120,Subscriptions,2020-21Feb_PC00147
Sandwell Metropolitan Borough Council,http://www.sandwell.gov.uk/info/200202/performance_and_spending/3233/government_procurement_cards,15-Feb-21,Housing & Communities,Amazon.co.uk MF90K7MB4,Neighbourhoods,18.08,Materials & Consumables,2020-21Feb_PC00148
Sandwell Metropolitan Borough Council,http://www.sandwell.gov.uk/info/200202/performance_and_spending/3233/government_procurement_cards,15-Feb-21,Housing & Communities,Amazon.co.uk MF2SD4M34,Neighbourhoods,18.08,Materials & Consumables,2020-21Feb_PC00149
Sandwell Metropolitan Borough Council,http://www.sandwell.gov.uk/info/200202/performance_and_spending/3233/government_procurement_cards,15-Feb-21,Housing & Communities,Amazon.co.uk MF9RK9MZ4,Neighbourhoods,18.08,Materials & Consumables,2020-21Feb_PC00150
Sandwell Metropolitan Borough Council,http://www.sandwell.gov.uk/info/200202/performance_and_spending/3233/government_procurement_cards,15-Feb-21,Housing & Communities,AMZNMktplace,Neighbourhoods,13.92,Equipment & Furniture,2020-21Feb_PC00151
Sandwell Metropolitan Borough Council,http://www.sandwell.gov.uk/info/200202/performance_and_spending/3233/government_procurement_cards,15-Feb-21,Total Housing Revenue Account,Amazon.co.uk MF8LO2HN4,Total Housing Revenue Account,66.62,Telephones,2020-21Feb_PC00152
Sandwell Metropolitan Borough Council,http://www.sandwell.gov.uk/info/200202/performance_and_spending/3233/government_procurement_cards,15-Feb-21,Resources (Inc SIU),AMZNMKTPLACE AMAZON.CO,Assistant Chief Executive (Excl SIU),2.54,Printing Stationery&Gen Office,2020-21Feb_PC00153
Sandwell Metropolitan Borough Council,http://www.sandwell.gov.uk/info/200202/performance_and_spending/3233/government_procurement_cards,15-Feb-21,Housing & Communities,AMZNMKTPLACE AMAZON.CO,Neighbourhoods,59.99,Printing Stationery&Gen Office,2020-21Feb_PC00154
Sandwell Metropolitan Borough Council,http://www.sandwell.gov.uk/info/200202/performance_and_spending/3233/government_procurement_cards,15-Feb-21,Housing & Communities,AMZNMktplace,Neighbourhoods,59.99,Printing Stationery&Gen Office,2020-21Feb_PC00155
Sandwell Metropolitan Borough Council,http://www.sandwell.gov.uk/info/200202/performance_and_spending/3233/government_procurement_cards,15-Feb-21,Housing & Communities,AMZNMktplace,Neighbourhoods,115.73,Materials & Consumables,2020-21Feb_PC00156
Sandwell Metropolitan Borough Council,http://www.sandwell.gov.uk/info/200202/performance_and_spending/3233/government_procurement_cards,15-Feb-21,Housing & Communities,Amazon.co.uk MF9LY3HC4,Neighbourhoods,18.08,Materials & Consumables,2020-21Feb_PC00157
Sandwell Metropolitan Borough Council,http://www.sandwell.gov.uk/info/200202/performance_and_spending/3233/government_procurement_cards,15-Feb-21,Resources (Inc SIU),Amazon.co.uk MF1TP8BG4,Assistant Chief Executive (Excl SIU),12.48,Printing Stationery&Gen Office,2020-21Feb_PC00158
Sandwell Metropolitan Borough Council,http://www.sandwell.gov.uk/info/200202/performance_and_spending/3233/government_procurement_cards,15-Feb-21,Resources (Inc SIU),Amazon.co.uk MF2XX8B64,Assistant Chief Executive (Excl SIU),12.48,Printing Stationery&Gen Office,2020-21Feb_PC00159
Sandwell Metropolitan Borough Council,http://www.sandwell.gov.uk/info/200202/performance_and_spending/3233/government_procurement_cards,15-Feb-21,Total ASCHWB,AMZNMktplace,Total Adult Social Care,24.98,Repairs & Maintenance,2020-21Feb_PC00160
Sandwell Metropolitan Borough Council,http://www.sandwell.gov.uk/info/200202/performance_and_spending/3233/government_procurement_cards,15-Feb-21,Resources (Inc SIU),AMZNMKTPLACE AMAZON.CO,Assistant Chief Executive (Excl SIU),13.32,Printing Stationery&Gen Office,2020-21Feb_PC00161
Sandwell Metropolitan Borough Council,http://www.sandwell.gov.uk/info/200202/performance_and_spending/3233/government_procurement_cards,15-Feb-21,Resources (Inc SIU),Amazon.co.uk MF2RE5BV4,Assistant Chief Executive (Excl SIU),12.48,Printing Stationery&Gen Office,2020-21Feb_PC00162
Sandwell Metropolitan Borough Council,http://www.sandwell.gov.uk/info/200202/performance_and_spending/3233/government_procurement_cards,15-Feb-21,Housing & Communities,Amazon.co.uk MF79O5BS4,Neighbourhoods,12.03,Materials & Consumables,2020-21Feb_PC00163
Sandwell Metropolitan Borough Council,http://www.sandwell.gov.uk/info/200202/performance_and_spending/3233/government_procurement_cards,15-Feb-21,Housing & Communities,Amazon.co.uk MF95Q0BZ4,Neighbourhoods,7.49,Materials & Consumables,2020-21Feb_PC00164
Sandwell Metropolitan Borough Council,http://www.sandwell.gov.uk/info/200202/performance_and_spending/3233/government_procurement_cards,15-Feb-21,Housing & Communities,PREMIER INN,Neighbourhoods,33.33,Rents,2020-21Feb_PC00165
Sandwell Metropolitan Borough Council,http://www.sandwell.gov.uk/info/200202/performance_and_spending/3233/government_procurement_cards,15-Feb-21,Housing & Communities,AMZNMktplace,Neighbourhoods,4.57,Materials & Consumables,2020-21Feb_PC00166
Sandwell Metropolitan Borough Council,http://www.sandwell.gov.uk/info/200202/performance_and_spending/3233/government_procurement_cards,15-Feb-21,Housing & Communities,BESTWAY WHOLESALE,Neighbourhoods,76.43,Equipment & Furniture,2020-21Feb_PC00167
Sandwell Metropolitan Borough Council,http://www.sandwell.gov.uk/info/200202/performance_and_spending/3233/government_procurement_cards,16-Feb-21,Total ASCHWB,OFFICE DEPOT UK,Total Adult Social Care,40.8,Printing Stationery&Gen Office,2020-21Feb_PC00168
Sandwell Metropolitan Borough Council,http://www.sandwell.gov.uk/info/200202/performance_and_spending/3233/government_procurement_cards,16-Feb-21,Total ASCHWB,OFFICE DEPOT UK,Total Adult Social Care,3.17,Printing Stationery&Gen Office,2020-21Feb_PC00169
Sandwell Metropolitan Borough Council,http://www.sandwell.gov.uk/info/200202/performance_and_spending/3233/government_procurement_cards,16-Feb-21,Regeneration & Growth,OFFICE DEPOT UK,Regeneration And The Economy,123.55,Printing Stationery&Gen Office,2020-21Feb_PC00170
Sandwell Metropolitan Borough Council,http://www.sandwell.gov.uk/info/200202/performance_and_spending/3233/government_procurement_cards,16-Feb-21,Regeneration & Growth,OFFICE DEPOT UK,Regeneration And The Economy,121.44,Printing Stationery&Gen Office,2020-21Feb_PC00171
Sandwell Metropolitan Borough Council,http://www.sandwell.gov.uk/info/200202/performance_and_spending/3233/government_procurement_cards,16-Feb-21,Total ASCHWB,OFFICE DEPOT UK,Total Adult Social Care,57.4,Printing Stationery&Gen Office,2020-21Feb_PC00172
Sandwell Metropolitan Borough Council,http://www.sandwell.gov.uk/info/200202/performance_and_spending/3233/government_procurement_cards,16-Feb-21,Housing & Communities,AMZNMktplace,Neighbourhoods,21.65,Equipment & Furniture,2020-21Feb_PC00173
Sandwell Metropolitan Borough Council,http://www.sandwell.gov.uk/info/200202/performance_and_spending/3233/government_procurement_cards,16-Feb-21,Childrens Services,VODAFONE LTD,Childrens Services,19.59,ICT,2020-21Feb_PC00174
Sandwell Metropolitan Borough Council,http://www.sandwell.gov.uk/info/200202/performance_and_spending/3233/government_procurement_cards,16-Feb-21,Total Housing Revenue Account,Amazon.co.uk MF9C77QL4,Total Housing Revenue Account,20.82,Equipment & Furniture,2020-21Feb_PC00175
Sandwell Metropolitan Borough Council,http://www.sandwell.gov.uk/info/200202/performance_and_spending/3233/government_procurement_cards,16-Feb-21,Resources (Inc SIU),Amazon.co.uk MF06D5Q44,Assistant Chief Executive (Excl SIU),19.99,Printing Stationery&Gen Office,2020-21Feb_PC00176
Sandwell Metropolitan Borough Council,http://www.sandwell.gov.uk/info/200202/performance_and_spending/3233/government_procurement_cards,16-Feb-21,Resources (Inc SIU),AMZNMKTPLACE AMAZON.CO,Assistant Chief Executive (Excl SIU),36.65,Printing Stationery&Gen Office,2020-21Feb_PC00177
Sandwell Metropolitan Borough Council,http://www.sandwell.gov.uk/info/200202/performance_and_spending/3233/government_procurement_cards,16-Feb-21,Housing & Communities,SQ  AFS SUPPLIES LIMIT,Neighbourhoods,266.6,Protective Clothing&Uniforms,2020-21Feb_PC00178
Sandwell Metropolitan Borough Council,http://www.sandwell.gov.uk/info/200202/performance_and_spending/3233/government_procurement_cards,16-Feb-21,Housing & Communities,D4DRIVERS,Neighbourhoods,45.83,Professional Services External,2020-21Feb_PC00179
Sandwell Metropolitan Borough Council,http://www.sandwell.gov.uk/info/200202/performance_and_spending/3233/government_procurement_cards,16-Feb-21,Resources (Inc SIU),AMZNMKTPLACE AMAZON.CO,Assistant Chief Executive (Excl SIU),36.97,Materials & Consumables,2020-21Feb_PC00180
Sandwell Metropolitan Borough Council,http://www.sandwell.gov.uk/info/200202/performance_and_spending/3233/government_procurement_cards,16-Feb-21,Housing & Communities,ARGOS LTD,Neighbourhoods,-6.95,Equipment & Furniture,2020-21Feb_PC00181
Sandwell Metropolitan Borough Council,http://www.sandwell.gov.uk/info/200202/performance_and_spending/3233/government_procurement_cards,16-Feb-21,Individual School Budgets With Inclusion,SAINSBURYS 0558,Individual School Budgets With Inclusion,15.3,Printing Stationery&Gen Office,2020-21Feb_PC00182
Sandwell Metropolitan Borough Council,http://www.sandwell.gov.uk/info/200202/performance_and_spending/3233/government_procurement_cards,16-Feb-21,Childrens Services,AMZNMktplace,Childrens Services,29.13,ICT,2020-21Feb_PC00183
Sandwell Metropolitan Borough Council,http://www.sandwell.gov.uk/info/200202/performance_and_spending/3233/government_procurement_cards,16-Feb-21,Housing & Communities,SCREWFIX DIRECT,Neighbourhoods,14.27,Equipment & Furniture,2020-21Feb_PC00184
Sandwell Metropolitan Borough Council,http://www.sandwell.gov.uk/info/200202/performance_and_spending/3233/government_procurement_cards,17-Feb-21,Total ASCHWB,TVLICENSING.CO.UK,Total Adult Social Care,157.5,Licences,2020-21Feb_PC00185
Sandwell Metropolitan Borough Council,http://www.sandwell.gov.uk/info/200202/performance_and_spending/3233/government_procurement_cards,17-Feb-21,Total ASCHWB,Amazon.co.uk MF0J256G4,Total Adult Social Care,16.66,Telephones,2020-21Feb_PC00186
Sandwell Metropolitan Borough Council,http://www.sandwell.gov.uk/info/200202/performance_and_spending/3233/government_procurement_cards,17-Feb-21,Housing & Communities,B&M 049 - ASTLE PARK,Neighbourhoods,9.95,Printing Stationery&Gen Office,2020-21Feb_PC00187
Sandwell Metropolitan Borough Council,http://www.sandwell.gov.uk/info/200202/performance_and_spending/3233/government_procurement_cards,17-Feb-21,Total Housing Revenue Account,AMZNMKTPLACE AMAZON.CO,Total Housing Revenue Account,72.47,Equipment & Furniture,2020-21Feb_PC00188
Sandwell Metropolitan Borough Council,http://www.sandwell.gov.uk/info/200202/performance_and_spending/3233/government_procurement_cards,17-Feb-21,Resources (Inc SIU),AMZNMktplace,Assistant Chief Executive (Excl SIU),20.82,ICT,2020-21Feb_PC00189
Sandwell Metropolitan Borough Council,http://www.sandwell.gov.uk/info/200202/performance_and_spending/3233/government_procurement_cards,17-Feb-21,Individual School Budgets With Inclusion,AMZNMktplace,Individual School Budgets With Inclusion,83.88,Printing Stationery&Gen Office,2020-21Feb_PC00190
Sandwell Metropolitan Borough Council,http://www.sandwell.gov.uk/info/200202/performance_and_spending/3233/government_procurement_cards,17-Feb-21,Individual School Budgets With Inclusion,AMZNMktplace,Individual School Budgets With Inclusion,53.97,R& M - Building Maint&Imp.,2020-21Feb_PC00191
Sandwell Metropolitan Borough Council,http://www.sandwell.gov.uk/info/200202/performance_and_spending/3233/government_procurement_cards,17-Feb-21,Childrens Services,WWW.MR-FOTHERGILLS.CO.,Childrens Services,8.88,Materials & Consumables,2020-21Feb_PC00192
Sandwell Metropolitan Borough Council,http://www.sandwell.gov.uk/info/200202/performance_and_spending/3233/government_procurement_cards,17-Feb-21,Total ASCHWB,Amazon.co.uk MF4EP86V4,Total Adult Social Care,21.99,Refuse Collection,2020-21Feb_PC00193
Sandwell Metropolitan Borough Council,http://www.sandwell.gov.uk/info/200202/performance_and_spending/3233/government_procurement_cards,17-Feb-21,Housing & Communities,AMZNMktplace,Neighbourhoods,107.45,Ind. Emp Exp-Emp. Welfare,2020-21Feb_PC00194
Sandwell Metropolitan Borough Council,http://www.sandwell.gov.uk/info/200202/performance_and_spending/3233/government_procurement_cards,17-Feb-21,Housing & Communities,SCREWFIX DIRECT,Neighbourhoods,1.91,Equipment & Furniture,2020-21Feb_PC00195
Sandwell Metropolitan Borough Council,http://www.sandwell.gov.uk/info/200202/performance_and_spending/3233/government_procurement_cards,18-Feb-21,Housing & Communities,ARGOS LTD,Neighbourhoods,-120,Equipment & Furniture,2020-21Feb_PC00196
Sandwell Metropolitan Borough Council,http://www.sandwell.gov.uk/info/200202/performance_and_spending/3233/government_procurement_cards,18-Feb-21,Housing & Communities,PAYPAL  tailor,Neighbourhoods,250,Materials & Consumables,2020-21Feb_PC00197
Sandwell Metropolitan Borough Council,http://www.sandwell.gov.uk/info/200202/performance_and_spending/3233/government_procurement_cards,18-Feb-21,Housing & Communities,PAYPAL  tailor,Neighbourhoods,250,Materials & Consumables,2020-21Feb_PC00198
Sandwell Metropolitan Borough Council,http://www.sandwell.gov.uk/info/200202/performance_and_spending/3233/government_procurement_cards,18-Feb-21,Housing & Communities,PAYPAL  tailor,Neighbourhoods,250,Materials & Consumables,2020-21Feb_PC00199
Sandwell Metropolitan Borough Council,http://www.sandwell.gov.uk/info/200202/performance_and_spending/3233/government_procurement_cards,18-Feb-21,Housing & Communities,PAYPAL  tailor,Neighbourhoods,50,Materials & Consumables,2020-21Feb_PC00200
Sandwell Metropolitan Borough Council,http://www.sandwell.gov.uk/info/200202/performance_and_spending/3233/government_procurement_cards,18-Feb-21,Total ASCHWB,ADOBE CREATIVE CLOUD,Public Health,41.62,Advertising & Publicity,2020-21Feb_PC00201
Sandwell Metropolitan Borough Council,http://www.sandwell.gov.uk/info/200202/performance_and_spending/3233/government_procurement_cards,18-Feb-21,Total ASCHWB,ADOBE CREATIVE CLOUD,Total Adult Social Care,41.62,Advertising & Publicity,2020-21Feb_PC00202
Sandwell Metropolitan Borough Council,http://www.sandwell.gov.uk/info/200202/performance_and_spending/3233/government_procurement_cards,18-Feb-21,Total Housing Revenue Account,EXPERT VERDICT,Total Housing Revenue Account,63.25,Materials & Consumables,2020-21Feb_PC00203
Sandwell Metropolitan Borough Council,http://www.sandwell.gov.uk/info/200202/performance_and_spending/3233/government_procurement_cards,18-Feb-21,Resources (Inc SIU),AMZNMktplace,Assistant Chief Executive (Excl SIU),3.58,ICT,2020-21Feb_PC00204
Sandwell Metropolitan Borough Council,http://www.sandwell.gov.uk/info/200202/performance_and_spending/3233/government_procurement_cards,18-Feb-21,Resources (Inc SIU),STATIONERY OFFICE BOOK,Assistant Chief Executive (Excl SIU),-4,Equipment & Furniture,2020-21Feb_PC00205
Sandwell Metropolitan Borough Council,http://www.sandwell.gov.uk/info/200202/performance_and_spending/3233/government_procurement_cards,18-Feb-21,Housing & Communities,AMZNMKTPLACE AMAZON.CO,Neighbourhoods,31.15,Printing Stationery&Gen Office,2020-21Feb_PC00206
Sandwell Metropolitan Borough Council,http://www.sandwell.gov.uk/info/200202/performance_and_spending/3233/government_procurement_cards,18-Feb-21,Housing & Communities,AMZNMktplace,Neighbourhoods,31.15,Printing Stationery&Gen Office,2020-21Feb_PC00207
Sandwell Metropolitan Borough Council,http://www.sandwell.gov.uk/info/200202/performance_and_spending/3233/government_procurement_cards,18-Feb-21,Housing & Communities,AMZNMKTPLACE AMAZON.CO,Neighbourhoods,31.15,Printing Stationery&Gen Office,2020-21Feb_PC00208
Sandwell Metropolitan Borough Council,http://www.sandwell.gov.uk/info/200202/performance_and_spending/3233/government_procurement_cards,18-Feb-21,Housing & Communities,AMZNMKTPLACE AMAZON.CO,Neighbourhoods,31.15,Printing Stationery&Gen Office,2020-21Feb_PC00209
Sandwell Metropolitan Borough Council,http://www.sandwell.gov.uk/info/200202/performance_and_spending/3233/government_procurement_cards,18-Feb-21,Housing & Communities,AMZNMktplace,Neighbourhoods,31.15,Printing Stationery&Gen Office,2020-21Feb_PC00210
Sandwell Metropolitan Borough Council,http://www.sandwell.gov.uk/info/200202/performance_and_spending/3233/government_procurement_cards,18-Feb-21,Housing & Communities,AMZNMKTPLACE AMAZON.CO,Neighbourhoods,31.15,Printing Stationery&Gen Office,2020-21Feb_PC00211
Sandwell Metropolitan Borough Council,http://www.sandwell.gov.uk/info/200202/performance_and_spending/3233/government_procurement_cards,18-Feb-21,Housing & Communities,AMZNMKTPLACE AMAZON.CO,Neighbourhoods,31.15,Printing Stationery&Gen Office,2020-21Feb_PC00212
Sandwell Metropolitan Borough Council,http://www.sandwell.gov.uk/info/200202/performance_and_spending/3233/government_procurement_cards,18-Feb-21,Housing & Communities,AMZNMKTPLACE AMAZON.CO,Neighbourhoods,31.15,Printing Stationery&Gen Office,2020-21Feb_PC00213
Sandwell Metropolitan Borough Council,http://www.sandwell.gov.uk/info/200202/performance_and_spending/3233/government_procurement_cards,18-Feb-21,Housing & Communities,AMZNMktplace,Neighbourhoods,31.15,Printing Stationery&Gen Office,2020-21Feb_PC00214
Sandwell Metropolitan Borough Council,http://www.sandwell.gov.uk/info/200202/performance_and_spending/3233/government_procurement_cards,18-Feb-21,Housing & Communities,AMZNMktplace,Neighbourhoods,31.15,Printing Stationery&Gen Office,2020-21Feb_PC00215
Sandwell Metropolitan Borough Council,http://www.sandwell.gov.uk/info/200202/performance_and_spending/3233/government_procurement_cards,18-Feb-21,Housing & Communities,AMZNMKTPLACE AMAZON.CO,Neighbourhoods,31.15,Printing Stationery&Gen Office,2020-21Feb_PC00216
Sandwell Metropolitan Borough Council,http://www.sandwell.gov.uk/info/200202/performance_and_spending/3233/government_procurement_cards,18-Feb-21,Housing & Communities,AMZNMktplace,Neighbourhoods,31.15,Printing Stationery&Gen Office,2020-21Feb_PC00217
Sandwell Metropolitan Borough Council,http://www.sandwell.gov.uk/info/200202/performance_and_spending/3233/government_procurement_cards,18-Feb-21,Housing & Communities,AMZNMktplace,Neighbourhoods,31.15,Printing Stationery&Gen Office,2020-21Feb_PC00218
Sandwell Metropolitan Borough Council,http://www.sandwell.gov.uk/info/200202/performance_and_spending/3233/government_procurement_cards,18-Feb-21,Housing & Communities,AMZNMktplace,Neighbourhoods,31.15,Printing Stationery&Gen Office,2020-21Feb_PC00219
Sandwell Metropolitan Borough Council,http://www.sandwell.gov.uk/info/200202/performance_and_spending/3233/government_procurement_cards,18-Feb-21,Housing & Communities,AMZNMktplace,Neighbourhoods,31.15,Printing Stationery&Gen Office,2020-21Feb_PC00220
Sandwell Metropolitan Borough Council,http://www.sandwell.gov.uk/info/200202/performance_and_spending/3233/government_procurement_cards,18-Feb-21,Housing & Communities,AMZNMktplace,Neighbourhoods,31.15,Printing Stationery&Gen Office,2020-21Feb_PC00221
Sandwell Metropolitan Borough Council,http://www.sandwell.gov.uk/info/200202/performance_and_spending/3233/government_procurement_cards,18-Feb-21,Housing & Communities,AMZNMKTPLACE AMAZON.CO,Neighbourhoods,31.15,Printing Stationery&Gen Office,2020-21Feb_PC00222
Sandwell Metropolitan Borough Council,http://www.sandwell.gov.uk/info/200202/performance_and_spending/3233/government_procurement_cards,18-Feb-21,Housing & Communities,AMZNMktplace,Neighbourhoods,31.15,Printing Stationery&Gen Office,2020-21Feb_PC00223
Sandwell Metropolitan Borough Council,http://www.sandwell.gov.uk/info/200202/performance_and_spending/3233/government_procurement_cards,18-Feb-21,Housing & Communities,AMZNMktplace,Neighbourhoods,31.15,Printing Stationery&Gen Office,2020-21Feb_PC00224
Sandwell Metropolitan Borough Council,http://www.sandwell.gov.uk/info/200202/performance_and_spending/3233/government_procurement_cards,18-Feb-21,Housing & Communities,AMZNMktplace,Neighbourhoods,31.15,Printing Stationery&Gen Office,2020-21Feb_PC00225
Sandwell Metropolitan Borough Council,http://www.sandwell.gov.uk/info/200202/performance_and_spending/3233/government_procurement_cards,18-Feb-21,Housing & Communities,AMZNMKTPLACE AMAZON.CO,Neighbourhoods,31.15,Printing Stationery&Gen Office,2020-21Feb_PC00226
Sandwell Metropolitan Borough Council,http://www.sandwell.gov.uk/info/200202/performance_and_spending/3233/government_procurement_cards,18-Feb-21,Total ASCHWB,OFFICE DEPOT UK,Total Adult Social Care,101.8,Printing Stationery&Gen Office,2020-21Feb_PC00227
Sandwell Metropolitan Borough Council,http://www.sandwell.gov.uk/info/200202/performance_and_spending/3233/government_procurement_cards,18-Feb-21,Total ASCHWB,J R WOODISSE & CO LTD,Total Adult Social Care,5,Equipment & Furniture,2020-21Feb_PC00228
Sandwell Metropolitan Borough Council,http://www.sandwell.gov.uk/info/200202/performance_and_spending/3233/government_procurement_cards,18-Feb-21,Resources Capital,AMZNMktplace,Resources Capital,54.99,ICT,2020-21Feb_PC00229
Sandwell Metropolitan Borough Council,http://www.sandwell.gov.uk/info/200202/performance_and_spending/3233/government_procurement_cards,18-Feb-21,Total ASCHWB,AMZNMKTPLACE AMAZON.CO,Total Adult Social Care,20.82,Equipment & Furniture,2020-21Feb_PC00230
Sandwell Metropolitan Borough Council,http://www.sandwell.gov.uk/info/200202/performance_and_spending/3233/government_procurement_cards,18-Feb-21,Total ASCHWB,AMZNMktplace,Total Adult Social Care,43.92,Printing Stationery&Gen Office,2020-21Feb_PC00231
Sandwell Metropolitan Borough Council,http://www.sandwell.gov.uk/info/200202/performance_and_spending/3233/government_procurement_cards,18-Feb-21,Total ASCHWB,AAAA AARDVARK,Total Adult Social Care,300,Professional Services External,2020-21Feb_PC00232
Sandwell Metropolitan Borough Council,http://www.sandwell.gov.uk/info/200202/performance_and_spending/3233/government_procurement_cards,18-Feb-21,Regeneration & Growth,AMZNMktplace,Regeneration And The Economy,52.49,Equipment & Furniture,2020-21Feb_PC00233
Sandwell Metropolitan Borough Council,http://www.sandwell.gov.uk/info/200202/performance_and_spending/3233/government_procurement_cards,18-Feb-21,Housing & Communities,ARGOS LTD,Neighbourhoods,12.49,Telephones,2020-21Feb_PC00234
Sandwell Metropolitan Borough Council,http://www.sandwell.gov.uk/info/200202/performance_and_spending/3233/government_procurement_cards,18-Feb-21,Housing & Communities,ARGOS LTD,Neighbourhoods,12.49,Telephones,2020-21Feb_PC00235
Sandwell Metropolitan Borough Council,http://www.sandwell.gov.uk/info/200202/performance_and_spending/3233/government_procurement_cards,18-Feb-21,Housing & Communities,ARGOS LTD,Neighbourhoods,12.49,Telephones,2020-21Feb_PC00236
Sandwell Metropolitan Borough Council,http://www.sandwell.gov.uk/info/200202/performance_and_spending/3233/government_procurement_cards,18-Feb-21,Total Housing Revenue Account,AMZ Amazon.co.uk,Total Housing Revenue Account,-20.77,Operational Services,2020-21Feb_PC00237
Sandwell Metropolitan Borough Council,http://www.sandwell.gov.uk/info/200202/performance_and_spending/3233/government_procurement_cards,18-Feb-21,Housing & Communities,KANG NEWS LTD,Neighbourhoods,4.98,Materials & Consumables,2020-21Feb_PC00238
Sandwell Metropolitan Borough Council,http://www.sandwell.gov.uk/info/200202/performance_and_spending/3233/government_procurement_cards,18-Feb-21,Housing & Communities,WWW.BUNZLCLEANINGSUPPL,Neighbourhoods,107.9,Materials & Consumables,2020-21Feb_PC00239
Sandwell Metropolitan Borough Council,http://www.sandwell.gov.uk/info/200202/performance_and_spending/3233/government_procurement_cards,18-Feb-21,Housing & Communities,WWW.BUNZLCLEANINGSUPPL,Neighbourhoods,107.9,Materials & Consumables,2020-21Feb_PC00240
Sandwell Metropolitan Borough Council,http://www.sandwell.gov.uk/info/200202/performance_and_spending/3233/government_procurement_cards,18-Feb-21,Housing & Communities,AMZN Mktp UK MF6P28DU4,Neighbourhoods,32.28,Equipment & Furniture,2020-21Feb_PC00241
Sandwell Metropolitan Borough Council,http://www.sandwell.gov.uk/info/200202/performance_and_spending/3233/government_procurement_cards,18-Feb-21,Housing & Communities,Amazon.co.uk MF7AA6SE4,Neighbourhoods,124.17,Equipment & Furniture,2020-21Feb_PC00242
Sandwell Metropolitan Borough Council,http://www.sandwell.gov.uk/info/200202/performance_and_spending/3233/government_procurement_cards,19-Feb-21,Housing & Communities,AMZNMktplace,Neighbourhoods,119.05,Equipment & Furniture,2020-21Feb_PC00243
Sandwell Metropolitan Borough Council,http://www.sandwell.gov.uk/info/200202/performance_and_spending/3233/government_procurement_cards,19-Feb-21,Resources Capital,AMZNMktplace,Resources Capital,19.99,ICT,2020-21Feb_PC00244
Sandwell Metropolitan Borough Council,http://www.sandwell.gov.uk/info/200202/performance_and_spending/3233/government_procurement_cards,19-Feb-21,Regeneration & Growth,Amazon.co.uk MF2RW62G4,Regeneration And The Economy,112.46,Telephones,2020-21Feb_PC00245
Sandwell Metropolitan Borough Council,http://www.sandwell.gov.uk/info/200202/performance_and_spending/3233/government_procurement_cards,19-Feb-21,Housing & Communities,AMZNMktplace,Neighbourhoods,29.16,Materials & Consumables,2020-21Feb_PC00246
Sandwell Metropolitan Borough Council,http://www.sandwell.gov.uk/info/200202/performance_and_spending/3233/government_procurement_cards,19-Feb-21,Housing & Communities,AMZNMKTPLACE AMAZON.CO,Neighbourhoods,29.16,Materials & Consumables,2020-21Feb_PC00247
Sandwell Metropolitan Borough Council,http://www.sandwell.gov.uk/info/200202/performance_and_spending/3233/government_procurement_cards,19-Feb-21,Regeneration & Growth,WWW.GLOBALGRAPHICS,Regeneration And The Economy,50,Professional Services External,2020-21Feb_PC00248
Sandwell Metropolitan Borough Council,http://www.sandwell.gov.uk/info/200202/performance_and_spending/3233/government_procurement_cards,19-Feb-21,Regeneration & Growth,WWW.GLOBALGRAPHICS,Regeneration And The Economy,199,ICT,2020-21Feb_PC00249
Sandwell Metropolitan Borough Council,http://www.sandwell.gov.uk/info/200202/performance_and_spending/3233/government_procurement_cards,19-Feb-21,Regeneration & Growth,WWW.GLOBALGRAPHICS,Regeneration And The Economy,80,ICT,2020-21Feb_PC00250
Sandwell Metropolitan Borough Council,http://www.sandwell.gov.uk/info/200202/performance_and_spending/3233/government_procurement_cards,19-Feb-21,Total ASCHWB,LOCTEK INC,Public Health,216.65,Equipment & Furniture,2020-21Feb_PC00251
Sandwell Metropolitan Borough Council,http://www.sandwell.gov.uk/info/200202/performance_and_spending/3233/government_procurement_cards,19-Feb-21,Resources (Inc SIU),WWW.HEALTHCARECONFEREN,Assistant Chief Executive (Excl SIU),265.5,Conference Expenses,2020-21Feb_PC00252
Sandwell Metropolitan Borough Council,http://www.sandwell.gov.uk/info/200202/performance_and_spending/3233/government_procurement_cards,19-Feb-21,Resources (Inc SIU),WWW.PUBLICPOLICYEXCHAN,Assistant Chief Executive (Excl SIU),99,Conference Expenses,2020-21Feb_PC00253
Sandwell Metropolitan Borough Council,http://www.sandwell.gov.uk/info/200202/performance_and_spending/3233/government_procurement_cards,19-Feb-21,Resources Capital,AMZNMktplace,Resources Capital,115.83,ICT,2020-21Feb_PC00254
Sandwell Metropolitan Borough Council,http://www.sandwell.gov.uk/info/200202/performance_and_spending/3233/government_procurement_cards,19-Feb-21,Total ASCHWB,ADOBE CREATIVE CLOUD,Total Adult Social Care,41.62,Advertising & Publicity,2020-21Feb_PC00255
Sandwell Metropolitan Borough Council,http://www.sandwell.gov.uk/info/200202/performance_and_spending/3233/government_procurement_cards,19-Feb-21,Childrens Services,PAYPAL  CAREERDEVEL,Childrens Services,60,Ind. Emp Exp-Staff Dev&Training,2020-21Feb_PC00256
Sandwell Metropolitan Borough Council,http://www.sandwell.gov.uk/info/200202/performance_and_spending/3233/government_procurement_cards,19-Feb-21,Childrens Services,PAYPAL  CAREERDEVEL,Childrens Services,60,Ind. Emp Exp-Staff Dev&Training,2020-21Feb_PC00257
Sandwell Metropolitan Borough Council,http://www.sandwell.gov.uk/info/200202/performance_and_spending/3233/government_procurement_cards,19-Feb-21,Total ASCHWB,OFFICE DEPOT UK,Total Adult Social Care,305.08,Printing Stationery&Gen Office,2020-21Feb_PC00258
Sandwell Metropolitan Borough Council,http://www.sandwell.gov.uk/info/200202/performance_and_spending/3233/government_procurement_cards,19-Feb-21,Childrens Services,AMZNMKTPLACE AMAZON.CO,Childrens Services,66.87,Materials & Consumables,2020-21Feb_PC00259
Sandwell Metropolitan Borough Council,http://www.sandwell.gov.uk/info/200202/performance_and_spending/3233/government_procurement_cards,19-Feb-21,Total ASCHWB,AMZNMktplace,Total Adult Social Care,39.99,Equipment & Furniture,2020-21Feb_PC00260
Sandwell Metropolitan Borough Council,http://www.sandwell.gov.uk/info/200202/performance_and_spending/3233/government_procurement_cards,19-Feb-21,Housing & Communities,SCREWFIX DIR LTD,Neighbourhoods,5.82,Ind. Emp Exp-Emp. Welfare,2020-21Feb_PC00261
Sandwell Metropolitan Borough Council,http://www.sandwell.gov.uk/info/200202/performance_and_spending/3233/government_procurement_cards,19-Feb-21,Housing & Communities,SCREWFIX DIRECT,Neighbourhoods,89.85,Ind. Emp Exp-Emp. Welfare,2020-21Feb_PC00262
Sandwell Metropolitan Borough Council,http://www.sandwell.gov.uk/info/200202/performance_and_spending/3233/government_procurement_cards,19-Feb-21,Housing & Communities,Amazon.co.uk MF0CZ3754,Neighbourhoods,136.24,Equipment & Furniture,2020-21Feb_PC00263
Sandwell Metropolitan Borough Council,http://www.sandwell.gov.uk/info/200202/performance_and_spending/3233/government_procurement_cards,22-Feb-21,Childrens Services,WWW.MYPOSTSHOP.COM,Childrens Services,98.91,Printing Stationery&Gen Office,2020-21Feb_PC00264
Sandwell Metropolitan Borough Council,http://www.sandwell.gov.uk/info/200202/performance_and_spending/3233/government_procurement_cards,22-Feb-21,Housing & Communities,AMZNMKTPLACE AMAZON.CO,Neighbourhoods,14.99,Materials & Consumables,2020-21Feb_PC00265
Sandwell Metropolitan Borough Council,http://www.sandwell.gov.uk/info/200202/performance_and_spending/3233/government_procurement_cards,22-Feb-21,Total ASCHWB,ADOBE STOCK,Public Health,19.99,Advertising & Publicity,2020-21Feb_PC00266
Sandwell Metropolitan Borough Council,http://www.sandwell.gov.uk/info/200202/performance_and_spending/3233/government_procurement_cards,22-Feb-21,Childrens Services,AMZNMktplace,Childrens Services,39.69,Printing Stationery&Gen Office,2020-21Feb_PC00267
Sandwell Metropolitan Borough Council,http://www.sandwell.gov.uk/info/200202/performance_and_spending/3233/government_procurement_cards,22-Feb-21,Regeneration & Growth,Amazon.co.uk MF31S8964,Regeneration And The Economy,31.02,Equipment & Furniture,2020-21Feb_PC00268
Sandwell Metropolitan Borough Council,http://www.sandwell.gov.uk/info/200202/performance_and_spending/3233/government_procurement_cards,22-Feb-21,Housing & Communities,AMZNMKTPLACE AMAZON.CO,Neighbourhoods,15.82,Equipment & Furniture,2020-21Feb_PC00269
Sandwell Metropolitan Borough Council,http://www.sandwell.gov.uk/info/200202/performance_and_spending/3233/government_procurement_cards,22-Feb-21,Housing & Communities,AMZ Amazon.co.uk,Neighbourhoods,-124.17,Equipment & Furniture,2020-21Feb_PC00270
Sandwell Metropolitan Borough Council,http://www.sandwell.gov.uk/info/200202/performance_and_spending/3233/government_procurement_cards,23-Feb-21,Regeneration & Growth,AMZNMKTPLACE AMAZON.CO,Regeneration And The Economy,6.64,Printing Stationery&Gen Office,2020-21Feb_PC00271
Sandwell Metropolitan Borough Council,http://www.sandwell.gov.uk/info/200202/performance_and_spending/3233/government_procurement_cards,23-Feb-21,Total ASCHWB,AMZNMktplace,Total Adult Social Care,53.66,Materials & Consumables,2020-21Feb_PC00272
Sandwell Metropolitan Borough Council,http://www.sandwell.gov.uk/info/200202/performance_and_spending/3233/government_procurement_cards,23-Feb-21,Total ASCHWB,HALFORDS ON LINE,Total Adult Social Care,29.17,Materials & Consumables,2020-21Feb_PC00273
Sandwell Metropolitan Borough Council,http://www.sandwell.gov.uk/info/200202/performance_and_spending/3233/government_procurement_cards,23-Feb-21,Total Housing Revenue Account,HARDY SIGNS LTD,Total Housing Revenue Account,1046,ICT,2020-21Feb_PC00274
Sandwell Metropolitan Borough Council,http://www.sandwell.gov.uk/info/200202/performance_and_spending/3233/government_procurement_cards,23-Feb-21,Total ASCHWB,EURO CAR PARTS P,Total Adult Social Care,9.57,Materials & Consumables,2020-21Feb_PC00275
Sandwell Metropolitan Borough Council,http://www.sandwell.gov.uk/info/200202/performance_and_spending/3233/government_procurement_cards,23-Feb-21,Resources (Inc SIU),Amazon.co.uk MF1H67YW4,Assistant Chief Executive (Excl SIU),17.52,Printing Stationery&Gen Office,2020-21Feb_PC00276
Sandwell Metropolitan Borough Council,http://www.sandwell.gov.uk/info/200202/performance_and_spending/3233/government_procurement_cards,23-Feb-21,Housing & Communities,FIRCROFT COLLEGE TRUST,Neighbourhoods,100,Ind. Emp Exp-Staff Dev&Training,2020-21Feb_PC00277
Sandwell Metropolitan Borough Council,http://www.sandwell.gov.uk/info/200202/performance_and_spending/3233/government_procurement_cards,23-Feb-21,Housing & Communities,B & Q 1276,Neighbourhoods,7.8,R& M - Building Maint&Imp.,2020-21Feb_PC00278
Sandwell Metropolitan Borough Council,http://www.sandwell.gov.uk/info/200202/performance_and_spending/3233/government_procurement_cards,23-Feb-21,Housing & Communities,AMZNMktplace,Neighbourhoods,6.66,R& M - Building Maint&Imp.,2020-21Feb_PC00279
Sandwell Metropolitan Borough Council,http://www.sandwell.gov.uk/info/200202/performance_and_spending/3233/government_procurement_cards,24-Feb-21,Total ASCHWB,OFFICE DEPOT UK,Total Adult Social Care,74.55,Printing Stationery&Gen Office,2020-21Feb_PC00280
Sandwell Metropolitan Borough Council,http://www.sandwell.gov.uk/info/200202/performance_and_spending/3233/government_procurement_cards,24-Feb-21,Childrens Services,Amazon.co.uk MM3BJ7OF4,Childrens Services,83.29,Telephones,2020-21Feb_PC00281
Sandwell Metropolitan Borough Council,http://www.sandwell.gov.uk/info/200202/performance_and_spending/3233/government_procurement_cards,24-Feb-21,Total Housing Revenue Account,WWW.KANE.CO.UK,Total Housing Revenue Account,665.55,Equipment & Furniture,2020-21Feb_PC00282
Sandwell Metropolitan Borough Council,http://www.sandwell.gov.uk/info/200202/performance_and_spending/3233/government_procurement_cards,24-Feb-21,Housing & Communities,AMZNMktplace,Neighbourhoods,24.99,ICT,2020-21Feb_PC00283
Sandwell Metropolitan Borough Council,http://www.sandwell.gov.uk/info/200202/performance_and_spending/3233/government_procurement_cards,24-Feb-21,Housing & Communities,AMZNMktplace,Neighbourhoods,121.62,Materials & Consumables,2020-21Feb_PC00284
Sandwell Metropolitan Borough Council,http://www.sandwell.gov.uk/info/200202/performance_and_spending/3233/government_procurement_cards,24-Feb-21,Housing & Communities,PAYPAL  BRITNEWSARC,Neighbourhoods,7.56,Materials & Consumables,2020-21Feb_PC00285
Sandwell Metropolitan Borough Council,http://www.sandwell.gov.uk/info/200202/performance_and_spending/3233/government_procurement_cards,24-Feb-21,Housing & Communities,AMZNMktplace,Neighbourhoods,6.66,Printing Stationery&Gen Office,2020-21Feb_PC00286
Sandwell Metropolitan Borough Council,http://www.sandwell.gov.uk/info/200202/performance_and_spending/3233/government_procurement_cards,24-Feb-21,Housing & Communities,AMZNMktplace,Neighbourhoods,8.32,Equipment & Furniture,2020-21Feb_PC00287
Sandwell Metropolitan Borough Council,http://www.sandwell.gov.uk/info/200202/performance_and_spending/3233/government_procurement_cards,24-Feb-21,Housing & Communities,Amazon.co.uk MM64W2OB4,Neighbourhoods,9.1,Equipment & Furniture,2020-21Feb_PC00288
Sandwell Metropolitan Borough Council,http://www.sandwell.gov.uk/info/200202/performance_and_spending/3233/government_procurement_cards,24-Feb-21,Housing & Communities,Amazon.co.uk MM9419OM4,Neighbourhoods,32.76,Equipment & Furniture,2020-21Feb_PC00289
Sandwell Metropolitan Borough Council,http://www.sandwell.gov.uk/info/200202/performance_and_spending/3233/government_procurement_cards,24-Feb-21,Resources (Inc SIU),Amazon.co.uk MM6E73O24,Assistant Chief Executive (Excl SIU),17.52,Printing Stationery&Gen Office,2020-21Feb_PC00290
Sandwell Metropolitan Borough Council,http://www.sandwell.gov.uk/info/200202/performance_and_spending/3233/government_procurement_cards,24-Feb-21,Childrens Services,MARVIN COX LUBRICANTS,Childrens Services,180,Fuel,2020-21Feb_PC00291
Sandwell Metropolitan Borough Council,http://www.sandwell.gov.uk/info/200202/performance_and_spending/3233/government_procurement_cards,24-Feb-21,Resources (Inc SIU),Amazon.co.uk MM2EQ8OV4,Assistant Chief Executive (Excl SIU),17.52,Printing Stationery&Gen Office,2020-21Feb_PC00292
Sandwell Metropolitan Borough Council,http://www.sandwell.gov.uk/info/200202/performance_and_spending/3233/government_procurement_cards,24-Feb-21,Resources (Inc SIU),WWW.ARCO.CO.UK,Assistant Chief Executive (Excl SIU),96.6,Protective Clothing&Uniforms,2020-21Feb_PC00293
Sandwell Metropolitan Borough Council,http://www.sandwell.gov.uk/info/200202/performance_and_spending/3233/government_procurement_cards,24-Feb-21,Total ASCHWB,AMZNMktplace,Total Adult Social Care,20.82,ICT,2020-21Feb_PC00294
Sandwell Metropolitan Borough Council,http://www.sandwell.gov.uk/info/200202/performance_and_spending/3233/government_procurement_cards,24-Feb-21,Resources (Inc SIU),Amazon Prime MM7VY8OQ4,Assistant Chief Executive (Excl SIU),6.66,Fixtures & Fittings,2020-21Feb_PC00295
Sandwell Metropolitan Borough Council,http://www.sandwell.gov.uk/info/200202/performance_and_spending/3233/government_procurement_cards,24-Feb-21,Total ASCHWB,AMZNMktplace,Total Adult Social Care,39.19,ICT,2020-21Feb_PC00296
Sandwell Metropolitan Borough Council,http://www.sandwell.gov.uk/info/200202/performance_and_spending/3233/government_procurement_cards,24-Feb-21,Housing & Communities,KANG NEWS LTD,Neighbourhoods,7.48,Materials & Consumables,2020-21Feb_PC00297
Sandwell Metropolitan Borough Council,http://www.sandwell.gov.uk/info/200202/performance_and_spending/3233/government_procurement_cards,24-Feb-21,Housing & Communities,SCREWFIX DIRECT,Neighbourhoods,17.67,R& M - Building Maint&Imp.,2020-21Feb_PC00298
Sandwell Metropolitan Borough Council,http://www.sandwell.gov.uk/info/200202/performance_and_spending/3233/government_procurement_cards,25-Feb-21,Total Housing Revenue Account,OFFICE DEPOT UK,Total Housing Revenue Account,79.46,Printing Stationery&Gen Office,2020-21Feb_PC00299
Sandwell Metropolitan Borough Council,http://www.sandwell.gov.uk/info/200202/performance_and_spending/3233/government_procurement_cards,25-Feb-21,Housing & Communities,AMZNMKTPLACE AMAZON.CO,Neighbourhoods,5.82,Equipment & Furniture,2020-21Feb_PC00300
Sandwell Metropolitan Borough Council,http://www.sandwell.gov.uk/info/200202/performance_and_spending/3233/government_procurement_cards,25-Feb-21,Housing & Communities,AMZNMKTPLACE AMAZON.CO,Neighbourhoods,9.99,Equipment & Furniture,2020-21Feb_PC00301
Sandwell Metropolitan Borough Council,http://www.sandwell.gov.uk/info/200202/performance_and_spending/3233/government_procurement_cards,25-Feb-21,Housing & Communities,OFFICE DEPOT UK,Neighbourhoods,7.87,Printing Stationery&Gen Office,2020-21Feb_PC00302
Sandwell Metropolitan Borough Council,http://www.sandwell.gov.uk/info/200202/performance_and_spending/3233/government_procurement_cards,25-Feb-21,Childrens Services,Amazon.co.uk MM84T6FF4,Childrens Services,132.5,Telephones,2020-21Feb_PC00303
Sandwell Metropolitan Borough Council,http://www.sandwell.gov.uk/info/200202/performance_and_spending/3233/government_procurement_cards,25-Feb-21,Childrens Services,Amazon.co.uk MM74B3FZ4,Childrens Services,132.5,Telephones,2020-21Feb_PC00304
Sandwell Metropolitan Borough Council,http://www.sandwell.gov.uk/info/200202/performance_and_spending/3233/government_procurement_cards,25-Feb-21,Childrens Services,Amazon.co.uk MM5H40FD4,Childrens Services,132.5,Telephones,2020-21Feb_PC00305
Sandwell Metropolitan Borough Council,http://www.sandwell.gov.uk/info/200202/performance_and_spending/3233/government_procurement_cards,25-Feb-21,Housing & Communities,CURRYS ONLINE,Neighbourhoods,137.49,Printing Stationery&Gen Office,2020-21Feb_PC00306
Sandwell Metropolitan Borough Council,http://www.sandwell.gov.uk/info/200202/performance_and_spending/3233/government_procurement_cards,25-Feb-21,Regeneration & Growth,DOLPHIN COMPUTER ACCES,Regeneration And The Economy,60,ICT,2020-21Feb_PC00307
Sandwell Metropolitan Borough Council,http://www.sandwell.gov.uk/info/200202/performance_and_spending/3233/government_procurement_cards,25-Feb-21,Individual School Budgets With Inclusion,ASSOC OF ACCOUNTING TE,Individual School Budgets With Inclusion,101,Ind. Emp Exp-Staff Dev&Training,2020-21Feb_PC00308
Sandwell Metropolitan Borough Council,http://www.sandwell.gov.uk/info/200202/performance_and_spending/3233/government_procurement_cards,25-Feb-21,Individual School Budgets With Inclusion,Amazon.co.uk MM0OR04T4,Individual School Budgets With Inclusion,78.26,Learning Resources,2020-21Feb_PC00309
Sandwell Metropolitan Borough Council,http://www.sandwell.gov.uk/info/200202/performance_and_spending/3233/government_procurement_cards,25-Feb-21,Childrens Services,ELEARNING MARKETPLACE,Childrens Services,195,Ind. Emp Exp-Staff Dev&Training,2020-21Feb_PC00310
Sandwell Metropolitan Borough Council,http://www.sandwell.gov.uk/info/200202/performance_and_spending/3233/government_procurement_cards,25-Feb-21,Total ASCHWB,IKEA LTD SHOP ONLINE,Total Adult Social Care,166.67,Equipment & Furniture,2020-21Feb_PC00311
Sandwell Metropolitan Borough Council,http://www.sandwell.gov.uk/info/200202/performance_and_spending/3233/government_procurement_cards,25-Feb-21,Total Housing Revenue Account,ROYAL MAIL GROUP LTD,Total Housing Revenue Account,23.04,"Postages, Carriage & Courier Services",2020-21Feb_PC00312
Sandwell Metropolitan Borough Council,http://www.sandwell.gov.uk/info/200202/performance_and_spending/3233/government_procurement_cards,25-Feb-21,Total Housing Revenue Account,ROYAL MAIL GROUP LTD,Total Housing Revenue Account,23.04,"Postages, Carriage & Courier Services",2020-21Feb_PC00313
Sandwell Metropolitan Borough Council,http://www.sandwell.gov.uk/info/200202/performance_and_spending/3233/government_procurement_cards,25-Feb-21,Housing & Communities,PROARK UK HOTELS LTD O,Neighbourhoods,29.17,Rents,2020-21Feb_PC00314
Sandwell Metropolitan Borough Council,http://www.sandwell.gov.uk/info/200202/performance_and_spending/3233/government_procurement_cards,26-Feb-21,Housing & Communities,AMZNMktplace,Neighbourhoods,8.32,Equipment & Furniture,2020-21Feb_PC00315
Sandwell Metropolitan Borough Council,http://www.sandwell.gov.uk/info/200202/performance_and_spending/3233/government_procurement_cards,26-Feb-21,Total ASCHWB,Amazon.co.uk MM8634ZJ4,Total Adult Social Care,20.04,Printing Stationery&Gen Office,2020-21Feb_PC00316
Sandwell Metropolitan Borough Council,http://www.sandwell.gov.uk/info/200202/performance_and_spending/3233/government_procurement_cards,26-Feb-21,Childrens Services,AMZNMktplace,Childrens Services,66.6,Printing Stationery&Gen Office,2020-21Feb_PC00317
Sandwell Metropolitan Borough Council,http://www.sandwell.gov.uk/info/200202/performance_and_spending/3233/government_procurement_cards,26-Feb-21,Resources (Inc SIU),Amazon.co.uk MM2YJ8Z14,Assistant Chief Executive (Excl SIU),12.48,ICT,2020-21Feb_PC00318
Sandwell Metropolitan Borough Council,http://www.sandwell.gov.uk/info/200202/performance_and_spending/3233/government_procurement_cards,26-Feb-21,Housing & Communities,AMZNMKTPLACE AMAZON.CO,Neighbourhoods,29.13,Printing Stationery&Gen Office,2020-21Feb_PC00319
Sandwell Metropolitan Borough Council,http://www.sandwell.gov.uk/info/200202/performance_and_spending/3233/government_procurement_cards,26-Feb-21,Housing & Communities,AMZNMKTPLACE AMAZON.CO,Neighbourhoods,58.32,Materials & Consumables,2020-21Feb_PC00320
Sandwell Metropolitan Borough Council,http://www.sandwell.gov.uk/info/200202/performance_and_spending/3233/government_procurement_cards,26-Feb-21,Total ASCHWB,GOVERNMENT EVENTS,Total Adult Social Care,396,Ind. Emp Exp-Staff Dev&Training,2020-21Feb_PC00321
Sandwell Metropolitan Borough Council,http://www.sandwell.gov.uk/info/200202/performance_and_spending/3233/government_procurement_cards,26-Feb-21,Total Housing Revenue Account,ARGOS LTD,Total Housing Revenue Account,20.82,ICT,2020-21Feb_PC00322
Sandwell Metropolitan Borough Council,http://www.sandwell.gov.uk/info/200202/performance_and_spending/3233/government_procurement_cards,26-Feb-21,Total Housing Revenue Account,ARGOS LTD,Total Housing Revenue Account,20.82,ICT,2020-21Feb_PC00323
Sandwell Metropolitan Borough Council,http://www.sandwell.gov.uk/info/200202/performance_and_spending/3233/government_procurement_cards,26-Feb-21,Total Housing Revenue Account,ARGOS LTD,Total Housing Revenue Account,20.82,ICT,2020-21Feb_PC00324
Sandwell Metropolitan Borough Council,http://www.sandwell.gov.uk/info/200202/performance_and_spending/3233/government_procurement_cards,26-Feb-21,Resources (Inc SIU),Amazon.co.uk MM4NP8ZY4,Assistant Chief Executive (Excl SIU),9.57,Printing Stationery&Gen Office,2020-21Feb_PC00325
Sandwell Metropolitan Borough Council,http://www.sandwell.gov.uk/info/200202/performance_and_spending/3233/government_procurement_cards,26-Feb-21,Housing & Communities,Amazon.co.uk MM25S2ZH4,Neighbourhoods,12.63,Materials & Consumables,2020-21Feb_PC00326
Sandwell Metropolitan Borough Council,http://www.sandwell.gov.uk/info/200202/performance_and_spending/3233/government_procurement_cards,26-Feb-21,Total ASCHWB,Amazon.co.uk MM2R93ZC4,Total Adult Social Care,12.48,Printing Stationery&Gen Office,2020-21Feb_PC00327
Sandwell Metropolitan Borough Council,http://www.sandwell.gov.uk/info/200202/performance_and_spending/3233/government_procurement_cards,26-Feb-21,Childrens Services,WM MORRISONS STORE,Childrens Services,8.95,Catering Provisions,2020-21Feb_PC00328
Sandwell Metropolitan Borough Council,http://www.sandwell.gov.uk/info/200202/performance_and_spending/3233/government_procurement_cards,26-Feb-21,Individual School Budgets With Inclusion,WWW.ICSLEARN.CO.UK,Individual School Budgets With Inclusion,235,Ind. Emp Exp-Staff Dev&Training,2020-21Feb_PC00329
Sandwell Metropolitan Borough Council,http://www.sandwell.gov.uk/info/200202/performance_and_spending/3233/government_procurement_cards,26-Feb-21,Housing & Communities,Juno Media Limited,Neighbourhoods,52.99,Materials & Consumables,2020-21Feb_PC00330
Sandwell Metropolitan Borough Council,http://www.sandwell.gov.uk/info/200202/performance_and_spending/3233/government_procurement_cards,26-Feb-21,Total Housing Revenue Account,POST OFFICE COUNTER,Total Housing Revenue Account,132,Materials & Consumables,2020-21Feb_PC00331
Sandwell Metropolitan Borough Council,http://www.sandwell.gov.uk/info/200202/performance_and_spending/3233/government_procurement_cards,26-Feb-21,Childrens Services,AMZNMKTPLACE AMAZON.CO,Childrens Services,12.75,Printing Stationery&Gen Office,2020-21Feb_PC00332
Sandwell Metropolitan Borough Council,http://www.sandwell.gov.uk/info/200202/performance_and_spending/3233/government_procurement_cards,26-Feb-21,Resources (Inc SIU),Amazon.co.uk MM26H0ZV4,Assistant Chief Executive (Excl SIU),11.07,Printing Stationery&Gen Office,2020-21Feb_PC00333
Sandwell Metropolitan Borough Council,http://www.sandwell.gov.uk/info/200202/performance_and_spending/3233/government_procurement_cards,26-Feb-21,Resources (Inc SIU),VIKING UK,Assistant Chief Executive (Excl SIU),15.2,Printing Stationery&Gen Office,2020-21Feb_PC00334
Sandwell Metropolitan Borough Council,http://www.sandwell.gov.uk/info/200202/performance_and_spending/3233/government_procurement_cards,26-Feb-21,Housing & Communities,ARGOS LTD,Neighbourhoods,23.33,Equipment & Furniture,2020-21Feb_PC00335
Sandwell Metropolitan Borough Council,http://www.sandwell.gov.uk/info/200202/performance_and_spending/3233/government_procurement_cards,26-Feb-21,Housing & Communities,ARGOS LTD,Neighbourhoods,58.33,Equipment & Furniture,2020-21Feb_PC00336
Sandwell Metropolitan Borough Council,http://www.sandwell.gov.uk/info/200202/performance_and_spending/3233/government_procurement_cards,26-Feb-21,Total Housing Revenue Account,Amazon.co.uk MM5T79LX4,Total Housing Revenue Account,116.62,Telephones,2020-21Feb_PC00337
Sandwell Metropolitan Borough Council,http://www.sandwell.gov.uk/info/200202/performance_and_spending/3233/government_procurement_cards,01-Mar-21,Housing & Communities,AMZNMKTPLACE AMAZON.CO,Neighbourhoods,9.99,Printing Stationery&Gen Office,2020-21Feb_PC00338
Sandwell Metropolitan Borough Council,http://www.sandwell.gov.uk/info/200202/performance_and_spending/3233/government_procurement_cards,01-Mar-21,Housing & Communities,AMZNMKTPLACE AMAZON.CO,Neighbourhoods,66.63,Equipment & Furniture,2020-21Feb_PC00339
Sandwell Metropolitan Borough Council,http://www.sandwell.gov.uk/info/200202/performance_and_spending/3233/government_procurement_cards,01-Mar-21,Total ASCHWB,AMZNMKTPLACE AMAZON.CO,Public Health,47.5,Printing Stationery&Gen Office,2020-21Feb_PC00340
Sandwell Metropolitan Borough Council,http://www.sandwell.gov.uk/info/200202/performance_and_spending/3233/government_procurement_cards,01-Mar-21,Total Housing Revenue Account,Staffordshire Builders,Total Housing Revenue Account,65.39,Materials & Consumables,2020-21Feb_PC00341
Sandwell Metropolitan Borough Council,http://www.sandwell.gov.uk/info/200202/performance_and_spending/3233/government_procurement_cards,01-Mar-21,Childrens Services,AMZNMktplace,Childrens Services,16.97,Equipment & Furniture,2020-21Feb_PC00342
Sandwell Metropolitan Borough Council,http://www.sandwell.gov.uk/info/200202/performance_and_spending/3233/government_procurement_cards,01-Mar-21,Housing & Communities,DREAMS LTD,Neighbourhoods,149,Equipment & Furniture,2020-21Feb_PC00343
Sandwell Metropolitan Borough Council,http://www.sandwell.gov.uk/info/200202/performance_and_spending/3233/government_procurement_cards,01-Mar-21,Total ASCHWB,Amazon.co.uk MM3L99T44,Total Adult Social Care,33.32,Printing Stationery&Gen Office,2020-21Feb_PC00344
Sandwell Metropolitan Borough Council,http://www.sandwell.gov.uk/info/200202/performance_and_spending/3233/government_procurement_cards,01-Mar-21,Housing & Communities,Amazon.co.uk MM55S1AU4,Neighbourhoods,31.33,Materials & Consumables,2020-21Feb_PC00345
Sandwell Metropolitan Borough Council,http://www.sandwell.gov.uk/info/200202/performance_and_spending/3233/government_procurement_cards,01-Mar-21,Childrens Services,WM MORRISONS STORE,Childrens Services,25.25,Materials & Consumables,2020-21Feb_PC00346
Sandwell Metropolitan Borough Council,http://www.sandwell.gov.uk/info/200202/performance_and_spending/3233/government_procurement_cards,01-Mar-21,Total ASCHWB,AMZNMktplace,Total Adult Social Care,25.41,Printing Stationery&Gen Office,2020-21Feb_PC00347
Sandwell Metropolitan Borough Council,http://www.sandwell.gov.uk/info/200202/performance_and_spending/3233/government_procurement_cards,01-Mar-21,Housing & Communities,Amazon Prime MM5776NX4,Neighbourhoods,7.99,Subscriptions,2020-21Feb_PC00348
Sandwell Metropolitan Borough Council,http://www.sandwell.gov.uk/info/200202/performance_and_spending/3233/government_procurement_cards,01-Mar-21,Total ASCHWB,AMZNMktplace,Total Adult Social Care,93.29,Equipment & Furniture,2020-21Feb_PC00349
Sandwell Metropolitan Borough Council,http://www.sandwell.gov.uk/info/200202/performance_and_spending/3233/government_procurement_cards,01-Mar-21,Total Housing Revenue Account,Amazon.co.uk MM9PH5N64,Total Housing Revenue Account,116.62,Telephones,2020-21Feb_PC00350
Sandwell Metropolitan Borough Council,http://www.sandwell.gov.uk/info/200202/performance_and_spending/3233/government_procurement_cards,01-Mar-21,Housing & Communities,THE SAILORS,Neighbourhoods,31.58,Catering Provisions,2020-21Feb_PC00351
Sandwell Metropolitan Borough Council,http://www.sandwell.gov.uk/info/200202/performance_and_spending/3233/government_procurement_cards,02-Mar-21,Housing & Communities,OFFICE DEPOT UK,Neighbourhoods,30.41,Printing Stationery&Gen Office,2020-21Feb_PC00352
Sandwell Metropolitan Borough Council,http://www.sandwell.gov.uk/info/200202/performance_and_spending/3233/government_procurement_cards,02-Mar-21,Housing & Communities,OFFICE DEPOT UK,Neighbourhoods,35.99,Materials & Consumables,2020-21Feb_PC00353
Sandwell Metropolitan Borough Council,http://www.sandwell.gov.uk/info/200202/performance_and_spending/3233/government_procurement_cards,02-Mar-21,Total ASCHWB,OFFICE DEPOT UK,Total Adult Social Care,14.72,Printing Stationery&Gen Office,2020-21Feb_PC00354
Sandwell Metropolitan Borough Council,http://www.sandwell.gov.uk/info/200202/performance_and_spending/3233/government_procurement_cards,02-Mar-21,Housing & Communities,AMZNMktplace,Neighbourhoods,49.97,Materials & Consumables,2020-21Feb_PC00355
Sandwell Metropolitan Borough Council,http://www.sandwell.gov.uk/info/200202/performance_and_spending/3233/government_procurement_cards,02-Mar-21,Childrens Services,WWW.MARKALLENGROUP.COM,Childrens Services,198,Conference Expenses,2020-21Feb_PC00356
Sandwell Metropolitan Borough Council,http://www.sandwell.gov.uk/info/200202/performance_and_spending/3233/government_procurement_cards,02-Mar-21,Total Housing Revenue Account,AMZNMktplace,Total Housing Revenue Account,20.79,Equipment & Furniture,2020-21Feb_PC00357
Sandwell Metropolitan Borough Council,http://www.sandwell.gov.uk/info/200202/performance_and_spending/3233/government_procurement_cards,02-Mar-21,Childrens Services,BAKER ROSS,Childrens Services,28.41,Materials & Consumables,2020-21Feb_PC00358
Sandwell Metropolitan Borough Council,http://www.sandwell.gov.uk/info/200202/performance_and_spending/3233/government_procurement_cards,02-Mar-21,Childrens Services,Dulux Decorator Centre,Childrens Services,40.94,R& M - Building Maint&Imp.,2020-21Feb_PC00359
Sandwell Metropolitan Borough Council,http://www.sandwell.gov.uk/info/200202/performance_and_spending/3233/government_procurement_cards,02-Mar-21,Total ASCHWB,OFFICE DEPOT UK,Total Adult Social Care,1.36,Printing Stationery&Gen Office,2020-21Feb_PC00360
Sandwell Metropolitan Borough Council,http://www.sandwell.gov.uk/info/200202/performance_and_spending/3233/government_procurement_cards,02-Mar-21,Childrens Services,MYHERMES.CO.UK,Childrens Services,5.24,"Postages, Carriage & Courier Services",2020-21Feb_PC00361
Sandwell Metropolitan Borough Council,http://www.sandwell.gov.uk/info/200202/performance_and_spending/3233/government_procurement_cards,02-Mar-21,Childrens Services,MYHERMES.CO.UK,Childrens Services,6.9,"Postages, Carriage & Courier Services",2020-21Feb_PC00362
Sandwell Metropolitan Borough Council,http://www.sandwell.gov.uk/info/200202/performance_and_spending/3233/government_procurement_cards,02-Mar-21,Regeneration & Growth,WESTERN POWER DISTRIBU,Regeneration And The Economy,980.35,Energy Costs-Electricity,2020-21Feb_PC00363
Sandwell Metropolitan Borough Council,http://www.sandwell.gov.uk/info/200202/performance_and_spending/3233/government_procurement_cards,02-Mar-21,Individual School Budgets With Inclusion,Amazon.co.uk MM0VM1004,Individual School Budgets With Inclusion,47.91,Learning Resources,2020-21Feb_PC00364
Sandwell Metropolitan Borough Council,http://www.sandwell.gov.uk/info/200202/performance_and_spending/3233/government_procurement_cards,02-Mar-21,Individual School Budgets With Inclusion,Amazon.co.uk MM6VW60A4,Individual School Budgets With Inclusion,17.66,Learning Resources,2020-21Feb_PC00365
Sandwell Metropolitan Borough Council,http://www.sandwell.gov.uk/info/200202/performance_and_spending/3233/government_procurement_cards,02-Mar-21,Individual School Budgets With Inclusion,Amazon.co.uk MM8AD50Z4,Individual School Budgets With Inclusion,41.44,Learning Resources,2020-21Feb_PC00366
Sandwell Metropolitan Borough Council,http://www.sandwell.gov.uk/info/200202/performance_and_spending/3233/government_procurement_cards,02-Mar-21,Individual School Budgets With Inclusion,WWW.THEWORKS.CO.UK,Individual School Budgets With Inclusion,119.88,Learning Resources,2020-21Feb_PC00367
Sandwell Metropolitan Borough Council,http://www.sandwell.gov.uk/info/200202/performance_and_spending/3233/government_procurement_cards,02-Mar-21,Individual School Budgets With Inclusion,THE RANGE,Individual School Budgets With Inclusion,114.54,Learning Resources,2020-21Feb_PC00368
Sandwell Metropolitan Borough Council,http://www.sandwell.gov.uk/info/200202/performance_and_spending/3233/government_procurement_cards,02-Mar-21,Housing & Communities,AMZNMktplace,Neighbourhoods,124.99,Telephones,2020-21Feb_PC00369
Sandwell Metropolitan Borough Council,http://www.sandwell.gov.uk/info/200202/performance_and_spending/3233/government_procurement_cards,03-Mar-21,Total ASCHWB,WWW.MARKALLENGROUP.COM,Public Health,99,Conference Expenses,2020-21Feb_PC00370
Sandwell Metropolitan Borough Council,http://www.sandwell.gov.uk/info/200202/performance_and_spending/3233/government_procurement_cards,03-Mar-21,Childrens Services,WM MORRISONS STORE,Childrens Services,7.62,Materials & Consumables,2020-21Feb_PC00371
Sandwell Metropolitan Borough Council,http://www.sandwell.gov.uk/info/200202/performance_and_spending/3233/government_procurement_cards,03-Mar-21,Childrens Services,AMZNMktplace,Childrens Services,35.46,Materials & Consumables,2020-21Feb_PC00372
Sandwell Metropolitan Borough Council,http://www.sandwell.gov.uk/info/200202/performance_and_spending/3233/government_procurement_cards,03-Mar-21,Housing & Communities,AMZNMktplace,Neighbourhoods,30.83,Materials & Consumables,2020-21Feb_PC00373
Sandwell Metropolitan Borough Council,http://www.sandwell.gov.uk/info/200202/performance_and_spending/3233/government_procurement_cards,03-Mar-21,Housing & Communities,AMZNMKTPLACE AMAZON.CO,Neighbourhoods,19.98,Materials & Consumables,2020-21Feb_PC00374
Sandwell Metropolitan Borough Council,http://www.sandwell.gov.uk/info/200202/performance_and_spending/3233/government_procurement_cards,03-Mar-21,Total ASCHWB,AMZNMktplace,Total Adult Social Care,8.33,Printing Stationery&Gen Office,2020-21Feb_PC00375
Sandwell Metropolitan Borough Council,http://www.sandwell.gov.uk/info/200202/performance_and_spending/3233/government_procurement_cards,03-Mar-21,Total ASCHWB,Amazon.co.uk MM65O2P34,Total Adult Social Care,12.48,Printing Stationery&Gen Office,2020-21Feb_PC00376
Sandwell Metropolitan Borough Council,http://www.sandwell.gov.uk/info/200202/performance_and_spending/3233/government_procurement_cards,03-Mar-21,Total ASCHWB,MISS ANN FLORIST,Total Adult Social Care,30,Printing Stationery&Gen Office,2020-21Feb_PC00377
Sandwell Metropolitan Borough Council,http://www.sandwell.gov.uk/info/200202/performance_and_spending/3233/government_procurement_cards,03-Mar-21,Total ASCHWB,CENTRAL ENG COOP F,Total Adult Social Care,35,Printing Stationery&Gen Office,2020-21Feb_PC00378
